{"text_format":"1","workbook":"xlsx","n_sheets":10,"sheets":["Início","Semana Atual","Ajuste","Gráficos","Configurações","Auxiliar","Log","Relatório","Banco de Dados","Função Excel"],"not_rendered":{"charts":30,"images":20,"macros":1,"external_links":0,"defined_names":1,"comments":0,"pivot_tables":0},"unopened":[],"bounds":{"document_bytes":16777216,"sheet_cells":100000,"rows_first":2000,"rows_last":500,"rows_between":2000,"halvings":0,"cell_chars":16384,"cell_head_chars":4096},"cells_cut":0,"cells_raw":0,"read":"whole","date_system":"1900"}

{"sheet":"Início","index":0,"n_rows":7,"n_cols":8,"rows_kept":7,"cut":false,"hidden":false,"merged":[]}
[]
[]
[]
[]
[]
[null,null,null,null,null,null,null,"1. APERTE NO BOTÃO HABILITAR EDIÇÃO"]
[null,null,null,null,null,null,null,"2. APERTE NO BOTÃO HABILITAR CONTEÚDO"]

{"sheet":"Semana Atual","index":1,"n_rows":281,"n_cols":11,"rows_kept":281,"cut":false,"hidden":false,"merged":[[33,2,33,8],[34,2,34,8],[35,2,35,8],[163,6,164,6],[163,7,164,7],[163,8,164,8],[163,9,164,9],[163,1,164,1],[163,2,164,2],[163,3,164,3],[163,4,164,4],[163,5,164,5],[212,8,213,8],[212,9,213,9],[247,7,248,7],[247,8,248,8],[247,9,248,9],[212,6,213,6],[212,7,213,7],[247,1,248,1],[247,2,248,2],[247,3,248,3],[247,4,248,4],[247,5,248,5],[247,6,248,6],[212,1,213,1],[212,2,213,2],[212,3,213,3],[212,4,213,4],[212,5,213,5],[114,1,115,1],[114,9,115,9],[114,2,115,2],[114,3,115,3],[114,4,115,4],[114,5,115,5],[114,6,115,6],[114,7,115,7],[114,8,115,8],[4,8,4,9],[5,1,6,1],[40,1,41,1],[40,9,41,9],[53,1,54,1],[53,9,54,9],[5,9,6,9],[9,2,9,8],[10,2,10,8],[13,2,13,8],[14,2,14,8],[20,2,20,8],[21,2,21,8],[24,2,24,8],[25,2,25,8],[32,2,32,8]]}
[]
[]
[]
[]
[null,null,null,null,null,null,null,null,{"$f":"'Função Excel'!$C$9","v":"Versão 2.1 - DEMO"}]
[null,"Ganhos, custos e despesas","Seg","Ter","Qua","Qui","Sex","Sáb","Dom","Total"]
[null,null,"2015-02-10",{"$f":"C7+1","v":"2015-02-11"},{"$f":"D7+1","v":"2015-02-12"},"2015-02-13","2015-02-14","2015-02-15","2015-02-16"]
[null,"Ganhos do dia",{"$f":"SUM(C9:C11)","v":0},{"$f":"SUM(D9:D11)","v":0},0,0,0,0,0,{"$f":"SUM(C8:I8)","v":0}]
[null,{"$f":"\"- \"&Configurações!$E$13","v":"- Uber"},null,null,null,null,null,null,null,{"$f":"SUM(C9:I9)","v":0},{"$f":"\"Ganhos do dia \"&B9","v":"Ganhos do dia - Uber"}]
[null,{"$f":"\"- \"&Configurações!$E$14","v":"- App 2"},"Não disponível para versão DEMO",null,null,null,null,null,null,0,{"$f":"\"Ganhos do dia \"&B10","v":"Ganhos do dia - App 2"}]
[null,{"$f":"\"- \"&Configurações!$E$15","v":"- App 3"},"Não disponível para versão DEMO",null,null,null,null,null,null,0,"Ganhos do dia - App 3"]
[null,"Bônus/Incentivo",{"$f":"SUM(C13:C15)","v":0},{"$f":"SUM(D13:D15)","v":0},0,0,0,0,0,{"$f":"SUM(C12:I12)","v":0}]
[null,{"$f":"\"- \"&Configurações!$E$13","v":"- Uber"},null,null,null,null,null,null,null,{"$f":"SUM(C13:I13)","v":0},{"$f":"\"Bônus/Incentivo \"&B13","v":"Bônus/Incentivo - Uber"}]
[null,{"$f":"\"- \"&Configurações!$E$14","v":"- App 2"},"Não disponível para versão DEMO",null,null,null,null,null,null,0,{"$f":"\"Bônus/Incentivo \"&B14","v":"Bônus/Incentivo - App 2"}]
[null,{"$f":"\"- \"&Configurações!$E$15","v":"- App 3"},"Não disponível para versão DEMO",null,null,null,null,null,null,0,"Bônus/Incentivo - App 3"]
[null,"Outros Incentivos",null,null,null,null,null,null,null,{"$f":"SUM(C16:I16)","v":0}]
[null,"TOTAL DE GANHOS",{"$f":"SUM(C12,C8,C16)","v":0},{"$f":"SUM(D12,D8,D16)","v":0},0,0,0,0,0,0]
[null,"Quilômetros rodados",null,null,null,null,null,null,null,{"$f":"SUM(C18:I18)","v":0}]
[null,"Tempo online",{"$f":"SUM(C20:C22)","v":0},0,0,0,0,0,{"$f":"SUM(I20:I22)","v":0},0]
[null,{"$f":"\"- \"&Configurações!$E$13","v":"- Uber"},null,null,null,null,null,null,null,0,{"$f":"\"Tempo Online \"&B20","v":"Tempo Online - Uber"}]
[null,{"$f":"\"- \"&Configurações!$E$14","v":"- App 2"},"Não disponível para versão DEMO",null,null,null,null,null,null,0,{"$f":"\"Tempo Online \"&B21","v":"Tempo Online - App 2"}]
[null,{"$f":"\"- \"&Configurações!$E$15","v":"- App 3"},"Não disponível para versão DEMO",null,null,null,null,null,null,0,"Tempo Online - App 3"]
[null,"Nº de viagens",{"$f":"SUM(C24:C26)","v":0},{"$f":"SUM(D24:D26)","v":0},0,0,0,0,0,0]
[null,{"$f":"\"- \"&Configurações!$E$13","v":"- Uber"},null,null,null,null,null,null,null,0,{"$f":"\"Nº de Viagens \"&B24","v":"Nº de Viagens - Uber"}]
[null,{"$f":"\"- \"&Configurações!$E$14","v":"- App 2"},"Não disponível para versão DEMO",null,null,null,null,null,null,0,{"$f":"\"Nº de Viagens \"&B25","v":"Nº de Viagens - App 2"}]
[null,{"$f":"\"- \"&Configurações!$E$15","v":"- App 3"},"Não disponível para versão DEMO",null,null,null,null,null,null,0,"Nº de Viagens - App 3"]
[null,"Custos com combustível",{"$f":"IFERROR(C18/Configurações!$C$9*Configurações!$C$10,0)","v":0},{"$f":"IFERROR(D18/Configurações!$C$9*Configurações!$C$10,0)","v":0},{"$f":"IFERROR(E18/Configurações!$C$9*Configurações!$C$10,0)","v":0},{"$f":"IFERROR(F18/Configurações!$C$9*Configurações!$C$10,0)","v":0},{"$f":"IFERROR(G18/Configurações!$C$9*Configurações!$C$10,0)","v":0},{"$f":"IFERROR(H18/Configurações!$C$9*Configurações!$C$10,0)","v":0},{"$f":"IFERROR(I18/Configurações!$C$9*Configurações!$C$10,0)","v":0},{"$f":"SUM(C27:I27)","v":0}]
[null,"Custos com água",null,null,null,null,null,null,null,0]
[null,"Custos com bala",null,null,null,null,null,null,null,0]
[null,"Outros custos",null,null,null,null,null,null,null,0]
[null,"TOTAL DE CUSTOS",{"$f":"SUM(C27:C30)","v":0},{"$f":"SUM(D27:D30)","v":0},0,0,0,0,0,0]
[null,"Gastos com alimentação",null,null,null,null,null,null,null,0]
[null,"Estacionamento","Não disponível para versão DEMO",null,null,null,null,null,null,{"$f":"SUM(C33:I33)","v":0}]
[null,"Lavagem","Não disponível para versão DEMO",null,null,null,null,null,null,{"$f":"SUM(C34:I34)","v":0}]
[null,"Multa","Não disponível para versão DEMO",null,null,null,null,null,null,{"$f":"SUM(C35:I35)","v":0}]
[null,"Pedágio","Não disponível para versão DEMO",null,null,null,null,null,null,{"$f":"SUM(C36:I36)","v":0}]
[null,"Outras despesas",null,null,null,null,null,null,null,0]
[null,"TOTAL DE DESPESAS",{"$f":"SUM(C32:C37)","v":0},{"$f":"SUM(D32:D37)","v":0},0,0,0,0,0,0]
[null,"Resultado Bruto",{"$f":"C17-SUM(C31,C38)","v":0},{"$f":"D17-SUM(D31,D38)","v":0},0,0,0,0,0,0]
[]
[null,"Provisões","Seg","Ter","Qua","Qui","Sex","Sáb","Dom","Total"]
[null,null,{"$f":"C7","v":"2015-02-10"},{"$f":"C42+1","v":"2015-02-11"},{"$f":"D42+1","v":"2015-02-12"},"2015-02-13","2015-02-14","2015-02-15","2015-02-16"]
[null,"Depreciação do Veículo",{"$f":"IFERROR(Configurações!$C$11*Configurações!$C$13/365*IF(Configurações!$C$7<>\"Carro próprio\",0,1),0)","v":6.2465753424657535},{"$f":"IFERROR(Configurações!$C$11*Configurações!$C$13/365*IF(Configurações!$C$7<>\"Carro próprio\",0,1),0)","v":6.2465753424657535},{"$f":"IFERROR(Configurações!$C$11*Configurações!$C$13/365*IF(Configurações!$C$7<>\"Carro próprio\",0,1),0)","v":6.2465753424657535},{"$f":"IFERROR(Configurações!$C$11*Configurações!$C$13/365*IF(Configurações!$C$7<>\"Carro próprio\",0,1),0)","v":6.2465753424657535},{"$f":"IFERROR(Configurações!$C$11*Configurações!$C$13/365*IF(Configurações!$C$7<>\"Carro próprio\",0,1),0)","v":6.2465753424657535},{"$f":"IFERROR(Configurações!$C$11*Configurações!$C$13/365*IF(Configurações!$C$7<>\"Carro próprio\",0,1),0)","v":6.2465753424657535},{"$f":"IFERROR(Configurações!$C$11*Configurações!$C$13/365*IF(Configurações!$C$7<>\"Carro próprio\",0,1),0)","v":6.2465753424657535},{"$f":"SUM(C43:I43)","v":43.726027397260275}]
[null,"Seguro Anual",{"$f":"IFERROR(Configurações!$C$12/365*IF(Configurações!$C$7<>\"Carro próprio\",0,1),0)","v":0},{"$f":"IFERROR(Configurações!$C$12/365*IF(Configurações!$C$7<>\"Carro próprio\",0,1),0)","v":0},{"$f":"IFERROR(Configurações!$C$12/365*IF(Configurações!$C$7<>\"Carro próprio\",0,1),0)","v":0},{"$f":"IFERROR(Configurações!$C$12/365*IF(Configurações!$C$7<>\"Carro próprio\",0,1),0)","v":0},{"$f":"IFERROR(Configurações!$C$12/365*IF(Configurações!$C$7<>\"Carro próprio\",0,1),0)","v":0},{"$f":"IFERROR(Configurações!$C$12/365*IF(Configurações!$C$7<>\"Carro próprio\",0,1),0)","v":0},{"$f":"IFERROR(Configurações!$C$12/365*IF(Configurações!$C$7<>\"Carro próprio\",0,1),0)","v":0},0]
[null,"Prestação do Veículo",{"$f":"IFERROR(Configurações!$C$14/30*IF(Configurações!$C$7<>\"Carro próprio\",0,1),0)","v":26.2},{"$f":"IFERROR(Configurações!$C$14/30*IF(Configurações!$C$7<>\"Carro próprio\",0,1),0)","v":26.2},{"$f":"IFERROR(Configurações!$C$14/30*IF(Configurações!$C$7<>\"Carro próprio\",0,1),0)","v":26.2},{"$f":"IFERROR(Configurações!$C$14/30*IF(Configurações!$C$7<>\"Carro próprio\",0,1),0)","v":26.2},{"$f":"IFERROR(Configurações!$C$14/30*IF(Configurações!$C$7<>\"Carro próprio\",0,1),0)","v":26.2},{"$f":"IFERROR(Configurações!$C$14/30*IF(Configurações!$C$7<>\"Carro próprio\",0,1),0)","v":26.2},{"$f":"IFERROR(Configurações!$C$14/30*IF(Configurações!$C$7<>\"Carro próprio\",0,1),0)","v":26.2},183.39999999999998]
[null,"Troca de pneu",{"$f":"IFERROR((C18/Configurações!$C$16*Configurações!$C$15)*4*IF(Configurações!$C$7<>\"Carro próprio\",0,1),0)","v":0},{"$f":"IFERROR((D18/Configurações!$C$16*Configurações!$C$15)*4*IF(Configurações!$C$7<>\"Carro próprio\",0,1),0)","v":0},{"$f":"IFERROR((E18/Configurações!$C$16*Configurações!$C$15)*4*IF(Configurações!$C$7<>\"Carro próprio\",0,1),0)","v":0},{"$f":"IFERROR((F18/Configurações!$C$16*Configurações!$C$15)*4*IF(Configurações!$C$7<>\"Carro próprio\",0,1),0)","v":0},{"$f":"IFERROR((G18/Configurações!$C$16*Configurações!$C$15)*4*IF(Configurações!$C$7<>\"Carro próprio\",0,1),0)","v":0},{"$f":"IFERROR((H18/Configurações!$C$16*Configurações!$C$15)*4*IF(Configurações!$C$7<>\"Carro próprio\",0,1),0)","v":0},{"$f":"IFERROR((I18/Configurações!$C$16*Configurações!$C$15)*4*IF(Configurações!$C$7<>\"Carro próprio\",0,1),0)","v":0},{"$f":"SUM(C46:I46)","v":0}]
[null,"Troca de óleo",{"$f":"IFERROR(C18/Configurações!$C$18*Configurações!$C$17*IF(Configurações!$C$7<>\"Carro próprio\",0,1),0)","v":0},{"$f":"IFERROR(D18/Configurações!$C$18*Configurações!$C$17*IF(Configurações!$C$7<>\"Carro próprio\",0,1),0)","v":0},{"$f":"IFERROR(E18/Configurações!$C$18*Configurações!$C$17*IF(Configurações!$C$7<>\"Carro próprio\",0,1),0)","v":0},{"$f":"IFERROR(F18/Configurações!$C$18*Configurações!$C$17*IF(Configurações!$C$7<>\"Carro próprio\",0,1),0)","v":0},{"$f":"IFERROR(G18/Configurações!$C$18*Configurações!$C$17*IF(Configurações!$C$7<>\"Carro próprio\",0,1),0)","v":0},{"$f":"IFERROR(H18/Configurações!$C$18*Configurações!$C$17*IF(Configurações!$C$7<>\"Carro próprio\",0,1),0)","v":0},{"$f":"IFERROR(I18/Configurações!$C$18*Configurações!$C$17*IF(Configurações!$C$7<>\"Carro próprio\",0,1),0)","v":0},{"$f":"SUM(C47:I47)","v":0}]
[null,"Outras despesas anuais",{"$f":"IFERROR(Configurações!$C$19/365*IF(Configurações!$C$7<>\"Carro próprio\",0,1),0)","v":3.2876712328767121},{"$f":"IFERROR(Configurações!$C$19/365*IF(Configurações!$C$7<>\"Carro próprio\",0,1),0)","v":3.2876712328767121},{"$f":"IFERROR(Configurações!$C$19/365*IF(Configurações!$C$7<>\"Carro próprio\",0,1),0)","v":3.2876712328767121},{"$f":"IFERROR(Configurações!$C$19/365*IF(Configurações!$C$7<>\"Carro próprio\",0,1),0)","v":3.2876712328767121},{"$f":"IFERROR(Configurações!$C$19/365*IF(Configurações!$C$7<>\"Carro próprio\",0,1),0)","v":3.2876712328767121},{"$f":"IFERROR(Configurações!$C$19/365*IF(Configurações!$C$7<>\"Carro próprio\",0,1),0)","v":3.2876712328767121},{"$f":"IFERROR(Configurações!$C$19/365*IF(Configurações!$C$7<>\"Carro próprio\",0,1),0)","v":3.2876712328767121},{"$f":"SUM(C48:I48)","v":23.013698630136982}]
[null,"Aluguel",{"$f":"IFERROR(IF(Configurações!$C$7=\"Carro próprio\",0,IF(Configurações!$C$7=\"Aluguel Diário\",IF(Auxiliar!$A$3=TRUE,Configurações!$C$8*IF('Semana Atual'!C$18=0,0,1),Configurações!$C$8),IF(Configurações!$C$7=\"Aluguel Semanal\",Configurações!$C$8/7,IF(Configurações!$C$7=\"Aluguel Mensal\",Configurações!$C$8/30,Configurações!$C$8*C$18)))),0)","v":0},{"$f":"IFERROR(IF(Configurações!$C$7=\"Carro próprio\",0,IF(Configurações!$C$7=\"Aluguel Diário\",IF(Auxiliar!$A$3=TRUE,Configurações!$C$8*IF('Semana Atual'!D$18=0,0,1),Configurações!$C$8),IF(Configurações!$C$7=\"Aluguel Semanal\",Configurações!$C$8/7,IF(Configurações!$C$7=\"Aluguel Mensal\",Configurações!$C$8/30,Configurações!$C$8*D$18)))),0)","v":0},{"$f":"IFERROR(IF(Configurações!$C$7=\"Carro próprio\",0,IF(Configurações!$C$7=\"Aluguel Diário\",IF(Auxiliar!$A$3=TRUE,Configurações!$C$8*IF('Semana Atual'!E$18=0,0,1),Configurações!$C$8),IF(Configurações!$C$7=\"Aluguel Semanal\",Configurações!$C$8/7,IF(Configurações!$C$7=\"Aluguel Mensal\",Configurações!$C$8/30,Configurações!$C$8*E$18)))),0)","v":0},{"$f":"IFERROR(IF(Configurações!$C$7=\"Carro próprio\",0,IF(Configurações!$C$7=\"Aluguel Diário\",IF(Auxiliar!$A$3=TRUE,Configurações!$C$8*IF('Semana Atual'!F$18=0,0,1),Configurações!$C$8),IF(Configurações!$C$7=\"Aluguel Semanal\",Configurações!$C$8/7,IF(Configurações!$C$7=\"Aluguel Mensal\",Configurações!$C$8/30,Configurações!$C$8*F$18)))),0)","v":0},{"$f":"IFERROR(IF(Configurações!$C$7=\"Carro próprio\",0,IF(Configurações!$C$7=\"Aluguel Diário\",IF(Auxiliar!$A$3=TRUE,Configurações!$C$8*IF('Semana Atual'!G$18=0,0,1),Configurações!$C$8),IF(Configurações!$C$7=\"Aluguel Semanal\",Configurações!$C$8/7,IF(Configurações!$C$7=\"Aluguel Mensal\",Configurações!$C$8/30,Configurações!$C$8*G$18)))),0)","v":0},{"$f":"IFERROR(IF(Configurações!$C$7=\"Carro próprio\",0,IF(Configurações!$C$7=\"Aluguel Diário\",IF(Auxiliar!$A$3=TRUE,Configurações!$C$8*IF('Semana Atual'!H$18=0,0,1),Configurações!$C$8),IF(Configurações!$C$7=\"Aluguel Semanal\",Configurações!$C$8/7,IF(Configurações!$C$7=\"Aluguel Mensal\",Configurações!$C$8/30,Configurações!$C$8*H$18)))),0)","v":0},{"$f":"IFERROR(IF(Configurações!$C$7=\"Carro próprio\",0,IF(Configurações!$C$7=\"Aluguel Diário\",IF(Auxiliar!$A$3=TRUE,Configurações!$C$8*IF('Semana Atual'!I$18=0,0,1),Configurações!$C$8),IF(Configurações!$C$7=\"Aluguel Semanal\",Configurações!$C$8/7,IF(Configurações!$C$7=\"Aluguel Mensal\",Configurações!$C$8/30,Configurações!$C$8*I$18)))),0)","v":0},{"$f":"SUM(C49:I49)","v":0}]
[null,"Custo com provisões",{"$f":"SUM(C43:C49)","v":35.734246575342461},35.734246575342461,35.734246575342461,35.734246575342461,35.734246575342461,35.734246575342461,35.734246575342461,{"$f":"SUM(C50:I50)","v":250.13972602739724}]
[]
[null,"Resultado Líquido",{"$f":"C39-C50","v":-35.734246575342461},-35.734246575342461,-35.734246575342461,-35.734246575342461,-35.734246575342461,-35.734246575342461,-35.734246575342461,-250.13972602739724]
[]
[null,"Análise dos dados da semana","Seg","Ter","Qua","Qui","Sex","Sáb","Dom","Média"]
[null,null,{"$f":"C7","v":"2015-02-10"},{"$f":"C55+1","v":"2015-02-11"},{"$f":"D55+1","v":"2015-02-12"},"2015-02-13","2015-02-14","2015-02-15","2015-02-16"]
[null,"Viagem / Tempo online",{"$f":"IFERROR(C23/(C19*24),0)","v":0},0,0,0,0,0,0,0]
[null,{"$f":"\"- \"&Configurações!$E$13","v":"- Uber"},0,0,0,0,0,0,0,0]
[null,{"$f":"\"- \"&Configurações!$E$14","v":"- App 2"},0,0,0,0,0,0,0,0]
[null,{"$f":"\"- \"&Configurações!$E$15","v":"- App 3"},0,0,0,0,0,0,0,0]
[null,"Viagem / Km rodados",{"$f":"IFERROR(C23/C$18,0)","v":0},0,0,0,0,0,0,0]
[null,{"$f":"\"- \"&Configurações!$E$13","v":"- Uber"},0,0,0,0,0,0,0,0]
[null,{"$f":"\"- \"&Configurações!$E$14","v":"- App 2"},0,0,0,0,0,0,0,0]
[null,{"$f":"\"- \"&Configurações!$E$15","v":"- App 3"},0,0,0,0,0,0,0,0]
[null,"Receitas / Tempo online",{"$f":"IFERROR(C8/(C19*24),0)","v":0},0,0,0,0,0,0,0]
[null,{"$f":"\"- \"&Configurações!$E$13","v":"- Uber"},0,0,0,0,0,0,0,0]
[null,{"$f":"\"- \"&Configurações!$E$14","v":"- App 2"},0,0,0,0,0,0,0,0]
[null,{"$f":"\"- \"&Configurações!$E$15","v":"- App 3"},0,0,0,0,0,0,0,0]
[null,"Receitas / Km rodados",{"$f":"IFERROR(C8/C$18,0)","v":0},0,0,0,0,0,0,0]
[null,{"$f":"\"- \"&Configurações!$E$13","v":"- Uber"},{"$f":"IFERROR(C9/C$18,0)","v":0},0,0,0,0,0,0,0]
[null,{"$f":"\"- \"&Configurações!$E$14","v":"- App 2"},{"$f":"IFERROR(C10/C$18,0)","v":0},0,0,0,0,0,0,0]
[null,{"$f":"\"- \"&Configurações!$E$15","v":"- App 3"},{"$f":"IFERROR(C11/C$18,0)","v":0},0,0,0,0,0,0,0]
[null,"Receitas / Viagem",{"$f":"IFERROR(C8/C23,0)","v":0},0,0,0,0,0,0,0]
[null,{"$f":"\"- \"&Configurações!$E$13","v":"- Uber"},0,0,0,0,0,0,0,0]
[null,{"$f":"\"- \"&Configurações!$E$14","v":"- App 2"},0,0,0,0,0,0,0,0]
[null,{"$f":"\"- \"&Configurações!$E$15","v":"- App 3"},0,0,0,0,0,0,0,0]
[null,"Gastos / Tempo online",{"$f":"IFERROR(SUM(C$38,C$31)/(C19*24),0)","v":0},0,0,0,0,0,0,0]
[null,{"$f":"\"- \"&Configurações!$E$13","v":"- Uber"},0,0,0,0,0,0,0,0]
[null,{"$f":"\"- \"&Configurações!$E$14","v":"- App 2"},0,0,0,0,0,0,0,0]
[null,{"$f":"\"- \"&Configurações!$E$15","v":"- App 3"},0,0,0,0,0,0,0,0]
[null,"Gastos / Km rodados",{"$f":"IFERROR(SUM(C$38,C$31)/C18,0)","v":0},0,0,0,0,0,0,0]
[null,{"$f":"\"- \"&Configurações!$E$13","v":"- Uber"},0,0,0,0,0,0,0,0]
[null,{"$f":"\"- \"&Configurações!$E$14","v":"- App 2"},0,0,0,0,0,0,0,0]
[null,{"$f":"\"- \"&Configurações!$E$15","v":"- App 3"},0,0,0,0,0,0,0,0]
[null,"Gastos / Viagem",{"$f":"IFERROR(SUM(C$38,C$31)/C23,0)","v":0},0,0,0,0,0,0,0]
[null,{"$f":"\"- \"&Configurações!$E$13","v":"- Uber"},0,0,0,0,0,0,0,0]
[null,{"$f":"\"- \"&Configurações!$E$14","v":"- App 2"},0,0,0,0,0,0,0,0]
[null,{"$f":"\"- \"&Configurações!$E$15","v":"- App 3"},0,0,0,0,0,0,0,0]
[null,"Resultado L. / Tempo online",{"$f":"IFERROR(C$52/(C19*24),0)","v":0},0,0,0,0,0,0,0]
[null,{"$f":"\"- \"&Configurações!$E$13","v":"- Uber"},0,0,0,0,0,0,0,0]
[null,{"$f":"\"- \"&Configurações!$E$14","v":"- App 2"},0,0,0,0,0,0,0,0]
[null,{"$f":"\"- \"&Configurações!$E$15","v":"- App 3"},0,0,0,0,0,0,0,0]
[null,"Resultado L. / Km rodados",{"$f":"IFERROR(C$52/C18,0)","v":0},{"$f":"IFERROR(D$52/D18,0)","v":0},0,0,0,0,0,0]
[null,{"$f":"\"- \"&Configurações!$E$13","v":"- Uber"},{"$f":"IFERROR(C$52/C19,0)","v":0},0,0,0,0,0,0,0]
[null,{"$f":"\"- \"&Configurações!$E$14","v":"- App 2"},{"$f":"IFERROR(C$52/C20,0)","v":0},0,0,0,0,0,0,0]
[null,{"$f":"\"- \"&Configurações!$E$15","v":"- App 3"},{"$f":"IFERROR(C$52/C21,0)","v":0},0,0,0,0,0,0,0]
[null,"Resultado L. / Viagem",{"$f":"IFERROR(C$52/C23,0)","v":0},{"$f":"IFERROR(D$52/D23,0)","v":0},0,0,0,0,0,0]
[null,{"$f":"\"- \"&Configurações!$E$13","v":"- Uber"},{"$f":"IFERROR(C$52/C24,0)","v":0},0,0,0,0,0,0,0]
[null,{"$f":"\"- \"&Configurações!$E$14","v":"- App 2"},{"$f":"IFERROR(C$52/C25,0)","v":0},0,0,0,0,0,0,0]
[null,{"$f":"\"- \"&Configurações!$E$15","v":"- App 3"},{"$f":"IFERROR(C$52/C26,0)","v":0},0,0,0,0,0,0,0]
[]
[]
[]
[]
[]
[]
[]
[]
[]
[]
[]
[]
[]
[]
[]
[null,{"$f":"\"Semana Atual x Semana Passada (\"&LEFT(0&DAY(Auxiliar!A7),2)&\"/\"&LEFT(0&MONTH(Auxiliar!A7),2)&\")\"","v":"Semana Atual x Semana Passada (04/02)"},"Seg","Ter","Qua","Qui","Sex","Sáb","Dom","Total"]
[]
[null,"Ganhos do dia",{"$f":"SUM(C118:C120)","v":{"$error":"#VALUE!"}},{"$f":"SUM(D118:D120)","v":0},0,0,0,0,0,{"$f":"SUM(C117:I117)","v":{"$error":"#VALUE!"}}]
[null,{"$f":"\"- \"&Configurações!$E$13","v":"- Uber"},{"$f":"C9-SUMIFS('Banco de Dados'!C:C,'Banco de Dados'!$A:$A,Auxiliar!$A$7,'Banco de Dados'!$K:$K,$B$117&\" \"&$B118)","v":0},{"$f":"D9-SUMIFS('Banco de Dados'!D:D,'Banco de Dados'!$A:$A,Auxiliar!$A$7,'Banco de Dados'!$K:$K,$B$117&\" \"&$B118)","v":0},{"$f":"E9-SUMIFS('Banco de Dados'!E:E,'Banco de Dados'!$A:$A,Auxiliar!$A$7,'Banco de Dados'!$K:$K,$B$117&\" \"&$B118)","v":0},{"$f":"F9-SUMIFS('Banco de Dados'!F:F,'Banco de Dados'!$A:$A,Auxiliar!$A$7,'Banco de Dados'!$K:$K,$B$117&\" \"&$B118)","v":0},{"$f":"G9-SUMIFS('Banco de Dados'!G:G,'Banco de Dados'!$A:$A,Auxiliar!$A$7,'Banco de Dados'!$K:$K,$B$117&\" \"&$B118)","v":0},{"$f":"H9-SUMIFS('Banco de Dados'!H:H,'Banco de Dados'!$A:$A,Auxiliar!$A$7,'Banco de Dados'!$K:$K,$B$117&\" \"&$B118)","v":0},{"$f":"I9-SUMIFS('Banco de Dados'!I:I,'Banco de Dados'!$A:$A,Auxiliar!$A$7,'Banco de Dados'!$K:$K,$B$117&\" \"&$B118)","v":0},{"$f":"SUM(C118:I118)","v":0}]
[null,{"$f":"\"- \"&Configurações!$E$14","v":"- App 2"},{"$f":"C10-SUMIFS('Banco de Dados'!C:C,'Banco de Dados'!$A:$A,Auxiliar!$A$7,'Banco de Dados'!$K:$K,$B$117&\" \"&$B119)","v":{"$error":"#VALUE!"}},{"$f":"D10-SUMIFS('Banco de Dados'!D:D,'Banco de Dados'!$A:$A,Auxiliar!$A$7,'Banco de Dados'!$K:$K,$B$117&\" \"&$B119)","v":0},{"$f":"E10-SUMIFS('Banco de Dados'!E:E,'Banco de Dados'!$A:$A,Auxiliar!$A$7,'Banco de Dados'!$K:$K,$B$117&\" \"&$B119)","v":0},{"$f":"F10-SUMIFS('Banco de Dados'!F:F,'Banco de Dados'!$A:$A,Auxiliar!$A$7,'Banco de Dados'!$K:$K,$B$117&\" \"&$B119)","v":0},{"$f":"G10-SUMIFS('Banco de Dados'!G:G,'Banco de Dados'!$A:$A,Auxiliar!$A$7,'Banco de Dados'!$K:$K,$B$117&\" \"&$B119)","v":0},{"$f":"H10-SUMIFS('Banco de Dados'!H:H,'Banco de Dados'!$A:$A,Auxiliar!$A$7,'Banco de Dados'!$K:$K,$B$117&\" \"&$B119)","v":0},{"$f":"I10-SUMIFS('Banco de Dados'!I:I,'Banco de Dados'!$A:$A,Auxiliar!$A$7,'Banco de Dados'!$K:$K,$B$117&\" \"&$B119)","v":0},{"$f":"SUM(C119:I119)","v":{"$error":"#VALUE!"}}]
[null,{"$f":"\"- \"&Configurações!$E$15","v":"- App 3"},{"$f":"C11-SUMIFS('Banco de Dados'!C:C,'Banco de Dados'!$A:$A,Auxiliar!$A$7,'Banco de Dados'!$K:$K,$B$117&\" \"&$B120)","v":{"$error":"#VALUE!"}},{"$f":"D11-SUMIFS('Banco de Dados'!D:D,'Banco de Dados'!$A:$A,Auxiliar!$A$7,'Banco de Dados'!$K:$K,$B$117&\" \"&$B120)","v":0},{"$f":"E11-SUMIFS('Banco de Dados'!E:E,'Banco de Dados'!$A:$A,Auxiliar!$A$7,'Banco de Dados'!$K:$K,$B$117&\" \"&$B120)","v":0},{"$f":"F11-SUMIFS('Banco de Dados'!F:F,'Banco de Dados'!$A:$A,Auxiliar!$A$7,'Banco de Dados'!$K:$K,$B$117&\" \"&$B120)","v":0},{"$f":"G11-SUMIFS('Banco de Dados'!G:G,'Banco de Dados'!$A:$A,Auxiliar!$A$7,'Banco de Dados'!$K:$K,$B$117&\" \"&$B120)","v":0},{"$f":"H11-SUMIFS('Banco de Dados'!H:H,'Banco de Dados'!$A:$A,Auxiliar!$A$7,'Banco de Dados'!$K:$K,$B$117&\" \"&$B120)","v":0},{"$f":"I11-SUMIFS('Banco de Dados'!I:I,'Banco de Dados'!$A:$A,Auxiliar!$A$7,'Banco de Dados'!$K:$K,$B$117&\" \"&$B120)","v":0},{"$error":"#VALUE!"}]
[null,"Bônus/Incentivo",{"$f":"SUM(C122:C124)","v":{"$error":"#VALUE!"}},{"$f":"SUM(D122:D124)","v":0},0,0,0,0,0,{"$error":"#VALUE!"}]
[null,{"$f":"\"- \"&Configurações!$E$13","v":"- Uber"},{"$f":"C13-SUMIFS('Banco de Dados'!C:C,'Banco de Dados'!$A:$A,Auxiliar!$A$7,'Banco de Dados'!$K:$K,$B$121&\" \"&$B122)","v":0},{"$f":"D13-SUMIFS('Banco de Dados'!D:D,'Banco de Dados'!$A:$A,Auxiliar!$A$7,'Banco de Dados'!$K:$K,$B$121&\" \"&$B122)","v":0},{"$f":"E13-SUMIFS('Banco de Dados'!E:E,'Banco de Dados'!$A:$A,Auxiliar!$A$7,'Banco de Dados'!$K:$K,$B$121&\" \"&$B122)","v":0},{"$f":"F13-SUMIFS('Banco de Dados'!F:F,'Banco de Dados'!$A:$A,Auxiliar!$A$7,'Banco de Dados'!$K:$K,$B$121&\" \"&$B122)","v":0},{"$f":"G13-SUMIFS('Banco de Dados'!G:G,'Banco de Dados'!$A:$A,Auxiliar!$A$7,'Banco de Dados'!$K:$K,$B$121&\" \"&$B122)","v":0},{"$f":"H13-SUMIFS('Banco de Dados'!H:H,'Banco de Dados'!$A:$A,Auxiliar!$A$7,'Banco de Dados'!$K:$K,$B$121&\" \"&$B122)","v":0},{"$f":"I13-SUMIFS('Banco de Dados'!I:I,'Banco de Dados'!$A:$A,Auxiliar!$A$7,'Banco de Dados'!$K:$K,$B$121&\" \"&$B122)","v":0},0]
[null,{"$f":"\"- \"&Configurações!$E$14","v":"- App 2"},{"$f":"C14-SUMIFS('Banco de Dados'!C:C,'Banco de Dados'!$A:$A,Auxiliar!$A$7,'Banco de Dados'!$K:$K,$B$121&\" \"&$B123)","v":{"$error":"#VALUE!"}},{"$f":"D14-SUMIFS('Banco de Dados'!D:D,'Banco de Dados'!$A:$A,Auxiliar!$A$7,'Banco de Dados'!$K:$K,$B$121&\" \"&$B123)","v":0},{"$f":"E14-SUMIFS('Banco de Dados'!E:E,'Banco de Dados'!$A:$A,Auxiliar!$A$7,'Banco de Dados'!$K:$K,$B$121&\" \"&$B123)","v":0},{"$f":"F14-SUMIFS('Banco de Dados'!F:F,'Banco de Dados'!$A:$A,Auxiliar!$A$7,'Banco de Dados'!$K:$K,$B$121&\" \"&$B123)","v":0},{"$f":"G14-SUMIFS('Banco de Dados'!G:G,'Banco de Dados'!$A:$A,Auxiliar!$A$7,'Banco de Dados'!$K:$K,$B$121&\" \"&$B123)","v":0},{"$f":"H14-SUMIFS('Banco de Dados'!H:H,'Banco de Dados'!$A:$A,Auxiliar!$A$7,'Banco de Dados'!$K:$K,$B$121&\" \"&$B123)","v":0},{"$f":"I14-SUMIFS('Banco de Dados'!I:I,'Banco de Dados'!$A:$A,Auxiliar!$A$7,'Banco de Dados'!$K:$K,$B$121&\" \"&$B123)","v":0},{"$error":"#VALUE!"}]
[null,{"$f":"\"- \"&Configurações!$E$15","v":"- App 3"},{"$f":"C15-SUMIFS('Banco de Dados'!C:C,'Banco de Dados'!$A:$A,Auxiliar!$A$7,'Banco de Dados'!$K:$K,$B$121&\" \"&$B124)","v":{"$error":"#VALUE!"}},{"$f":"D15-SUMIFS('Banco de Dados'!D:D,'Banco de Dados'!$A:$A,Auxiliar!$A$7,'Banco de Dados'!$K:$K,$B$121&\" \"&$B124)","v":0},{"$f":"E15-SUMIFS('Banco de Dados'!E:E,'Banco de Dados'!$A:$A,Auxiliar!$A$7,'Banco de Dados'!$K:$K,$B$121&\" \"&$B124)","v":0},{"$f":"F15-SUMIFS('Banco de Dados'!F:F,'Banco de Dados'!$A:$A,Auxiliar!$A$7,'Banco de Dados'!$K:$K,$B$121&\" \"&$B124)","v":0},{"$f":"G15-SUMIFS('Banco de Dados'!G:G,'Banco de Dados'!$A:$A,Auxiliar!$A$7,'Banco de Dados'!$K:$K,$B$121&\" \"&$B124)","v":0},{"$f":"H15-SUMIFS('Banco de Dados'!H:H,'Banco de Dados'!$A:$A,Auxiliar!$A$7,'Banco de Dados'!$K:$K,$B$121&\" \"&$B124)","v":0},{"$f":"I15-SUMIFS('Banco de Dados'!I:I,'Banco de Dados'!$A:$A,Auxiliar!$A$7,'Banco de Dados'!$K:$K,$B$121&\" \"&$B124)","v":0},{"$error":"#VALUE!"}]
[null,"Outros Incentivos",{"$f":"ROUND(C16-SUMIFS('Banco de Dados'!C:C,'Banco de Dados'!$A:$A,Auxiliar!$A$7,'Banco de Dados'!$B:$B,$B125),2)","v":0},{"$f":"ROUND(D16-SUMIFS('Banco de Dados'!D:D,'Banco de Dados'!$A:$A,Auxiliar!$A$7,'Banco de Dados'!$B:$B,$B125),2)","v":0},{"$f":"ROUND(E16-SUMIFS('Banco de Dados'!E:E,'Banco de Dados'!$A:$A,Auxiliar!$A$7,'Banco de Dados'!$B:$B,$B125),2)","v":0},{"$f":"ROUND(F16-SUMIFS('Banco de Dados'!F:F,'Banco de Dados'!$A:$A,Auxiliar!$A$7,'Banco de Dados'!$B:$B,$B125),2)","v":0},{"$f":"ROUND(G16-SUMIFS('Banco de Dados'!G:G,'Banco de Dados'!$A:$A,Auxiliar!$A$7,'Banco de Dados'!$B:$B,$B125),2)","v":0},{"$f":"ROUND(H16-SUMIFS('Banco de Dados'!H:H,'Banco de Dados'!$A:$A,Auxiliar!$A$7,'Banco de Dados'!$B:$B,$B125),2)","v":0},{"$f":"ROUND(I16-SUMIFS('Banco de Dados'!I:I,'Banco de Dados'!$A:$A,Auxiliar!$A$7,'Banco de Dados'!$B:$B,$B125),2)","v":0},0]
[null,"TOTAL DE GANHOS",{"$f":"SUM(C125,C121,C117)","v":{"$error":"#VALUE!"}},{"$f":"SUM(D125,D121,D117)","v":0},{"$f":"SUM(E125,E121,E117)","v":0},{"$f":"SUM(F125,F121,F117)","v":0},{"$f":"SUM(G125,G121,G117)","v":0},{"$f":"SUM(H125,H121,H117)","v":0},{"$f":"SUM(I125,I121,I117)","v":0},{"$error":"#VALUE!"}]
[null,"Quilometros rodados",{"$f":"C18-SUMIFS('Banco de Dados'!C:C,'Banco de Dados'!$A:$A,Auxiliar!$A$7,'Banco de Dados'!$B:$B,$B127)","v":0},{"$f":"D18-SUMIFS('Banco de Dados'!D:D,'Banco de Dados'!$A:$A,Auxiliar!$A$7,'Banco de Dados'!$B:$B,$B127)","v":0},{"$f":"E18-SUMIFS('Banco de Dados'!E:E,'Banco de Dados'!$A:$A,Auxiliar!$A$7,'Banco de Dados'!$B:$B,$B127)","v":0},{"$f":"F18-SUMIFS('Banco de Dados'!F:F,'Banco de Dados'!$A:$A,Auxiliar!$A$7,'Banco de Dados'!$B:$B,$B127)","v":0},{"$f":"G18-SUMIFS('Banco de Dados'!G:G,'Banco de Dados'!$A:$A,Auxiliar!$A$7,'Banco de Dados'!$B:$B,$B127)","v":0},{"$f":"H18-SUMIFS('Banco de Dados'!H:H,'Banco de Dados'!$A:$A,Auxiliar!$A$7,'Banco de Dados'!$B:$B,$B127)","v":0},{"$f":"I18-SUMIFS('Banco de Dados'!I:I,'Banco de Dados'!$A:$A,Auxiliar!$A$7,'Banco de Dados'!$B:$B,$B127)","v":0},0]
[null,"Tempo online",{"$f":"SUM(C129:C131)","v":{"$error":"#VALUE!"}},{"$f":"SUM(D129:D131)","v":0},0,0,0,0,0,{"$error":"#VALUE!"}]
[null,{"$f":"\"- \"&Configurações!$E$13","v":"- Uber"},{"$f":"C20-SUMIFS('Banco de Dados'!C:C,'Banco de Dados'!$A:$A,Auxiliar!$A$7,'Banco de Dados'!$K:$K,$B$128&\" \"&$B129)","v":0},{"$f":"D20-SUMIFS('Banco de Dados'!D:D,'Banco de Dados'!$A:$A,Auxiliar!$A$7,'Banco de Dados'!$K:$K,$B$128&\" \"&$B129)","v":0},{"$f":"E20-SUMIFS('Banco de Dados'!E:E,'Banco de Dados'!$A:$A,Auxiliar!$A$7,'Banco de Dados'!$K:$K,$B$128&\" \"&$B129)","v":0},{"$f":"F20-SUMIFS('Banco de Dados'!F:F,'Banco de Dados'!$A:$A,Auxiliar!$A$7,'Banco de Dados'!$K:$K,$B$128&\" \"&$B129)","v":0},{"$f":"G20-SUMIFS('Banco de Dados'!G:G,'Banco de Dados'!$A:$A,Auxiliar!$A$7,'Banco de Dados'!$K:$K,$B$128&\" \"&$B129)","v":0},{"$f":"H20-SUMIFS('Banco de Dados'!H:H,'Banco de Dados'!$A:$A,Auxiliar!$A$7,'Banco de Dados'!$K:$K,$B$128&\" \"&$B129)","v":0},{"$f":"I20-SUMIFS('Banco de Dados'!I:I,'Banco de Dados'!$A:$A,Auxiliar!$A$7,'Banco de Dados'!$K:$K,$B$128&\" \"&$B129)","v":0},0]
[null,{"$f":"\"- \"&Configurações!$E$14","v":"- App 2"},{"$f":"C21-SUMIFS('Banco de Dados'!C:C,'Banco de Dados'!$A:$A,Auxiliar!$A$7,'Banco de Dados'!$K:$K,$B$128&\" \"&$B130)","v":{"$error":"#VALUE!"}},{"$f":"D21-SUMIFS('Banco de Dados'!D:D,'Banco de Dados'!$A:$A,Auxiliar!$A$7,'Banco de Dados'!$K:$K,$B$128&\" \"&$B130)","v":0},{"$f":"E21-SUMIFS('Banco de Dados'!E:E,'Banco de Dados'!$A:$A,Auxiliar!$A$7,'Banco de Dados'!$K:$K,$B$128&\" \"&$B130)","v":0},{"$f":"F21-SUMIFS('Banco de Dados'!F:F,'Banco de Dados'!$A:$A,Auxiliar!$A$7,'Banco de Dados'!$K:$K,$B$128&\" \"&$B130)","v":0},{"$f":"G21-SUMIFS('Banco de Dados'!G:G,'Banco de Dados'!$A:$A,Auxiliar!$A$7,'Banco de Dados'!$K:$K,$B$128&\" \"&$B130)","v":0},{"$f":"H21-SUMIFS('Banco de Dados'!H:H,'Banco de Dados'!$A:$A,Auxiliar!$A$7,'Banco de Dados'!$K:$K,$B$128&\" \"&$B130)","v":0},{"$f":"I21-SUMIFS('Banco de Dados'!I:I,'Banco de Dados'!$A:$A,Auxiliar!$A$7,'Banco de Dados'!$K:$K,$B$128&\" \"&$B130)","v":0},{"$error":"#VALUE!"}]
[null,{"$f":"\"- \"&Configurações!$E$15","v":"- App 3"},{"$f":"C22-SUMIFS('Banco de Dados'!C:C,'Banco de Dados'!$A:$A,Auxiliar!$A$7,'Banco de Dados'!$K:$K,$B$128&\" \"&$B131)","v":{"$error":"#VALUE!"}},{"$f":"D22-SUMIFS('Banco de Dados'!D:D,'Banco de Dados'!$A:$A,Auxiliar!$A$7,'Banco de Dados'!$K:$K,$B$128&\" \"&$B131)","v":0},{"$f":"E22-SUMIFS('Banco de Dados'!E:E,'Banco de Dados'!$A:$A,Auxiliar!$A$7,'Banco de Dados'!$K:$K,$B$128&\" \"&$B131)","v":0},{"$f":"F22-SUMIFS('Banco de Dados'!F:F,'Banco de Dados'!$A:$A,Auxiliar!$A$7,'Banco de Dados'!$K:$K,$B$128&\" \"&$B131)","v":0},{"$f":"G22-SUMIFS('Banco de Dados'!G:G,'Banco de Dados'!$A:$A,Auxiliar!$A$7,'Banco de Dados'!$K:$K,$B$128&\" \"&$B131)","v":0},{"$f":"H22-SUMIFS('Banco de Dados'!H:H,'Banco de Dados'!$A:$A,Auxiliar!$A$7,'Banco de Dados'!$K:$K,$B$128&\" \"&$B131)","v":0},{"$f":"I22-SUMIFS('Banco de Dados'!I:I,'Banco de Dados'!$A:$A,Auxiliar!$A$7,'Banco de Dados'!$K:$K,$B$128&\" \"&$B131)","v":0},{"$error":"#VALUE!"}]
[null,"Nº de viagens",{"$f":"SUM(C133:C135)","v":{"$error":"#VALUE!"}},{"$f":"SUM(D133:D135)","v":0},0,0,0,0,0,{"$error":"#VALUE!"}]
[null,{"$f":"\"- \"&Configurações!$E$13","v":"- Uber"},{"$f":"C24-SUMIFS('Banco de Dados'!C:C,'Banco de Dados'!$A:$A,Auxiliar!$A$7,'Banco de Dados'!$K:$K,$B$132&\" \"&$B133)","v":0},{"$f":"D24-SUMIFS('Banco de Dados'!D:D,'Banco de Dados'!$A:$A,Auxiliar!$A$7,'Banco de Dados'!$K:$K,$B$132&\" \"&$B133)","v":0},{"$f":"E24-SUMIFS('Banco de Dados'!E:E,'Banco de Dados'!$A:$A,Auxiliar!$A$7,'Banco de Dados'!$K:$K,$B$132&\" \"&$B133)","v":0},{"$f":"F24-SUMIFS('Banco de Dados'!F:F,'Banco de Dados'!$A:$A,Auxiliar!$A$7,'Banco de Dados'!$K:$K,$B$132&\" \"&$B133)","v":0},{"$f":"G24-SUMIFS('Banco de Dados'!G:G,'Banco de Dados'!$A:$A,Auxiliar!$A$7,'Banco de Dados'!$K:$K,$B$132&\" \"&$B133)","v":0},{"$f":"H24-SUMIFS('Banco de Dados'!H:H,'Banco de Dados'!$A:$A,Auxiliar!$A$7,'Banco de Dados'!$K:$K,$B$132&\" \"&$B133)","v":0},{"$f":"I24-SUMIFS('Banco de Dados'!I:I,'Banco de Dados'!$A:$A,Auxiliar!$A$7,'Banco de Dados'!$K:$K,$B$132&\" \"&$B133)","v":0},0]
[null,{"$f":"\"- \"&Configurações!$E$14","v":"- App 2"},{"$f":"C25-SUMIFS('Banco de Dados'!C:C,'Banco de Dados'!$A:$A,Auxiliar!$A$7,'Banco de Dados'!$K:$K,$B$132&\" \"&$B134)","v":{"$error":"#VALUE!"}},{"$f":"D25-SUMIFS('Banco de Dados'!D:D,'Banco de Dados'!$A:$A,Auxiliar!$A$7,'Banco de Dados'!$K:$K,$B$132&\" \"&$B134)","v":0},{"$f":"E25-SUMIFS('Banco de Dados'!E:E,'Banco de Dados'!$A:$A,Auxiliar!$A$7,'Banco de Dados'!$K:$K,$B$132&\" \"&$B134)","v":0},{"$f":"F25-SUMIFS('Banco de Dados'!F:F,'Banco de Dados'!$A:$A,Auxiliar!$A$7,'Banco de Dados'!$K:$K,$B$132&\" \"&$B134)","v":0},{"$f":"G25-SUMIFS('Banco de Dados'!G:G,'Banco de Dados'!$A:$A,Auxiliar!$A$7,'Banco de Dados'!$K:$K,$B$132&\" \"&$B134)","v":0},{"$f":"H25-SUMIFS('Banco de Dados'!H:H,'Banco de Dados'!$A:$A,Auxiliar!$A$7,'Banco de Dados'!$K:$K,$B$132&\" \"&$B134)","v":0},{"$f":"I25-SUMIFS('Banco de Dados'!I:I,'Banco de Dados'!$A:$A,Auxiliar!$A$7,'Banco de Dados'!$K:$K,$B$132&\" \"&$B134)","v":0},{"$error":"#VALUE!"}]
[null,{"$f":"\"- \"&Configurações!$E$15","v":"- App 3"},{"$f":"C26-SUMIFS('Banco de Dados'!C:C,'Banco de Dados'!$A:$A,Auxiliar!$A$7,'Banco de Dados'!$K:$K,$B$132&\" \"&$B135)","v":{"$error":"#VALUE!"}},{"$f":"D26-SUMIFS('Banco de Dados'!D:D,'Banco de Dados'!$A:$A,Auxiliar!$A$7,'Banco de Dados'!$K:$K,$B$132&\" \"&$B135)","v":0},{"$f":"E26-SUMIFS('Banco de Dados'!E:E,'Banco de Dados'!$A:$A,Auxiliar!$A$7,'Banco de Dados'!$K:$K,$B$132&\" \"&$B135)","v":0},{"$f":"F26-SUMIFS('Banco de Dados'!F:F,'Banco de Dados'!$A:$A,Auxiliar!$A$7,'Banco de Dados'!$K:$K,$B$132&\" \"&$B135)","v":0},{"$f":"G26-SUMIFS('Banco de Dados'!G:G,'Banco de Dados'!$A:$A,Auxiliar!$A$7,'Banco de Dados'!$K:$K,$B$132&\" \"&$B135)","v":0},{"$f":"H26-SUMIFS('Banco de Dados'!H:H,'Banco de Dados'!$A:$A,Auxiliar!$A$7,'Banco de Dados'!$K:$K,$B$132&\" \"&$B135)","v":0},{"$f":"I26-SUMIFS('Banco de Dados'!I:I,'Banco de Dados'!$A:$A,Auxiliar!$A$7,'Banco de Dados'!$K:$K,$B$132&\" \"&$B135)","v":0},{"$error":"#VALUE!"}]
[null,"Custos com combustível",{"$f":"C27-SUMIFS('Banco de Dados'!C:C,'Banco de Dados'!$A:$A,Auxiliar!$A$7,'Banco de Dados'!$B:$B,$B136)","v":0},{"$f":"D27-SUMIFS('Banco de Dados'!D:D,'Banco de Dados'!$A:$A,Auxiliar!$A$7,'Banco de Dados'!$B:$B,$B136)","v":0},{"$f":"E27-SUMIFS('Banco de Dados'!E:E,'Banco de Dados'!$A:$A,Auxiliar!$A$7,'Banco de Dados'!$B:$B,$B136)","v":0},{"$f":"F27-SUMIFS('Banco de Dados'!F:F,'Banco de Dados'!$A:$A,Auxiliar!$A$7,'Banco de Dados'!$B:$B,$B136)","v":0},{"$f":"G27-SUMIFS('Banco de Dados'!G:G,'Banco de Dados'!$A:$A,Auxiliar!$A$7,'Banco de Dados'!$B:$B,$B136)","v":0},{"$f":"H27-SUMIFS('Banco de Dados'!H:H,'Banco de Dados'!$A:$A,Auxiliar!$A$7,'Banco de Dados'!$B:$B,$B136)","v":0},{"$f":"I27-SUMIFS('Banco de Dados'!I:I,'Banco de Dados'!$A:$A,Auxiliar!$A$7,'Banco de Dados'!$B:$B,$B136)","v":0},0]
[null,"Custos com água",{"$f":"C28-SUMIFS('Banco de Dados'!C:C,'Banco de Dados'!$A:$A,Auxiliar!$A$7,'Banco de Dados'!$B:$B,$B137)","v":0},{"$f":"D28-SUMIFS('Banco de Dados'!D:D,'Banco de Dados'!$A:$A,Auxiliar!$A$7,'Banco de Dados'!$B:$B,$B137)","v":0},{"$f":"E28-SUMIFS('Banco de Dados'!E:E,'Banco de Dados'!$A:$A,Auxiliar!$A$7,'Banco de Dados'!$B:$B,$B137)","v":0},{"$f":"F28-SUMIFS('Banco de Dados'!F:F,'Banco de Dados'!$A:$A,Auxiliar!$A$7,'Banco de Dados'!$B:$B,$B137)","v":0},{"$f":"G28-SUMIFS('Banco de Dados'!G:G,'Banco de Dados'!$A:$A,Auxiliar!$A$7,'Banco de Dados'!$B:$B,$B137)","v":0},{"$f":"H28-SUMIFS('Banco de Dados'!H:H,'Banco de Dados'!$A:$A,Auxiliar!$A$7,'Banco de Dados'!$B:$B,$B137)","v":0},{"$f":"I28-SUMIFS('Banco de Dados'!I:I,'Banco de Dados'!$A:$A,Auxiliar!$A$7,'Banco de Dados'!$B:$B,$B137)","v":0},0]
[null,"Custos com bala",{"$f":"C29-SUMIFS('Banco de Dados'!C:C,'Banco de Dados'!$A:$A,Auxiliar!$A$7,'Banco de Dados'!$B:$B,$B138)","v":0},{"$f":"D29-SUMIFS('Banco de Dados'!D:D,'Banco de Dados'!$A:$A,Auxiliar!$A$7,'Banco de Dados'!$B:$B,$B138)","v":0},{"$f":"E29-SUMIFS('Banco de Dados'!E:E,'Banco de Dados'!$A:$A,Auxiliar!$A$7,'Banco de Dados'!$B:$B,$B138)","v":0},{"$f":"F29-SUMIFS('Banco de Dados'!F:F,'Banco de Dados'!$A:$A,Auxiliar!$A$7,'Banco de Dados'!$B:$B,$B138)","v":0},{"$f":"G29-SUMIFS('Banco de Dados'!G:G,'Banco de Dados'!$A:$A,Auxiliar!$A$7,'Banco de Dados'!$B:$B,$B138)","v":0},{"$f":"H29-SUMIFS('Banco de Dados'!H:H,'Banco de Dados'!$A:$A,Auxiliar!$A$7,'Banco de Dados'!$B:$B,$B138)","v":0},{"$f":"I29-SUMIFS('Banco de Dados'!I:I,'Banco de Dados'!$A:$A,Auxiliar!$A$7,'Banco de Dados'!$B:$B,$B138)","v":0},0]
[null,"Outros custos",{"$f":"C30-SUMIFS('Banco de Dados'!C:C,'Banco de Dados'!$A:$A,Auxiliar!$A$7,'Banco de Dados'!$B:$B,$B139)","v":0},{"$f":"D30-SUMIFS('Banco de Dados'!D:D,'Banco de Dados'!$A:$A,Auxiliar!$A$7,'Banco de Dados'!$B:$B,$B139)","v":0},{"$f":"E30-SUMIFS('Banco de Dados'!E:E,'Banco de Dados'!$A:$A,Auxiliar!$A$7,'Banco de Dados'!$B:$B,$B139)","v":0},{"$f":"F30-SUMIFS('Banco de Dados'!F:F,'Banco de Dados'!$A:$A,Auxiliar!$A$7,'Banco de Dados'!$B:$B,$B139)","v":0},{"$f":"G30-SUMIFS('Banco de Dados'!G:G,'Banco de Dados'!$A:$A,Auxiliar!$A$7,'Banco de Dados'!$B:$B,$B139)","v":0},{"$f":"H30-SUMIFS('Banco de Dados'!H:H,'Banco de Dados'!$A:$A,Auxiliar!$A$7,'Banco de Dados'!$B:$B,$B139)","v":0},{"$f":"I30-SUMIFS('Banco de Dados'!I:I,'Banco de Dados'!$A:$A,Auxiliar!$A$7,'Banco de Dados'!$B:$B,$B139)","v":0},0]
[null,"TOTAL DE CUSTOS",{"$f":"SUM(C136:C139)","v":0},{"$f":"SUM(D136:D139)","v":0},0,0,0,0,0,0]
[null,"Gastos com alimentação",{"$f":"C32-SUMIFS('Banco de Dados'!C:C,'Banco de Dados'!$A:$A,Auxiliar!$A$7,'Banco de Dados'!$B:$B,$B141)","v":0},{"$f":"D32-SUMIFS('Banco de Dados'!D:D,'Banco de Dados'!$A:$A,Auxiliar!$A$7,'Banco de Dados'!$B:$B,$B141)","v":0},{"$f":"E32-SUMIFS('Banco de Dados'!E:E,'Banco de Dados'!$A:$A,Auxiliar!$A$7,'Banco de Dados'!$B:$B,$B141)","v":0},{"$f":"F32-SUMIFS('Banco de Dados'!F:F,'Banco de Dados'!$A:$A,Auxiliar!$A$7,'Banco de Dados'!$B:$B,$B141)","v":0},{"$f":"G32-SUMIFS('Banco de Dados'!G:G,'Banco de Dados'!$A:$A,Auxiliar!$A$7,'Banco de Dados'!$B:$B,$B141)","v":0},{"$f":"H32-SUMIFS('Banco de Dados'!H:H,'Banco de Dados'!$A:$A,Auxiliar!$A$7,'Banco de Dados'!$B:$B,$B141)","v":0},{"$f":"I32-SUMIFS('Banco de Dados'!I:I,'Banco de Dados'!$A:$A,Auxiliar!$A$7,'Banco de Dados'!$B:$B,$B141)","v":0},0]
[null,"Estacionamento",{"$f":"C33-SUMIFS('Banco de Dados'!C:C,'Banco de Dados'!$A:$A,Auxiliar!$A$7,'Banco de Dados'!$B:$B,$B142)","v":{"$error":"#VALUE!"}},{"$f":"D33-SUMIFS('Banco de Dados'!D:D,'Banco de Dados'!$A:$A,Auxiliar!$A$7,'Banco de Dados'!$B:$B,$B142)","v":0},{"$f":"E33-SUMIFS('Banco de Dados'!E:E,'Banco de Dados'!$A:$A,Auxiliar!$A$7,'Banco de Dados'!$B:$B,$B142)","v":0},{"$f":"F33-SUMIFS('Banco de Dados'!F:F,'Banco de Dados'!$A:$A,Auxiliar!$A$7,'Banco de Dados'!$B:$B,$B142)","v":0},{"$f":"G33-SUMIFS('Banco de Dados'!G:G,'Banco de Dados'!$A:$A,Auxiliar!$A$7,'Banco de Dados'!$B:$B,$B142)","v":0},{"$f":"H33-SUMIFS('Banco de Dados'!H:H,'Banco de Dados'!$A:$A,Auxiliar!$A$7,'Banco de Dados'!$B:$B,$B142)","v":0},{"$f":"I33-SUMIFS('Banco de Dados'!I:I,'Banco de Dados'!$A:$A,Auxiliar!$A$7,'Banco de Dados'!$B:$B,$B142)","v":0},{"$error":"#VALUE!"}]
[null,"Lavagem",{"$f":"C34-SUMIFS('Banco de Dados'!C:C,'Banco de Dados'!$A:$A,Auxiliar!$A$7,'Banco de Dados'!$B:$B,$B143)","v":{"$error":"#VALUE!"}},{"$f":"D34-SUMIFS('Banco de Dados'!D:D,'Banco de Dados'!$A:$A,Auxiliar!$A$7,'Banco de Dados'!$B:$B,$B143)","v":0},{"$f":"E34-SUMIFS('Banco de Dados'!E:E,'Banco de Dados'!$A:$A,Auxiliar!$A$7,'Banco de Dados'!$B:$B,$B143)","v":0},{"$f":"F34-SUMIFS('Banco de Dados'!F:F,'Banco de Dados'!$A:$A,Auxiliar!$A$7,'Banco de Dados'!$B:$B,$B143)","v":0},{"$f":"G34-SUMIFS('Banco de Dados'!G:G,'Banco de Dados'!$A:$A,Auxiliar!$A$7,'Banco de Dados'!$B:$B,$B143)","v":0},{"$f":"H34-SUMIFS('Banco de Dados'!H:H,'Banco de Dados'!$A:$A,Auxiliar!$A$7,'Banco de Dados'!$B:$B,$B143)","v":0},{"$f":"I34-SUMIFS('Banco de Dados'!I:I,'Banco de Dados'!$A:$A,Auxiliar!$A$7,'Banco de Dados'!$B:$B,$B143)","v":0},{"$error":"#VALUE!"}]
[null,"Multa",{"$f":"C35-SUMIFS('Banco de Dados'!C:C,'Banco de Dados'!$A:$A,Auxiliar!$A$7,'Banco de Dados'!$B:$B,$B144)","v":{"$error":"#VALUE!"}},{"$f":"D35-SUMIFS('Banco de Dados'!D:D,'Banco de Dados'!$A:$A,Auxiliar!$A$7,'Banco de Dados'!$B:$B,$B144)","v":0},{"$f":"E35-SUMIFS('Banco de Dados'!E:E,'Banco de Dados'!$A:$A,Auxiliar!$A$7,'Banco de Dados'!$B:$B,$B144)","v":0},{"$f":"F35-SUMIFS('Banco de Dados'!F:F,'Banco de Dados'!$A:$A,Auxiliar!$A$7,'Banco de Dados'!$B:$B,$B144)","v":0},{"$f":"G35-SUMIFS('Banco de Dados'!G:G,'Banco de Dados'!$A:$A,Auxiliar!$A$7,'Banco de Dados'!$B:$B,$B144)","v":0},{"$f":"H35-SUMIFS('Banco de Dados'!H:H,'Banco de Dados'!$A:$A,Auxiliar!$A$7,'Banco de Dados'!$B:$B,$B144)","v":0},{"$f":"I35-SUMIFS('Banco de Dados'!I:I,'Banco de Dados'!$A:$A,Auxiliar!$A$7,'Banco de Dados'!$B:$B,$B144)","v":0},{"$error":"#VALUE!"}]
[null,"Pedágio",{"$f":"C36-SUMIFS('Banco de Dados'!C:C,'Banco de Dados'!$A:$A,Auxiliar!$A$7,'Banco de Dados'!$B:$B,$B145)","v":{"$error":"#VALUE!"}},{"$f":"D36-SUMIFS('Banco de Dados'!D:D,'Banco de Dados'!$A:$A,Auxiliar!$A$7,'Banco de Dados'!$B:$B,$B145)","v":0},{"$f":"E36-SUMIFS('Banco de Dados'!E:E,'Banco de Dados'!$A:$A,Auxiliar!$A$7,'Banco de Dados'!$B:$B,$B145)","v":0},{"$f":"F36-SUMIFS('Banco de Dados'!F:F,'Banco de Dados'!$A:$A,Auxiliar!$A$7,'Banco de Dados'!$B:$B,$B145)","v":0},{"$f":"G36-SUMIFS('Banco de Dados'!G:G,'Banco de Dados'!$A:$A,Auxiliar!$A$7,'Banco de Dados'!$B:$B,$B145)","v":0},{"$f":"H36-SUMIFS('Banco de Dados'!H:H,'Banco de Dados'!$A:$A,Auxiliar!$A$7,'Banco de Dados'!$B:$B,$B145)","v":0},{"$f":"I36-SUMIFS('Banco de Dados'!I:I,'Banco de Dados'!$A:$A,Auxiliar!$A$7,'Banco de Dados'!$B:$B,$B145)","v":0},{"$error":"#VALUE!"}]
[null,"Outras despesas",{"$f":"C37-SUMIFS('Banco de Dados'!C:C,'Banco de Dados'!$A:$A,Auxiliar!$A$7,'Banco de Dados'!$B:$B,$B146)","v":0},{"$f":"D37-SUMIFS('Banco de Dados'!D:D,'Banco de Dados'!$A:$A,Auxiliar!$A$7,'Banco de Dados'!$B:$B,$B146)","v":0},{"$f":"E37-SUMIFS('Banco de Dados'!E:E,'Banco de Dados'!$A:$A,Auxiliar!$A$7,'Banco de Dados'!$B:$B,$B146)","v":0},{"$f":"F37-SUMIFS('Banco de Dados'!F:F,'Banco de Dados'!$A:$A,Auxiliar!$A$7,'Banco de Dados'!$B:$B,$B146)","v":0},{"$f":"G37-SUMIFS('Banco de Dados'!G:G,'Banco de Dados'!$A:$A,Auxiliar!$A$7,'Banco de Dados'!$B:$B,$B146)","v":0},{"$f":"H37-SUMIFS('Banco de Dados'!H:H,'Banco de Dados'!$A:$A,Auxiliar!$A$7,'Banco de Dados'!$B:$B,$B146)","v":0},{"$f":"I37-SUMIFS('Banco de Dados'!I:I,'Banco de Dados'!$A:$A,Auxiliar!$A$7,'Banco de Dados'!$B:$B,$B146)","v":0},0]
[null,"TOTAL DE DESPESAS",{"$f":"SUM(C141:C146)","v":{"$error":"#VALUE!"}},{"$f":"SUM(D141:D146)","v":0},0,0,0,0,0,{"$error":"#VALUE!"}]
[null,"Resultado Bruto",{"$f":"C126-C140-C147","v":{"$error":"#VALUE!"}},{"$f":"D126-D140-D147","v":0},0,0,0,0,0,{"$error":"#VALUE!"}]
[]
[]
[]
[]
[]
[]
[]
[]
[]
[]
[]
[]
[]
[]
[]
[null,"Semana Atual x Média Histórica","Seg","Ter","Qua","Qui","Sex","Sáb","Dom","Total"]
[]
[null,"Ganhos do dia",{"$f":"C8-C215","v":0},0,0,0,0,0,0,0]
[null,{"$f":"\"- \"&Configurações!$E$13","v":"- Uber"},{"$f":"C9-C216","v":0},0,0,0,0,0,0,0]
[null,{"$f":"\"- \"&Configurações!$E$14","v":"- App 2"},{"$f":"C10-C217","v":{"$error":"#VALUE!"}},0,0,0,0,0,0,0]
[null,{"$f":"\"- \"&Configurações!$E$15","v":"- App 3"},{"$f":"C11-C218","v":{"$error":"#VALUE!"}},0,0,0,0,0,0,0]
[null,"Bônus/Incentivo",{"$f":"C12-C219","v":0},0,0,0,0,0,0,0]
[null,{"$f":"\"- \"&Configurações!$E$13","v":"- Uber"},{"$f":"C13-C220","v":0},0,0,0,0,0,0,0]
[null,{"$f":"\"- \"&Configurações!$E$14","v":"- App 2"},{"$f":"C14-C221","v":{"$error":"#VALUE!"}},0,0,0,0,0,0,0]
[null,{"$f":"\"- \"&Configurações!$E$15","v":"- App 3"},{"$f":"C15-C222","v":{"$error":"#VALUE!"}},0,0,0,0,0,0,0]
[null,"Outros Incentivos",{"$f":"C16-C223","v":0},0,0,0,0,0,0,0]
[null,"TOTAL DE GANHOS",0,0,0,0,0,0,0,0]
[null,"Quilometros rodados",0,0,0,0,0,0,0,0]
[null,"Tempo online",0,0,0,0,0,0,0,0]
[null,{"$f":"\"- \"&Configurações!$E$13","v":"- Uber"},{"$f":"C20-C227","v":0},0,0,0,0,0,0,0]
[null,{"$f":"\"- \"&Configurações!$E$14","v":"- App 2"},{"$f":"C21-C228","v":{"$error":"#VALUE!"}},0,0,0,0,0,0,0]
[null,{"$f":"\"- \"&Configurações!$E$15","v":"- App 3"},{"$f":"C22-C229","v":{"$error":"#VALUE!"}},0,0,0,0,0,0,0]
[null,"Nº de viagens",{"$f":"C23-C230","v":0},0,0,0,0,0,0,0]
[null,{"$f":"\"- \"&Configurações!$E$13","v":"- Uber"},{"$f":"C24-C231","v":0},0,0,0,0,0,0,0]
[null,{"$f":"\"- \"&Configurações!$E$14","v":"- App 2"},{"$f":"C25-C232","v":{"$error":"#VALUE!"}},0,0,0,0,0,0,0]
[null,{"$f":"\"- \"&Configurações!$E$15","v":"- App 3"},{"$f":"C26-C233","v":{"$error":"#VALUE!"}},0,0,0,0,0,0,0]
[null,"Custos com combustível",{"$f":"C27-C234","v":0},0,0,0,0,0,0,0]
[null,"Custos com água",0,0,0,0,0,0,0,0]
[null,"Custos com bala",0,0,0,0,0,0,0,0]
[null,"Outros custos",0,0,0,0,0,0,0,0]
[null,"TOTAL DE CUSTOS",0,0,0,0,0,0,0,0]
[null,"Gastos com alimentação",0,0,0,0,0,0,0,0]
[null,"Estacionamento",{"$error":"#VALUE!"},0,0,0,0,0,0,0]
[null,"Lavagem",{"$error":"#VALUE!"},0,0,0,0,0,0,0]
[null,"Multa",{"$error":"#VALUE!"},0,0,0,0,0,0,0]
[null,"Pedágio",{"$error":"#VALUE!"},0,0,0,0,0,0,0]
[null,"Outras despesas",0,0,0,0,0,0,0,0]
[null,"TOTAL DE DESPESAS",0,0,0,0,0,0,0,0]
[null,"Resultado Bruto",0,0,0,0,0,0,0,0]
[]
[]
[]
[]
[]
[]
[]
[]
[]
[]
[]
[]
[]
[]
[]
[null,"Média histórica","Seg","Ter","Qua","Qui","Sex","Sáb","Dom","Total"]
[]
[null,"Ganhos do dia",{"$f":"SUM(C216:C218)","v":0},{"$f":"SUM(D216:D218)","v":0},0,0,0,0,0,{"$f":"SUM(C215:I215)","v":0}]
[null,{"$f":"\"- \"&Configurações!$E$13","v":"- Uber"},{"$f":"IFERROR(SUMIFS('Banco de Dados'!C:C,'Banco de Dados'!$K:$K,$B$215&\" \"&$B216,'Banco de Dados'!$A:$A,\"<>\"&$C$7)/COUNTIFS('Banco de Dados'!$K:$K,$B$215&\" \"&$B216,'Banco de Dados'!$A:$A,\"<>\"&$C$7),0)","v":0},{"$f":"IFERROR(SUMIFS('Banco de Dados'!D:D,'Banco de Dados'!$K:$K,$B$215&\" \"&$B216,'Banco de Dados'!$A:$A,\"<>\"&$C$7)/COUNTIFS('Banco de Dados'!$K:$K,$B$215&\" \"&$B216,'Banco de Dados'!$A:$A,\"<>\"&$C$7),0)","v":0},{"$f":"IFERROR(SUMIFS('Banco de Dados'!E:E,'Banco de Dados'!$K:$K,$B$215&\" \"&$B216,'Banco de Dados'!$A:$A,\"<>\"&$C$7)/COUNTIFS('Banco de Dados'!$K:$K,$B$215&\" \"&$B216,'Banco de Dados'!$A:$A,\"<>\"&$C$7),0)","v":0},{"$f":"IFERROR(SUMIFS('Banco de Dados'!F:F,'Banco de Dados'!$K:$K,$B$215&\" \"&$B216,'Banco de Dados'!$A:$A,\"<>\"&$C$7)/COUNTIFS('Banco de Dados'!$K:$K,$B$215&\" \"&$B216,'Banco de Dados'!$A:$A,\"<>\"&$C$7),0)","v":0},{"$f":"IFERROR(SUMIFS('Banco de Dados'!G:G,'Banco de Dados'!$K:$K,$B$215&\" \"&$B216,'Banco de Dados'!$A:$A,\"<>\"&$C$7)/COUNTIFS('Banco de Dados'!$K:$K,$B$215&\" \"&$B216,'Banco de Dados'!$A:$A,\"<>\"&$C$7),0)","v":0},{"$f":"IFERROR(SUMIFS('Banco de Dados'!H:H,'Banco de Dados'!$K:$K,$B$215&\" \"&$B216,'Banco de Dados'!$A:$A,\"<>\"&$C$7)/COUNTIFS('Banco de Dados'!$K:$K,$B$215&\" \"&$B216,'Banco de Dados'!$A:$A,\"<>\"&$C$7),0)","v":0},{"$f":"IFERROR(SUMIFS('Banco de Dados'!I:I,'Banco de Dados'!$K:$K,$B$215&\" \"&$B216,'Banco de Dados'!$A:$A,\"<>\"&$C$7)/COUNTIFS('Banco de Dados'!$K:$K,$B$215&\" \"&$B216,'Banco de Dados'!$A:$A,\"<>\"&$C$7),0)","v":0},{"$f":"SUM(C216:I216)","v":0}]
[null,{"$f":"\"- \"&Configurações!$E$14","v":"- App 2"},{"$f":"IFERROR(SUMIFS('Banco de Dados'!C:C,'Banco de Dados'!$K:$K,$B$215&\" \"&$B217,'Banco de Dados'!$A:$A,\"<>\"&$C$7)/COUNTIFS('Banco de Dados'!$K:$K,$B$215&\" \"&$B217,'Banco de Dados'!$A:$A,\"<>\"&$C$7),0)","v":0},{"$f":"IFERROR(SUMIFS('Banco de Dados'!D:D,'Banco de Dados'!$K:$K,$B$215&\" \"&$B217,'Banco de Dados'!$A:$A,\"<>\"&$C$7)/COUNTIFS('Banco de Dados'!$K:$K,$B$215&\" \"&$B217,'Banco de Dados'!$A:$A,\"<>\"&$C$7),0)","v":0},{"$f":"IFERROR(SUMIFS('Banco de Dados'!E:E,'Banco de Dados'!$K:$K,$B$215&\" \"&$B217,'Banco de Dados'!$A:$A,\"<>\"&$C$7)/COUNTIFS('Banco de Dados'!$K:$K,$B$215&\" \"&$B217,'Banco de Dados'!$A:$A,\"<>\"&$C$7),0)","v":0},{"$f":"IFERROR(SUMIFS('Banco de Dados'!F:F,'Banco de Dados'!$K:$K,$B$215&\" \"&$B217,'Banco de Dados'!$A:$A,\"<>\"&$C$7)/COUNTIFS('Banco de Dados'!$K:$K,$B$215&\" \"&$B217,'Banco de Dados'!$A:$A,\"<>\"&$C$7),0)","v":0},{"$f":"IFERROR(SUMIFS('Banco de Dados'!G:G,'Banco de Dados'!$K:$K,$B$215&\" \"&$B217,'Banco de Dados'!$A:$A,\"<>\"&$C$7)/COUNTIFS('Banco de Dados'!$K:$K,$B$215&\" \"&$B217,'Banco de Dados'!$A:$A,\"<>\"&$C$7),0)","v":0},{"$f":"IFERROR(SUMIFS('Banco de Dados'!H:H,'Banco de Dados'!$K:$K,$B$215&\" \"&$B217,'Banco de Dados'!$A:$A,\"<>\"&$C$7)/COUNTIFS('Banco de Dados'!$K:$K,$B$215&\" \"&$B217,'Banco de Dados'!$A:$A,\"<>\"&$C$7),0)","v":0},{"$f":"IFERROR(SUMIFS('Banco de Dados'!I:I,'Banco de Dados'!$K:$K,$B$215&\" \"&$B217,'Banco de Dados'!$A:$A,\"<>\"&$C$7)/COUNTIFS('Banco de Dados'!$K:$K,$B$215&\" \"&$B217,'Banco de Dados'!$A:$A,\"<>\"&$C$7),0)","v":0},0]
[null,{"$f":"\"- \"&Configurações!$E$15","v":"- App 3"},{"$f":"IFERROR(SUMIFS('Banco de Dados'!C:C,'Banco de Dados'!$K:$K,$B$215&\" \"&$B218,'Banco de Dados'!$A:$A,\"<>\"&$C$7)/COUNTIFS('Banco de Dados'!$K:$K,$B$215&\" \"&$B218,'Banco de Dados'!$A:$A,\"<>\"&$C$7),0)","v":0},{"$f":"IFERROR(SUMIFS('Banco de Dados'!D:D,'Banco de Dados'!$K:$K,$B$215&\" \"&$B218,'Banco de Dados'!$A:$A,\"<>\"&$C$7)/COUNTIFS('Banco de Dados'!$K:$K,$B$215&\" \"&$B218,'Banco de Dados'!$A:$A,\"<>\"&$C$7),0)","v":0},{"$f":"IFERROR(SUMIFS('Banco de Dados'!E:E,'Banco de Dados'!$K:$K,$B$215&\" \"&$B218,'Banco de Dados'!$A:$A,\"<>\"&$C$7)/COUNTIFS('Banco de Dados'!$K:$K,$B$215&\" \"&$B218,'Banco de Dados'!$A:$A,\"<>\"&$C$7),0)","v":0},{"$f":"IFERROR(SUMIFS('Banco de Dados'!F:F,'Banco de Dados'!$K:$K,$B$215&\" \"&$B218,'Banco de Dados'!$A:$A,\"<>\"&$C$7)/COUNTIFS('Banco de Dados'!$K:$K,$B$215&\" \"&$B218,'Banco de Dados'!$A:$A,\"<>\"&$C$7),0)","v":0},{"$f":"IFERROR(SUMIFS('Banco de Dados'!G:G,'Banco de Dados'!$K:$K,$B$215&\" \"&$B218,'Banco de Dados'!$A:$A,\"<>\"&$C$7)/COUNTIFS('Banco de Dados'!$K:$K,$B$215&\" \"&$B218,'Banco de Dados'!$A:$A,\"<>\"&$C$7),0)","v":0},{"$f":"IFERROR(SUMIFS('Banco de Dados'!H:H,'Banco de Dados'!$K:$K,$B$215&\" \"&$B218,'Banco de Dados'!$A:$A,\"<>\"&$C$7)/COUNTIFS('Banco de Dados'!$K:$K,$B$215&\" \"&$B218,'Banco de Dados'!$A:$A,\"<>\"&$C$7),0)","v":0},{"$f":"IFERROR(SUMIFS('Banco de Dados'!I:I,'Banco de Dados'!$K:$K,$B$215&\" \"&$B218,'Banco de Dados'!$A:$A,\"<>\"&$C$7)/COUNTIFS('Banco de Dados'!$K:$K,$B$215&\" \"&$B218,'Banco de Dados'!$A:$A,\"<>\"&$C$7),0)","v":0},0]
[null,"Bônus/Incentivo",{"$f":"SUM(C220:C222)","v":0},{"$f":"SUM(D220:D222)","v":0},{"$f":"SUM(E220:E222)","v":0},{"$f":"SUM(F220:F222)","v":0},{"$f":"SUM(G220:G222)","v":0},{"$f":"SUM(H220:H222)","v":0},{"$f":"SUM(I220:I222)","v":0},{"$f":"SUM(C219:I219)","v":0}]
[null,{"$f":"\"- \"&Configurações!$E$13","v":"- Uber"},{"$f":"IFERROR(SUMIFS('Banco de Dados'!C:C,'Banco de Dados'!$K:$K,$B$219&\" \"&$B220,'Banco de Dados'!$A:$A,\"<>\"&$C$7)/COUNTIFS('Banco de Dados'!$K:$K,$B$219&\" \"&$B220,'Banco de Dados'!$A:$A,\"<>\"&$C$7),0)","v":0},{"$f":"IFERROR(SUMIFS('Banco de Dados'!D:D,'Banco de Dados'!$K:$K,$B$219&\" \"&$B220,'Banco de Dados'!$A:$A,\"<>\"&$C$7)/COUNTIFS('Banco de Dados'!$K:$K,$B$219&\" \"&$B220,'Banco de Dados'!$A:$A,\"<>\"&$C$7),0)","v":0},{"$f":"IFERROR(SUMIFS('Banco de Dados'!E:E,'Banco de Dados'!$K:$K,$B$219&\" \"&$B220,'Banco de Dados'!$A:$A,\"<>\"&$C$7)/COUNTIFS('Banco de Dados'!$K:$K,$B$219&\" \"&$B220,'Banco de Dados'!$A:$A,\"<>\"&$C$7),0)","v":0},{"$f":"IFERROR(SUMIFS('Banco de Dados'!F:F,'Banco de Dados'!$K:$K,$B$219&\" \"&$B220,'Banco de Dados'!$A:$A,\"<>\"&$C$7)/COUNTIFS('Banco de Dados'!$K:$K,$B$219&\" \"&$B220,'Banco de Dados'!$A:$A,\"<>\"&$C$7),0)","v":0},{"$f":"IFERROR(SUMIFS('Banco de Dados'!G:G,'Banco de Dados'!$K:$K,$B$219&\" \"&$B220,'Banco de Dados'!$A:$A,\"<>\"&$C$7)/COUNTIFS('Banco de Dados'!$K:$K,$B$219&\" \"&$B220,'Banco de Dados'!$A:$A,\"<>\"&$C$7),0)","v":0},{"$f":"IFERROR(SUMIFS('Banco de Dados'!H:H,'Banco de Dados'!$K:$K,$B$219&\" \"&$B220,'Banco de Dados'!$A:$A,\"<>\"&$C$7)/COUNTIFS('Banco de Dados'!$K:$K,$B$219&\" \"&$B220,'Banco de Dados'!$A:$A,\"<>\"&$C$7),0)","v":0},{"$f":"IFERROR(SUMIFS('Banco de Dados'!I:I,'Banco de Dados'!$K:$K,$B$219&\" \"&$B220,'Banco de Dados'!$A:$A,\"<>\"&$C$7)/COUNTIFS('Banco de Dados'!$K:$K,$B$219&\" \"&$B220,'Banco de Dados'!$A:$A,\"<>\"&$C$7),0)","v":0},0]
[null,{"$f":"\"- \"&Configurações!$E$14","v":"- App 2"},{"$f":"IFERROR(SUMIFS('Banco de Dados'!C:C,'Banco de Dados'!$K:$K,$B$219&\" \"&$B221,'Banco de Dados'!$A:$A,\"<>\"&$C$7)/COUNTIFS('Banco de Dados'!$K:$K,$B$219&\" \"&$B221,'Banco de Dados'!$A:$A,\"<>\"&$C$7),0)","v":0},{"$f":"IFERROR(SUMIFS('Banco de Dados'!D:D,'Banco de Dados'!$K:$K,$B$219&\" \"&$B221,'Banco de Dados'!$A:$A,\"<>\"&$C$7)/COUNTIFS('Banco de Dados'!$K:$K,$B$219&\" \"&$B221,'Banco de Dados'!$A:$A,\"<>\"&$C$7),0)","v":0},{"$f":"IFERROR(SUMIFS('Banco de Dados'!E:E,'Banco de Dados'!$K:$K,$B$219&\" \"&$B221,'Banco de Dados'!$A:$A,\"<>\"&$C$7)/COUNTIFS('Banco de Dados'!$K:$K,$B$219&\" \"&$B221,'Banco de Dados'!$A:$A,\"<>\"&$C$7),0)","v":0},{"$f":"IFERROR(SUMIFS('Banco de Dados'!F:F,'Banco de Dados'!$K:$K,$B$219&\" \"&$B221,'Banco de Dados'!$A:$A,\"<>\"&$C$7)/COUNTIFS('Banco de Dados'!$K:$K,$B$219&\" \"&$B221,'Banco de Dados'!$A:$A,\"<>\"&$C$7),0)","v":0},{"$f":"IFERROR(SUMIFS('Banco de Dados'!G:G,'Banco de Dados'!$K:$K,$B$219&\" \"&$B221,'Banco de Dados'!$A:$A,\"<>\"&$C$7)/COUNTIFS('Banco de Dados'!$K:$K,$B$219&\" \"&$B221,'Banco de Dados'!$A:$A,\"<>\"&$C$7),0)","v":0},{"$f":"IFERROR(SUMIFS('Banco de Dados'!H:H,'Banco de Dados'!$K:$K,$B$219&\" \"&$B221,'Banco de Dados'!$A:$A,\"<>\"&$C$7)/COUNTIFS('Banco de Dados'!$K:$K,$B$219&\" \"&$B221,'Banco de Dados'!$A:$A,\"<>\"&$C$7),0)","v":0},{"$f":"IFERROR(SUMIFS('Banco de Dados'!I:I,'Banco de Dados'!$K:$K,$B$219&\" \"&$B221,'Banco de Dados'!$A:$A,\"<>\"&$C$7)/COUNTIFS('Banco de Dados'!$K:$K,$B$219&\" \"&$B221,'Banco de Dados'!$A:$A,\"<>\"&$C$7),0)","v":0},0]
[null,{"$f":"\"- \"&Configurações!$E$15","v":"- App 3"},{"$f":"IFERROR(SUMIFS('Banco de Dados'!C:C,'Banco de Dados'!$K:$K,$B$219&\" \"&$B222,'Banco de Dados'!$A:$A,\"<>\"&$C$7)/COUNTIFS('Banco de Dados'!$K:$K,$B$219&\" \"&$B222,'Banco de Dados'!$A:$A,\"<>\"&$C$7),0)","v":0},{"$f":"IFERROR(SUMIFS('Banco de Dados'!D:D,'Banco de Dados'!$K:$K,$B$219&\" \"&$B222,'Banco de Dados'!$A:$A,\"<>\"&$C$7)/COUNTIFS('Banco de Dados'!$K:$K,$B$219&\" \"&$B222,'Banco de Dados'!$A:$A,\"<>\"&$C$7),0)","v":0},{"$f":"IFERROR(SUMIFS('Banco de Dados'!E:E,'Banco de Dados'!$K:$K,$B$219&\" \"&$B222,'Banco de Dados'!$A:$A,\"<>\"&$C$7)/COUNTIFS('Banco de Dados'!$K:$K,$B$219&\" \"&$B222,'Banco de Dados'!$A:$A,\"<>\"&$C$7),0)","v":0},{"$f":"IFERROR(SUMIFS('Banco de Dados'!F:F,'Banco de Dados'!$K:$K,$B$219&\" \"&$B222,'Banco de Dados'!$A:$A,\"<>\"&$C$7)/COUNTIFS('Banco de Dados'!$K:$K,$B$219&\" \"&$B222,'Banco de Dados'!$A:$A,\"<>\"&$C$7),0)","v":0},{"$f":"IFERROR(SUMIFS('Banco de Dados'!G:G,'Banco de Dados'!$K:$K,$B$219&\" \"&$B222,'Banco de Dados'!$A:$A,\"<>\"&$C$7)/COUNTIFS('Banco de Dados'!$K:$K,$B$219&\" \"&$B222,'Banco de Dados'!$A:$A,\"<>\"&$C$7),0)","v":0},{"$f":"IFERROR(SUMIFS('Banco de Dados'!H:H,'Banco de Dados'!$K:$K,$B$219&\" \"&$B222,'Banco de Dados'!$A:$A,\"<>\"&$C$7)/COUNTIFS('Banco de Dados'!$K:$K,$B$219&\" \"&$B222,'Banco de Dados'!$A:$A,\"<>\"&$C$7),0)","v":0},{"$f":"IFERROR(SUMIFS('Banco de Dados'!I:I,'Banco de Dados'!$K:$K,$B$219&\" \"&$B222,'Banco de Dados'!$A:$A,\"<>\"&$C$7)/COUNTIFS('Banco de Dados'!$K:$K,$B$219&\" \"&$B222,'Banco de Dados'!$A:$A,\"<>\"&$C$7),0)","v":0},0]
[null,"Outros Incentivos",{"$f":"IFERROR(SUMIFS('Banco de Dados'!C:C,'Banco de Dados'!$B:$B,$B223,'Banco de Dados'!$A:$A,\"<>\"&$C$7)/COUNTIFS('Banco de Dados'!$B:$B,$B223,'Banco de Dados'!$A:$A,\"<>\"&$C$7),0)","v":0},{"$f":"IFERROR(SUMIFS('Banco de Dados'!D:D,'Banco de Dados'!$B:$B,$B223,'Banco de Dados'!$A:$A,\"<>\"&$C$7)/COUNTIFS('Banco de Dados'!$B:$B,$B223,'Banco de Dados'!$A:$A,\"<>\"&$C$7),0)","v":0},{"$f":"IFERROR(SUMIFS('Banco de Dados'!E:E,'Banco de Dados'!$B:$B,$B223,'Banco de Dados'!$A:$A,\"<>\"&$C$7)/COUNTIFS('Banco de Dados'!$B:$B,$B223,'Banco de Dados'!$A:$A,\"<>\"&$C$7),0)","v":0},{"$f":"IFERROR(SUMIFS('Banco de Dados'!F:F,'Banco de Dados'!$B:$B,$B223,'Banco de Dados'!$A:$A,\"<>\"&$C$7)/COUNTIFS('Banco de Dados'!$B:$B,$B223,'Banco de Dados'!$A:$A,\"<>\"&$C$7),0)","v":0},{"$f":"IFERROR(SUMIFS('Banco de Dados'!G:G,'Banco de Dados'!$B:$B,$B223,'Banco de Dados'!$A:$A,\"<>\"&$C$7)/COUNTIFS('Banco de Dados'!$B:$B,$B223,'Banco de Dados'!$A:$A,\"<>\"&$C$7),0)","v":0},{"$f":"IFERROR(SUMIFS('Banco de Dados'!H:H,'Banco de Dados'!$B:$B,$B223,'Banco de Dados'!$A:$A,\"<>\"&$C$7)/COUNTIFS('Banco de Dados'!$B:$B,$B223,'Banco de Dados'!$A:$A,\"<>\"&$C$7),0)","v":0},{"$f":"IFERROR(SUMIFS('Banco de Dados'!I:I,'Banco de Dados'!$B:$B,$B223,'Banco de Dados'!$A:$A,\"<>\"&$C$7)/COUNTIFS('Banco de Dados'!$B:$B,$B223,'Banco de Dados'!$A:$A,\"<>\"&$C$7),0)","v":0},0]
[null,"TOTAL DE GANHOS",{"$f":"SUM(C223,C219,C215)","v":0},{"$f":"SUM(D223,D219,D215)","v":0},0,0,0,0,0,0]
[null,"Quilometros rodados",{"$f":"IFERROR(SUMIFS('Banco de Dados'!C:C,'Banco de Dados'!$B:$B,$B225,'Banco de Dados'!$A:$A,\"<>\"&$C$7)/COUNTIFS('Banco de Dados'!$B:$B,$B225,'Banco de Dados'!$A:$A,\"<>\"&$C$7),0)","v":0},{"$f":"IFERROR(SUMIFS('Banco de Dados'!D:D,'Banco de Dados'!$B:$B,$B225,'Banco de Dados'!$A:$A,\"<>\"&$C$7)/COUNTIFS('Banco de Dados'!$B:$B,$B225,'Banco de Dados'!$A:$A,\"<>\"&$C$7),0)","v":0},{"$f":"IFERROR(SUMIFS('Banco de Dados'!E:E,'Banco de Dados'!$B:$B,$B225,'Banco de Dados'!$A:$A,\"<>\"&$C$7)/COUNTIFS('Banco de Dados'!$B:$B,$B225,'Banco de Dados'!$A:$A,\"<>\"&$C$7),0)","v":0},{"$f":"IFERROR(SUMIFS('Banco de Dados'!F:F,'Banco de Dados'!$B:$B,$B225,'Banco de Dados'!$A:$A,\"<>\"&$C$7)/COUNTIFS('Banco de Dados'!$B:$B,$B225,'Banco de Dados'!$A:$A,\"<>\"&$C$7),0)","v":0},{"$f":"IFERROR(SUMIFS('Banco de Dados'!G:G,'Banco de Dados'!$B:$B,$B225,'Banco de Dados'!$A:$A,\"<>\"&$C$7)/COUNTIFS('Banco de Dados'!$B:$B,$B225,'Banco de Dados'!$A:$A,\"<>\"&$C$7),0)","v":0},{"$f":"IFERROR(SUMIFS('Banco de Dados'!H:H,'Banco de Dados'!$B:$B,$B225,'Banco de Dados'!$A:$A,\"<>\"&$C$7)/COUNTIFS('Banco de Dados'!$B:$B,$B225,'Banco de Dados'!$A:$A,\"<>\"&$C$7),0)","v":0},{"$f":"IFERROR(SUMIFS('Banco de Dados'!I:I,'Banco de Dados'!$B:$B,$B225,'Banco de Dados'!$A:$A,\"<>\"&$C$7)/COUNTIFS('Banco de Dados'!$B:$B,$B225,'Banco de Dados'!$A:$A,\"<>\"&$C$7),0)","v":0},0]
[null,"Tempo online",{"$f":"SUM(C227:C229)","v":0},{"$f":"SUM(D227:D229)","v":0},{"$f":"SUM(E227:E229)","v":0},{"$f":"SUM(F227:F229)","v":0},{"$f":"SUM(G227:G229)","v":0},{"$f":"SUM(H227:H229)","v":0},{"$f":"SUM(I227:I229)","v":0},{"$f":"SUM(C226:I226)","v":0}]
[null,{"$f":"\"- \"&Configurações!$E$13","v":"- Uber"},{"$f":"IFERROR(SUMIFS('Banco de Dados'!C:C,'Banco de Dados'!$K:$K,$B$226&\" \"&$B227,'Banco de Dados'!$A:$A,\"<>\"&$C$7)/COUNTIFS('Banco de Dados'!$K:$K,$B$226&\" \"&$B227,'Banco de Dados'!$A:$A,\"<>\"&$C$7),0)","v":0},{"$f":"IFERROR(SUMIFS('Banco de Dados'!D:D,'Banco de Dados'!$K:$K,$B$226&\" \"&$B227,'Banco de Dados'!$A:$A,\"<>\"&$C$7)/COUNTIFS('Banco de Dados'!$K:$K,$B$226&\" \"&$B227,'Banco de Dados'!$A:$A,\"<>\"&$C$7),0)","v":0},{"$f":"IFERROR(SUMIFS('Banco de Dados'!E:E,'Banco de Dados'!$K:$K,$B$226&\" \"&$B227,'Banco de Dados'!$A:$A,\"<>\"&$C$7)/COUNTIFS('Banco de Dados'!$K:$K,$B$226&\" \"&$B227,'Banco de Dados'!$A:$A,\"<>\"&$C$7),0)","v":0},{"$f":"IFERROR(SUMIFS('Banco de Dados'!F:F,'Banco de Dados'!$K:$K,$B$226&\" \"&$B227,'Banco de Dados'!$A:$A,\"<>\"&$C$7)/COUNTIFS('Banco de Dados'!$K:$K,$B$226&\" \"&$B227,'Banco de Dados'!$A:$A,\"<>\"&$C$7),0)","v":0},{"$f":"IFERROR(SUMIFS('Banco de Dados'!G:G,'Banco de Dados'!$K:$K,$B$226&\" \"&$B227,'Banco de Dados'!$A:$A,\"<>\"&$C$7)/COUNTIFS('Banco de Dados'!$K:$K,$B$226&\" \"&$B227,'Banco de Dados'!$A:$A,\"<>\"&$C$7),0)","v":0},{"$f":"IFERROR(SUMIFS('Banco de Dados'!H:H,'Banco de Dados'!$K:$K,$B$226&\" \"&$B227,'Banco de Dados'!$A:$A,\"<>\"&$C$7)/COUNTIFS('Banco de Dados'!$K:$K,$B$226&\" \"&$B227,'Banco de Dados'!$A:$A,\"<>\"&$C$7),0)","v":0},{"$f":"IFERROR(SUMIFS('Banco de Dados'!I:I,'Banco de Dados'!$K:$K,$B$226&\" \"&$B227,'Banco de Dados'!$A:$A,\"<>\"&$C$7)/COUNTIFS('Banco de Dados'!$K:$K,$B$226&\" \"&$B227,'Banco de Dados'!$A:$A,\"<>\"&$C$7),0)","v":0},0]
[null,{"$f":"\"- \"&Configurações!$E$14","v":"- App 2"},{"$f":"IFERROR(SUMIFS('Banco de Dados'!C:C,'Banco de Dados'!$K:$K,$B$226&\" \"&$B228,'Banco de Dados'!$A:$A,\"<>\"&$C$7)/COUNTIFS('Banco de Dados'!$K:$K,$B$226&\" \"&$B228,'Banco de Dados'!$A:$A,\"<>\"&$C$7),0)","v":0},{"$f":"IFERROR(SUMIFS('Banco de Dados'!D:D,'Banco de Dados'!$K:$K,$B$226&\" \"&$B228,'Banco de Dados'!$A:$A,\"<>\"&$C$7)/COUNTIFS('Banco de Dados'!$K:$K,$B$226&\" \"&$B228,'Banco de Dados'!$A:$A,\"<>\"&$C$7),0)","v":0},{"$f":"IFERROR(SUMIFS('Banco de Dados'!E:E,'Banco de Dados'!$K:$K,$B$226&\" \"&$B228,'Banco de Dados'!$A:$A,\"<>\"&$C$7)/COUNTIFS('Banco de Dados'!$K:$K,$B$226&\" \"&$B228,'Banco de Dados'!$A:$A,\"<>\"&$C$7),0)","v":0},{"$f":"IFERROR(SUMIFS('Banco de Dados'!F:F,'Banco de Dados'!$K:$K,$B$226&\" \"&$B228,'Banco de Dados'!$A:$A,\"<>\"&$C$7)/COUNTIFS('Banco de Dados'!$K:$K,$B$226&\" \"&$B228,'Banco de Dados'!$A:$A,\"<>\"&$C$7),0)","v":0},{"$f":"IFERROR(SUMIFS('Banco de Dados'!G:G,'Banco de Dados'!$K:$K,$B$226&\" \"&$B228,'Banco de Dados'!$A:$A,\"<>\"&$C$7)/COUNTIFS('Banco de Dados'!$K:$K,$B$226&\" \"&$B228,'Banco de Dados'!$A:$A,\"<>\"&$C$7),0)","v":0},{"$f":"IFERROR(SUMIFS('Banco de Dados'!H:H,'Banco de Dados'!$K:$K,$B$226&\" \"&$B228,'Banco de Dados'!$A:$A,\"<>\"&$C$7)/COUNTIFS('Banco de Dados'!$K:$K,$B$226&\" \"&$B228,'Banco de Dados'!$A:$A,\"<>\"&$C$7),0)","v":0},{"$f":"IFERROR(SUMIFS('Banco de Dados'!I:I,'Banco de Dados'!$K:$K,$B$226&\" \"&$B228,'Banco de Dados'!$A:$A,\"<>\"&$C$7)/COUNTIFS('Banco de Dados'!$K:$K,$B$226&\" \"&$B228,'Banco de Dados'!$A:$A,\"<>\"&$C$7),0)","v":0},0]
[null,{"$f":"\"- \"&Configurações!$E$15","v":"- App 3"},{"$f":"IFERROR(SUMIFS('Banco de Dados'!C:C,'Banco de Dados'!$K:$K,$B$226&\" \"&$B229,'Banco de Dados'!$A:$A,\"<>\"&$C$7)/COUNTIFS('Banco de Dados'!$K:$K,$B$226&\" \"&$B229,'Banco de Dados'!$A:$A,\"<>\"&$C$7),0)","v":0},{"$f":"IFERROR(SUMIFS('Banco de Dados'!D:D,'Banco de Dados'!$K:$K,$B$226&\" \"&$B229,'Banco de Dados'!$A:$A,\"<>\"&$C$7)/COUNTIFS('Banco de Dados'!$K:$K,$B$226&\" \"&$B229,'Banco de Dados'!$A:$A,\"<>\"&$C$7),0)","v":0},{"$f":"IFERROR(SUMIFS('Banco de Dados'!E:E,'Banco de Dados'!$K:$K,$B$226&\" \"&$B229,'Banco de Dados'!$A:$A,\"<>\"&$C$7)/COUNTIFS('Banco de Dados'!$K:$K,$B$226&\" \"&$B229,'Banco de Dados'!$A:$A,\"<>\"&$C$7),0)","v":0},{"$f":"IFERROR(SUMIFS('Banco de Dados'!F:F,'Banco de Dados'!$K:$K,$B$226&\" \"&$B229,'Banco de Dados'!$A:$A,\"<>\"&$C$7)/COUNTIFS('Banco de Dados'!$K:$K,$B$226&\" \"&$B229,'Banco de Dados'!$A:$A,\"<>\"&$C$7),0)","v":0},{"$f":"IFERROR(SUMIFS('Banco de Dados'!G:G,'Banco de Dados'!$K:$K,$B$226&\" \"&$B229,'Banco de Dados'!$A:$A,\"<>\"&$C$7)/COUNTIFS('Banco de Dados'!$K:$K,$B$226&\" \"&$B229,'Banco de Dados'!$A:$A,\"<>\"&$C$7),0)","v":0},{"$f":"IFERROR(SUMIFS('Banco de Dados'!H:H,'Banco de Dados'!$K:$K,$B$226&\" \"&$B229,'Banco de Dados'!$A:$A,\"<>\"&$C$7)/COUNTIFS('Banco de Dados'!$K:$K,$B$226&\" \"&$B229,'Banco de Dados'!$A:$A,\"<>\"&$C$7),0)","v":0},{"$f":"IFERROR(SUMIFS('Banco de Dados'!I:I,'Banco de Dados'!$K:$K,$B$226&\" \"&$B229,'Banco de Dados'!$A:$A,\"<>\"&$C$7)/COUNTIFS('Banco de Dados'!$K:$K,$B$226&\" \"&$B229,'Banco de Dados'!$A:$A,\"<>\"&$C$7),0)","v":0},0]
[null,"Nº de viagens",{"$f":"SUM(C231:C233)","v":0},{"$f":"SUM(D231:D233)","v":0},{"$f":"SUM(E231:E233)","v":0},{"$f":"SUM(F231:F233)","v":0},{"$f":"SUM(G231:G233)","v":0},{"$f":"SUM(H231:H233)","v":0},{"$f":"SUM(I231:I233)","v":0},{"$f":"SUM(C230:I230)","v":0}]
[null,{"$f":"\"- \"&Configurações!$E$13","v":"- Uber"},{"$f":"IFERROR(SUMIFS('Banco de Dados'!C:C,'Banco de Dados'!$K:$K,$B$230&\" \"&$B231,'Banco de Dados'!$A:$A,\"<>\"&$C$7)/COUNTIFS('Banco de Dados'!$K:$K,$B$230&\" \"&$B231,'Banco de Dados'!$A:$A,\"<>\"&$C$7),0)","v":0},{"$f":"IFERROR(SUMIFS('Banco de Dados'!D:D,'Banco de Dados'!$K:$K,$B$230&\" \"&$B231,'Banco de Dados'!$A:$A,\"<>\"&$C$7)/COUNTIFS('Banco de Dados'!$K:$K,$B$230&\" \"&$B231,'Banco de Dados'!$A:$A,\"<>\"&$C$7),0)","v":0},{"$f":"IFERROR(SUMIFS('Banco de Dados'!E:E,'Banco de Dados'!$K:$K,$B$230&\" \"&$B231,'Banco de Dados'!$A:$A,\"<>\"&$C$7)/COUNTIFS('Banco de Dados'!$K:$K,$B$230&\" \"&$B231,'Banco de Dados'!$A:$A,\"<>\"&$C$7),0)","v":0},{"$f":"IFERROR(SUMIFS('Banco de Dados'!F:F,'Banco de Dados'!$K:$K,$B$230&\" \"&$B231,'Banco de Dados'!$A:$A,\"<>\"&$C$7)/COUNTIFS('Banco de Dados'!$K:$K,$B$230&\" \"&$B231,'Banco de Dados'!$A:$A,\"<>\"&$C$7),0)","v":0},{"$f":"IFERROR(SUMIFS('Banco de Dados'!G:G,'Banco de Dados'!$K:$K,$B$230&\" \"&$B231,'Banco de Dados'!$A:$A,\"<>\"&$C$7)/COUNTIFS('Banco de Dados'!$K:$K,$B$230&\" \"&$B231,'Banco de Dados'!$A:$A,\"<>\"&$C$7),0)","v":0},{"$f":"IFERROR(SUMIFS('Banco de Dados'!H:H,'Banco de Dados'!$K:$K,$B$230&\" \"&$B231,'Banco de Dados'!$A:$A,\"<>\"&$C$7)/COUNTIFS('Banco de Dados'!$K:$K,$B$230&\" \"&$B231,'Banco de Dados'!$A:$A,\"<>\"&$C$7),0)","v":0},{"$f":"IFERROR(SUMIFS('Banco de Dados'!I:I,'Banco de Dados'!$K:$K,$B$230&\" \"&$B231,'Banco de Dados'!$A:$A,\"<>\"&$C$7)/COUNTIFS('Banco de Dados'!$K:$K,$B$230&\" \"&$B231,'Banco de Dados'!$A:$A,\"<>\"&$C$7),0)","v":0},0]
[null,{"$f":"\"- \"&Configurações!$E$14","v":"- App 2"},{"$f":"IFERROR(SUMIFS('Banco de Dados'!C:C,'Banco de Dados'!$K:$K,$B$230&\" \"&$B232,'Banco de Dados'!$A:$A,\"<>\"&$C$7)/COUNTIFS('Banco de Dados'!$K:$K,$B$230&\" \"&$B232,'Banco de Dados'!$A:$A,\"<>\"&$C$7),0)","v":0},{"$f":"IFERROR(SUMIFS('Banco de Dados'!D:D,'Banco de Dados'!$K:$K,$B$230&\" \"&$B232,'Banco de Dados'!$A:$A,\"<>\"&$C$7)/COUNTIFS('Banco de Dados'!$K:$K,$B$230&\" \"&$B232,'Banco de Dados'!$A:$A,\"<>\"&$C$7),0)","v":0},{"$f":"IFERROR(SUMIFS('Banco de Dados'!E:E,'Banco de Dados'!$K:$K,$B$230&\" \"&$B232,'Banco de Dados'!$A:$A,\"<>\"&$C$7)/COUNTIFS('Banco de Dados'!$K:$K,$B$230&\" \"&$B232,'Banco de Dados'!$A:$A,\"<>\"&$C$7),0)","v":0},{"$f":"IFERROR(SUMIFS('Banco de Dados'!F:F,'Banco de Dados'!$K:$K,$B$230&\" \"&$B232,'Banco de Dados'!$A:$A,\"<>\"&$C$7)/COUNTIFS('Banco de Dados'!$K:$K,$B$230&\" \"&$B232,'Banco de Dados'!$A:$A,\"<>\"&$C$7),0)","v":0},{"$f":"IFERROR(SUMIFS('Banco de Dados'!G:G,'Banco de Dados'!$K:$K,$B$230&\" \"&$B232,'Banco de Dados'!$A:$A,\"<>\"&$C$7)/COUNTIFS('Banco de Dados'!$K:$K,$B$230&\" \"&$B232,'Banco de Dados'!$A:$A,\"<>\"&$C$7),0)","v":0},{"$f":"IFERROR(SUMIFS('Banco de Dados'!H:H,'Banco de Dados'!$K:$K,$B$230&\" \"&$B232,'Banco de Dados'!$A:$A,\"<>\"&$C$7)/COUNTIFS('Banco de Dados'!$K:$K,$B$230&\" \"&$B232,'Banco de Dados'!$A:$A,\"<>\"&$C$7),0)","v":0},{"$f":"IFERROR(SUMIFS('Banco de Dados'!I:I,'Banco de Dados'!$K:$K,$B$230&\" \"&$B232,'Banco de Dados'!$A:$A,\"<>\"&$C$7)/COUNTIFS('Banco de Dados'!$K:$K,$B$230&\" \"&$B232,'Banco de Dados'!$A:$A,\"<>\"&$C$7),0)","v":0},0]
[null,{"$f":"\"- \"&Configurações!$E$15","v":"- App 3"},{"$f":"IFERROR(SUMIFS('Banco de Dados'!C:C,'Banco de Dados'!$K:$K,$B$230&\" \"&$B233,'Banco de Dados'!$A:$A,\"<>\"&$C$7)/COUNTIFS('Banco de Dados'!$K:$K,$B$230&\" \"&$B233,'Banco de Dados'!$A:$A,\"<>\"&$C$7),0)","v":0},{"$f":"IFERROR(SUMIFS('Banco de Dados'!D:D,'Banco de Dados'!$K:$K,$B$230&\" \"&$B233,'Banco de Dados'!$A:$A,\"<>\"&$C$7)/COUNTIFS('Banco de Dados'!$K:$K,$B$230&\" \"&$B233,'Banco de Dados'!$A:$A,\"<>\"&$C$7),0)","v":0},{"$f":"IFERROR(SUMIFS('Banco de Dados'!E:E,'Banco de Dados'!$K:$K,$B$230&\" \"&$B233,'Banco de Dados'!$A:$A,\"<>\"&$C$7)/COUNTIFS('Banco de Dados'!$K:$K,$B$230&\" \"&$B233,'Banco de Dados'!$A:$A,\"<>\"&$C$7),0)","v":0},{"$f":"IFERROR(SUMIFS('Banco de Dados'!F:F,'Banco de Dados'!$K:$K,$B$230&\" \"&$B233,'Banco de Dados'!$A:$A,\"<>\"&$C$7)/COUNTIFS('Banco de Dados'!$K:$K,$B$230&\" \"&$B233,'Banco de Dados'!$A:$A,\"<>\"&$C$7),0)","v":0},{"$f":"IFERROR(SUMIFS('Banco de Dados'!G:G,'Banco de Dados'!$K:$K,$B$230&\" \"&$B233,'Banco de Dados'!$A:$A,\"<>\"&$C$7)/COUNTIFS('Banco de Dados'!$K:$K,$B$230&\" \"&$B233,'Banco de Dados'!$A:$A,\"<>\"&$C$7),0)","v":0},{"$f":"IFERROR(SUMIFS('Banco de Dados'!H:H,'Banco de Dados'!$K:$K,$B$230&\" \"&$B233,'Banco de Dados'!$A:$A,\"<>\"&$C$7)/COUNTIFS('Banco de Dados'!$K:$K,$B$230&\" \"&$B233,'Banco de Dados'!$A:$A,\"<>\"&$C$7),0)","v":0},{"$f":"IFERROR(SUMIFS('Banco de Dados'!I:I,'Banco de Dados'!$K:$K,$B$230&\" \"&$B233,'Banco de Dados'!$A:$A,\"<>\"&$C$7)/COUNTIFS('Banco de Dados'!$K:$K,$B$230&\" \"&$B233,'Banco de Dados'!$A:$A,\"<>\"&$C$7),0)","v":0},0]
[null,"Custos com combustível",{"$f":"IFERROR(SUMIFS('Banco de Dados'!C:C,'Banco de Dados'!$B:$B,$B234,'Banco de Dados'!$A:$A,\"<>\"&$C$7)/COUNTIFS('Banco de Dados'!$B:$B,$B234,'Banco de Dados'!$A:$A,\"<>\"&$C$7),0)","v":0},{"$f":"IFERROR(SUMIFS('Banco de Dados'!D:D,'Banco de Dados'!$B:$B,$B234,'Banco de Dados'!$A:$A,\"<>\"&$C$7)/COUNTIFS('Banco de Dados'!$B:$B,$B234,'Banco de Dados'!$A:$A,\"<>\"&$C$7),0)","v":0},{"$f":"IFERROR(SUMIFS('Banco de Dados'!E:E,'Banco de Dados'!$B:$B,$B234,'Banco de Dados'!$A:$A,\"<>\"&$C$7)/COUNTIFS('Banco de Dados'!$B:$B,$B234,'Banco de Dados'!$A:$A,\"<>\"&$C$7),0)","v":0},{"$f":"IFERROR(SUMIFS('Banco de Dados'!F:F,'Banco de Dados'!$B:$B,$B234,'Banco de Dados'!$A:$A,\"<>\"&$C$7)/COUNTIFS('Banco de Dados'!$B:$B,$B234,'Banco de Dados'!$A:$A,\"<>\"&$C$7),0)","v":0},{"$f":"IFERROR(SUMIFS('Banco de Dados'!G:G,'Banco de Dados'!$B:$B,$B234,'Banco de Dados'!$A:$A,\"<>\"&$C$7)/COUNTIFS('Banco de Dados'!$B:$B,$B234,'Banco de Dados'!$A:$A,\"<>\"&$C$7),0)","v":0},{"$f":"IFERROR(SUMIFS('Banco de Dados'!H:H,'Banco de Dados'!$B:$B,$B234,'Banco de Dados'!$A:$A,\"<>\"&$C$7)/COUNTIFS('Banco de Dados'!$B:$B,$B234,'Banco de Dados'!$A:$A,\"<>\"&$C$7),0)","v":0},{"$f":"IFERROR(SUMIFS('Banco de Dados'!I:I,'Banco de Dados'!$B:$B,$B234,'Banco de Dados'!$A:$A,\"<>\"&$C$7)/COUNTIFS('Banco de Dados'!$B:$B,$B234,'Banco de Dados'!$A:$A,\"<>\"&$C$7),0)","v":0},0]
[null,"Custos com água",{"$f":"IFERROR(SUMIFS('Banco de Dados'!C:C,'Banco de Dados'!$B:$B,$B235,'Banco de Dados'!$A:$A,\"<>\"&$C$7)/COUNTIFS('Banco de Dados'!$B:$B,$B235,'Banco de Dados'!$A:$A,\"<>\"&$C$7),0)","v":0},{"$f":"IFERROR(SUMIFS('Banco de Dados'!D:D,'Banco de Dados'!$B:$B,$B235,'Banco de Dados'!$A:$A,\"<>\"&$C$7)/COUNTIFS('Banco de Dados'!$B:$B,$B235,'Banco de Dados'!$A:$A,\"<>\"&$C$7),0)","v":0},{"$f":"IFERROR(SUMIFS('Banco de Dados'!E:E,'Banco de Dados'!$B:$B,$B235,'Banco de Dados'!$A:$A,\"<>\"&$C$7)/COUNTIFS('Banco de Dados'!$B:$B,$B235,'Banco de Dados'!$A:$A,\"<>\"&$C$7),0)","v":0},{"$f":"IFERROR(SUMIFS('Banco de Dados'!F:F,'Banco de Dados'!$B:$B,$B235,'Banco de Dados'!$A:$A,\"<>\"&$C$7)/COUNTIFS('Banco de Dados'!$B:$B,$B235,'Banco de Dados'!$A:$A,\"<>\"&$C$7),0)","v":0},{"$f":"IFERROR(SUMIFS('Banco de Dados'!G:G,'Banco de Dados'!$B:$B,$B235,'Banco de Dados'!$A:$A,\"<>\"&$C$7)/COUNTIFS('Banco de Dados'!$B:$B,$B235,'Banco de Dados'!$A:$A,\"<>\"&$C$7),0)","v":0},{"$f":"IFERROR(SUMIFS('Banco de Dados'!H:H,'Banco de Dados'!$B:$B,$B235,'Banco de Dados'!$A:$A,\"<>\"&$C$7)/COUNTIFS('Banco de Dados'!$B:$B,$B235,'Banco de Dados'!$A:$A,\"<>\"&$C$7),0)","v":0},{"$f":"IFERROR(SUMIFS('Banco de Dados'!I:I,'Banco de Dados'!$B:$B,$B235,'Banco de Dados'!$A:$A,\"<>\"&$C$7)/COUNTIFS('Banco de Dados'!$B:$B,$B235,'Banco de Dados'!$A:$A,\"<>\"&$C$7),0)","v":0},0]
[null,"Custos com bala",{"$f":"IFERROR(SUMIFS('Banco de Dados'!C:C,'Banco de Dados'!$B:$B,$B236,'Banco de Dados'!$A:$A,\"<>\"&$C$7)/COUNTIFS('Banco de Dados'!$B:$B,$B236,'Banco de Dados'!$A:$A,\"<>\"&$C$7),0)","v":0},{"$f":"IFERROR(SUMIFS('Banco de Dados'!D:D,'Banco de Dados'!$B:$B,$B236,'Banco de Dados'!$A:$A,\"<>\"&$C$7)/COUNTIFS('Banco de Dados'!$B:$B,$B236,'Banco de Dados'!$A:$A,\"<>\"&$C$7),0)","v":0},{"$f":"IFERROR(SUMIFS('Banco de Dados'!E:E,'Banco de Dados'!$B:$B,$B236,'Banco de Dados'!$A:$A,\"<>\"&$C$7)/COUNTIFS('Banco de Dados'!$B:$B,$B236,'Banco de Dados'!$A:$A,\"<>\"&$C$7),0)","v":0},{"$f":"IFERROR(SUMIFS('Banco de Dados'!F:F,'Banco de Dados'!$B:$B,$B236,'Banco de Dados'!$A:$A,\"<>\"&$C$7)/COUNTIFS('Banco de Dados'!$B:$B,$B236,'Banco de Dados'!$A:$A,\"<>\"&$C$7),0)","v":0},{"$f":"IFERROR(SUMIFS('Banco de Dados'!G:G,'Banco de Dados'!$B:$B,$B236,'Banco de Dados'!$A:$A,\"<>\"&$C$7)/COUNTIFS('Banco de Dados'!$B:$B,$B236,'Banco de Dados'!$A:$A,\"<>\"&$C$7),0)","v":0},{"$f":"IFERROR(SUMIFS('Banco de Dados'!H:H,'Banco de Dados'!$B:$B,$B236,'Banco de Dados'!$A:$A,\"<>\"&$C$7)/COUNTIFS('Banco de Dados'!$B:$B,$B236,'Banco de Dados'!$A:$A,\"<>\"&$C$7),0)","v":0},{"$f":"IFERROR(SUMIFS('Banco de Dados'!I:I,'Banco de Dados'!$B:$B,$B236,'Banco de Dados'!$A:$A,\"<>\"&$C$7)/COUNTIFS('Banco de Dados'!$B:$B,$B236,'Banco de Dados'!$A:$A,\"<>\"&$C$7),0)","v":0},0]
[null,"Outros custos",{"$f":"IFERROR(SUMIFS('Banco de Dados'!C:C,'Banco de Dados'!$B:$B,$B237,'Banco de Dados'!$A:$A,\"<>\"&$C$7)/COUNTIFS('Banco de Dados'!$B:$B,$B237,'Banco de Dados'!$A:$A,\"<>\"&$C$7),0)","v":0},{"$f":"IFERROR(SUMIFS('Banco de Dados'!D:D,'Banco de Dados'!$B:$B,$B237,'Banco de Dados'!$A:$A,\"<>\"&$C$7)/COUNTIFS('Banco de Dados'!$B:$B,$B237,'Banco de Dados'!$A:$A,\"<>\"&$C$7),0)","v":0},{"$f":"IFERROR(SUMIFS('Banco de Dados'!E:E,'Banco de Dados'!$B:$B,$B237,'Banco de Dados'!$A:$A,\"<>\"&$C$7)/COUNTIFS('Banco de Dados'!$B:$B,$B237,'Banco de Dados'!$A:$A,\"<>\"&$C$7),0)","v":0},{"$f":"IFERROR(SUMIFS('Banco de Dados'!F:F,'Banco de Dados'!$B:$B,$B237,'Banco de Dados'!$A:$A,\"<>\"&$C$7)/COUNTIFS('Banco de Dados'!$B:$B,$B237,'Banco de Dados'!$A:$A,\"<>\"&$C$7),0)","v":0},{"$f":"IFERROR(SUMIFS('Banco de Dados'!G:G,'Banco de Dados'!$B:$B,$B237,'Banco de Dados'!$A:$A,\"<>\"&$C$7)/COUNTIFS('Banco de Dados'!$B:$B,$B237,'Banco de Dados'!$A:$A,\"<>\"&$C$7),0)","v":0},{"$f":"IFERROR(SUMIFS('Banco de Dados'!H:H,'Banco de Dados'!$B:$B,$B237,'Banco de Dados'!$A:$A,\"<>\"&$C$7)/COUNTIFS('Banco de Dados'!$B:$B,$B237,'Banco de Dados'!$A:$A,\"<>\"&$C$7),0)","v":0},{"$f":"IFERROR(SUMIFS('Banco de Dados'!I:I,'Banco de Dados'!$B:$B,$B237,'Banco de Dados'!$A:$A,\"<>\"&$C$7)/COUNTIFS('Banco de Dados'!$B:$B,$B237,'Banco de Dados'!$A:$A,\"<>\"&$C$7),0)","v":0},0]
[null,"TOTAL DE CUSTOS",{"$f":"SUM(C234:C237)","v":0},{"$f":"SUM(D234:D237)","v":0},0,0,0,0,0,0]
[null,"Gastos com alimentação",{"$f":"IFERROR(SUMIFS('Banco de Dados'!C:C,'Banco de Dados'!$B:$B,$B239,'Banco de Dados'!$A:$A,\"<>\"&$C$7)/COUNTIFS('Banco de Dados'!$B:$B,$B239,'Banco de Dados'!$A:$A,\"<>\"&$C$7),0)","v":0},{"$f":"IFERROR(SUMIFS('Banco de Dados'!D:D,'Banco de Dados'!$B:$B,$B239,'Banco de Dados'!$A:$A,\"<>\"&$C$7)/COUNTIFS('Banco de Dados'!$B:$B,$B239,'Banco de Dados'!$A:$A,\"<>\"&$C$7),0)","v":0},{"$f":"IFERROR(SUMIFS('Banco de Dados'!E:E,'Banco de Dados'!$B:$B,$B239,'Banco de Dados'!$A:$A,\"<>\"&$C$7)/COUNTIFS('Banco de Dados'!$B:$B,$B239,'Banco de Dados'!$A:$A,\"<>\"&$C$7),0)","v":0},{"$f":"IFERROR(SUMIFS('Banco de Dados'!F:F,'Banco de Dados'!$B:$B,$B239,'Banco de Dados'!$A:$A,\"<>\"&$C$7)/COUNTIFS('Banco de Dados'!$B:$B,$B239,'Banco de Dados'!$A:$A,\"<>\"&$C$7),0)","v":0},{"$f":"IFERROR(SUMIFS('Banco de Dados'!G:G,'Banco de Dados'!$B:$B,$B239,'Banco de Dados'!$A:$A,\"<>\"&$C$7)/COUNTIFS('Banco de Dados'!$B:$B,$B239,'Banco de Dados'!$A:$A,\"<>\"&$C$7),0)","v":0},{"$f":"IFERROR(SUMIFS('Banco de Dados'!H:H,'Banco de Dados'!$B:$B,$B239,'Banco de Dados'!$A:$A,\"<>\"&$C$7)/COUNTIFS('Banco de Dados'!$B:$B,$B239,'Banco de Dados'!$A:$A,\"<>\"&$C$7),0)","v":0},{"$f":"IFERROR(SUMIFS('Banco de Dados'!I:I,'Banco de Dados'!$B:$B,$B239,'Banco de Dados'!$A:$A,\"<>\"&$C$7)/COUNTIFS('Banco de Dados'!$B:$B,$B239,'Banco de Dados'!$A:$A,\"<>\"&$C$7),0)","v":0},0]
[null,"Estacionamento",{"$f":"IFERROR(SUMIFS('Banco de Dados'!C:C,'Banco de Dados'!$B:$B,$B240,'Banco de Dados'!$A:$A,\"<>\"&$C$7)/COUNTIFS('Banco de Dados'!$B:$B,$B240,'Banco de Dados'!$A:$A,\"<>\"&$C$7),0)","v":0},{"$f":"IFERROR(SUMIFS('Banco de Dados'!D:D,'Banco de Dados'!$B:$B,$B240,'Banco de Dados'!$A:$A,\"<>\"&$C$7)/COUNTIFS('Banco de Dados'!$B:$B,$B240,'Banco de Dados'!$A:$A,\"<>\"&$C$7),0)","v":0},{"$f":"IFERROR(SUMIFS('Banco de Dados'!E:E,'Banco de Dados'!$B:$B,$B240,'Banco de Dados'!$A:$A,\"<>\"&$C$7)/COUNTIFS('Banco de Dados'!$B:$B,$B240,'Banco de Dados'!$A:$A,\"<>\"&$C$7),0)","v":0},{"$f":"IFERROR(SUMIFS('Banco de Dados'!F:F,'Banco de Dados'!$B:$B,$B240,'Banco de Dados'!$A:$A,\"<>\"&$C$7)/COUNTIFS('Banco de Dados'!$B:$B,$B240,'Banco de Dados'!$A:$A,\"<>\"&$C$7),0)","v":0},{"$f":"IFERROR(SUMIFS('Banco de Dados'!G:G,'Banco de Dados'!$B:$B,$B240,'Banco de Dados'!$A:$A,\"<>\"&$C$7)/COUNTIFS('Banco de Dados'!$B:$B,$B240,'Banco de Dados'!$A:$A,\"<>\"&$C$7),0)","v":0},{"$f":"IFERROR(SUMIFS('Banco de Dados'!H:H,'Banco de Dados'!$B:$B,$B240,'Banco de Dados'!$A:$A,\"<>\"&$C$7)/COUNTIFS('Banco de Dados'!$B:$B,$B240,'Banco de Dados'!$A:$A,\"<>\"&$C$7),0)","v":0},{"$f":"IFERROR(SUMIFS('Banco de Dados'!I:I,'Banco de Dados'!$B:$B,$B240,'Banco de Dados'!$A:$A,\"<>\"&$C$7)/COUNTIFS('Banco de Dados'!$B:$B,$B240,'Banco de Dados'!$A:$A,\"<>\"&$C$7),0)","v":0},0]
[null,"Lavagem",{"$f":"IFERROR(SUMIFS('Banco de Dados'!C:C,'Banco de Dados'!$B:$B,$B241,'Banco de Dados'!$A:$A,\"<>\"&$C$7)/COUNTIFS('Banco de Dados'!$B:$B,$B241,'Banco de Dados'!$A:$A,\"<>\"&$C$7),0)","v":0},{"$f":"IFERROR(SUMIFS('Banco de Dados'!D:D,'Banco de Dados'!$B:$B,$B241,'Banco de Dados'!$A:$A,\"<>\"&$C$7)/COUNTIFS('Banco de Dados'!$B:$B,$B241,'Banco de Dados'!$A:$A,\"<>\"&$C$7),0)","v":0},{"$f":"IFERROR(SUMIFS('Banco de Dados'!E:E,'Banco de Dados'!$B:$B,$B241,'Banco de Dados'!$A:$A,\"<>\"&$C$7)/COUNTIFS('Banco de Dados'!$B:$B,$B241,'Banco de Dados'!$A:$A,\"<>\"&$C$7),0)","v":0},{"$f":"IFERROR(SUMIFS('Banco de Dados'!F:F,'Banco de Dados'!$B:$B,$B241,'Banco de Dados'!$A:$A,\"<>\"&$C$7)/COUNTIFS('Banco de Dados'!$B:$B,$B241,'Banco de Dados'!$A:$A,\"<>\"&$C$7),0)","v":0},{"$f":"IFERROR(SUMIFS('Banco de Dados'!G:G,'Banco de Dados'!$B:$B,$B241,'Banco de Dados'!$A:$A,\"<>\"&$C$7)/COUNTIFS('Banco de Dados'!$B:$B,$B241,'Banco de Dados'!$A:$A,\"<>\"&$C$7),0)","v":0},{"$f":"IFERROR(SUMIFS('Banco de Dados'!H:H,'Banco de Dados'!$B:$B,$B241,'Banco de Dados'!$A:$A,\"<>\"&$C$7)/COUNTIFS('Banco de Dados'!$B:$B,$B241,'Banco de Dados'!$A:$A,\"<>\"&$C$7),0)","v":0},{"$f":"IFERROR(SUMIFS('Banco de Dados'!I:I,'Banco de Dados'!$B:$B,$B241,'Banco de Dados'!$A:$A,\"<>\"&$C$7)/COUNTIFS('Banco de Dados'!$B:$B,$B241,'Banco de Dados'!$A:$A,\"<>\"&$C$7),0)","v":0},0]
[null,"Multa",{"$f":"IFERROR(SUMIFS('Banco de Dados'!C:C,'Banco de Dados'!$B:$B,$B242,'Banco de Dados'!$A:$A,\"<>\"&$C$7)/COUNTIFS('Banco de Dados'!$B:$B,$B242,'Banco de Dados'!$A:$A,\"<>\"&$C$7),0)","v":0},{"$f":"IFERROR(SUMIFS('Banco de Dados'!D:D,'Banco de Dados'!$B:$B,$B242,'Banco de Dados'!$A:$A,\"<>\"&$C$7)/COUNTIFS('Banco de Dados'!$B:$B,$B242,'Banco de Dados'!$A:$A,\"<>\"&$C$7),0)","v":0},{"$f":"IFERROR(SUMIFS('Banco de Dados'!E:E,'Banco de Dados'!$B:$B,$B242,'Banco de Dados'!$A:$A,\"<>\"&$C$7)/COUNTIFS('Banco de Dados'!$B:$B,$B242,'Banco de Dados'!$A:$A,\"<>\"&$C$7),0)","v":0},{"$f":"IFERROR(SUMIFS('Banco de Dados'!F:F,'Banco de Dados'!$B:$B,$B242,'Banco de Dados'!$A:$A,\"<>\"&$C$7)/COUNTIFS('Banco de Dados'!$B:$B,$B242,'Banco de Dados'!$A:$A,\"<>\"&$C$7),0)","v":0},{"$f":"IFERROR(SUMIFS('Banco de Dados'!G:G,'Banco de Dados'!$B:$B,$B242,'Banco de Dados'!$A:$A,\"<>\"&$C$7)/COUNTIFS('Banco de Dados'!$B:$B,$B242,'Banco de Dados'!$A:$A,\"<>\"&$C$7),0)","v":0},{"$f":"IFERROR(SUMIFS('Banco de Dados'!H:H,'Banco de Dados'!$B:$B,$B242,'Banco de Dados'!$A:$A,\"<>\"&$C$7)/COUNTIFS('Banco de Dados'!$B:$B,$B242,'Banco de Dados'!$A:$A,\"<>\"&$C$7),0)","v":0},{"$f":"IFERROR(SUMIFS('Banco de Dados'!I:I,'Banco de Dados'!$B:$B,$B242,'Banco de Dados'!$A:$A,\"<>\"&$C$7)/COUNTIFS('Banco de Dados'!$B:$B,$B242,'Banco de Dados'!$A:$A,\"<>\"&$C$7),0)","v":0},0]
[null,"Pedágio",{"$f":"IFERROR(SUMIFS('Banco de Dados'!C:C,'Banco de Dados'!$B:$B,$B243,'Banco de Dados'!$A:$A,\"<>\"&$C$7)/COUNTIFS('Banco de Dados'!$B:$B,$B243,'Banco de Dados'!$A:$A,\"<>\"&$C$7),0)","v":0},{"$f":"IFERROR(SUMIFS('Banco de Dados'!D:D,'Banco de Dados'!$B:$B,$B243,'Banco de Dados'!$A:$A,\"<>\"&$C$7)/COUNTIFS('Banco de Dados'!$B:$B,$B243,'Banco de Dados'!$A:$A,\"<>\"&$C$7),0)","v":0},{"$f":"IFERROR(SUMIFS('Banco de Dados'!E:E,'Banco de Dados'!$B:$B,$B243,'Banco de Dados'!$A:$A,\"<>\"&$C$7)/COUNTIFS('Banco de Dados'!$B:$B,$B243,'Banco de Dados'!$A:$A,\"<>\"&$C$7),0)","v":0},{"$f":"IFERROR(SUMIFS('Banco de Dados'!F:F,'Banco de Dados'!$B:$B,$B243,'Banco de Dados'!$A:$A,\"<>\"&$C$7)/COUNTIFS('Banco de Dados'!$B:$B,$B243,'Banco de Dados'!$A:$A,\"<>\"&$C$7),0)","v":0},{"$f":"IFERROR(SUMIFS('Banco de Dados'!G:G,'Banco de Dados'!$B:$B,$B243,'Banco de Dados'!$A:$A,\"<>\"&$C$7)/COUNTIFS('Banco de Dados'!$B:$B,$B243,'Banco de Dados'!$A:$A,\"<>\"&$C$7),0)","v":0},{"$f":"IFERROR(SUMIFS('Banco de Dados'!H:H,'Banco de Dados'!$B:$B,$B243,'Banco de Dados'!$A:$A,\"<>\"&$C$7)/COUNTIFS('Banco de Dados'!$B:$B,$B243,'Banco de Dados'!$A:$A,\"<>\"&$C$7),0)","v":0},{"$f":"IFERROR(SUMIFS('Banco de Dados'!I:I,'Banco de Dados'!$B:$B,$B243,'Banco de Dados'!$A:$A,\"<>\"&$C$7)/COUNTIFS('Banco de Dados'!$B:$B,$B243,'Banco de Dados'!$A:$A,\"<>\"&$C$7),0)","v":0},0]
[null,"Outras despesas",{"$f":"IFERROR(SUMIFS('Banco de Dados'!C:C,'Banco de Dados'!$B:$B,$B244,'Banco de Dados'!$A:$A,\"<>\"&$C$7)/COUNTIFS('Banco de Dados'!$B:$B,$B244,'Banco de Dados'!$A:$A,\"<>\"&$C$7),0)","v":0},{"$f":"IFERROR(SUMIFS('Banco de Dados'!D:D,'Banco de Dados'!$B:$B,$B244,'Banco de Dados'!$A:$A,\"<>\"&$C$7)/COUNTIFS('Banco de Dados'!$B:$B,$B244,'Banco de Dados'!$A:$A,\"<>\"&$C$7),0)","v":0},{"$f":"IFERROR(SUMIFS('Banco de Dados'!E:E,'Banco de Dados'!$B:$B,$B244,'Banco de Dados'!$A:$A,\"<>\"&$C$7)/COUNTIFS('Banco de Dados'!$B:$B,$B244,'Banco de Dados'!$A:$A,\"<>\"&$C$7),0)","v":0},{"$f":"IFERROR(SUMIFS('Banco de Dados'!F:F,'Banco de Dados'!$B:$B,$B244,'Banco de Dados'!$A:$A,\"<>\"&$C$7)/COUNTIFS('Banco de Dados'!$B:$B,$B244,'Banco de Dados'!$A:$A,\"<>\"&$C$7),0)","v":0},{"$f":"IFERROR(SUMIFS('Banco de Dados'!G:G,'Banco de Dados'!$B:$B,$B244,'Banco de Dados'!$A:$A,\"<>\"&$C$7)/COUNTIFS('Banco de Dados'!$B:$B,$B244,'Banco de Dados'!$A:$A,\"<>\"&$C$7),0)","v":0},{"$f":"IFERROR(SUMIFS('Banco de Dados'!H:H,'Banco de Dados'!$B:$B,$B244,'Banco de Dados'!$A:$A,\"<>\"&$C$7)/COUNTIFS('Banco de Dados'!$B:$B,$B244,'Banco de Dados'!$A:$A,\"<>\"&$C$7),0)","v":0},{"$f":"IFERROR(SUMIFS('Banco de Dados'!I:I,'Banco de Dados'!$B:$B,$B244,'Banco de Dados'!$A:$A,\"<>\"&$C$7)/COUNTIFS('Banco de Dados'!$B:$B,$B244,'Banco de Dados'!$A:$A,\"<>\"&$C$7),0)","v":0},0]
[null,"TOTAL DE DESPESAS",{"$f":"SUM(C239:C244)","v":0},{"$f":"SUM(D239:D244)","v":0},0,0,0,0,0,0]
[null,"Resultado Bruto",{"$f":"C224-C238-C245","v":0},{"$f":"D224-D238-D245","v":0},0,0,0,0,0,0]
[]
[null,"Comparativo % com média histórica","Seg","Ter","Qua","Qui","Sex","Sáb","Dom","Total"]
[]
[null,"Ganhos do dia",{"$f":"IFERROR(C8/C215-1,0)","v":0},0,0,0,0,0,0,0]
[null,{"$f":"\"- \"&Configurações!$E$13","v":"- Uber"},{"$f":"IFERROR(C9/C216-1,0)","v":0},0,0,0,0,0,0,0]
[null,{"$f":"\"- \"&Configurações!$E$14","v":"- App 2"},{"$f":"IFERROR(C10/C217-1,0)","v":0},0,0,0,0,0,0,0]
[null,{"$f":"\"- \"&Configurações!$E$15","v":"- App 3"},{"$f":"IFERROR(C11/C218-1,0)","v":0},0,0,0,0,0,0,0]
[null,"Bônus/Incentivo",{"$f":"IFERROR(C12/C219-1,0)","v":0},0,0,0,0,0,0,0]
[null,{"$f":"\"- \"&Configurações!$E$13","v":"- Uber"},{"$f":"IFERROR(C13/C220-1,0)","v":0},0,0,0,0,0,0,0]
[null,{"$f":"\"- \"&Configurações!$E$14","v":"- App 2"},{"$f":"IFERROR(C14/C221-1,0)","v":0},0,0,0,0,0,0,0]
[null,{"$f":"\"- \"&Configurações!$E$15","v":"- App 3"},{"$f":"IFERROR(C15/C222-1,0)","v":0},0,0,0,0,0,0,0]
[null,"Outros Incentivos",{"$f":"IFERROR(C16/C223-1,0)","v":0},0,0,0,0,0,0,0]
[null,"TOTAL DE GANHOS",0,0,0,0,0,0,0,0]
[null,"Quilometros rodados",0,0,0,0,0,0,0,0]
[null,"Tempo online",0,0,0,0,0,0,0,0]
[null,{"$f":"\"- \"&Configurações!$E$13","v":"- Uber"},{"$f":"IFERROR(C20/C227-1,0)","v":0},0,0,0,0,0,0,0]
[null,{"$f":"\"- \"&Configurações!$E$14","v":"- App 2"},{"$f":"IFERROR(C21/C228-1,0)","v":0},0,0,0,0,0,0,0]
[null,{"$f":"\"- \"&Configurações!$E$15","v":"- App 3"},{"$f":"IFERROR(C22/C229-1,0)","v":0},0,0,0,0,0,0,0]
[null,"Nº de viagens",{"$f":"IFERROR(C23/C230-1,0)","v":0},0,0,0,0,0,0,0]
[null,{"$f":"\"- \"&Configurações!$E$13","v":"- Uber"},{"$f":"IFERROR(C24/C231-1,0)","v":0},0,0,0,0,0,0,0]
[null,{"$f":"\"- \"&Configurações!$E$14","v":"- App 2"},{"$f":"IFERROR(C25/C232-1,0)","v":0},0,0,0,0,0,0,0]
[null,{"$f":"\"- \"&Configurações!$E$15","v":"- App 3"},{"$f":"IFERROR(C26/C233-1,0)","v":0},0,0,0,0,0,0,0]
[null,"Custos com combustível",{"$f":"IFERROR(C27/C234-1,0)","v":0},0,0,0,0,0,0,0]
[null,"Custos com água",0,0,0,0,0,0,0,0]
[null,"Custos com bala",0,0,0,0,0,0,0,0]
[null,"Outros custos",0,0,0,0,0,0,0,0]
[null,"TOTAL DE CUSTOS",0,0,0,0,0,0,0,0]
[null,"Gastos com alimentação",0,0,0,0,0,0,0,0]
[null,"Estacionamento",0,0,0,0,0,0,0,0]
[null,"Lavagem",0,0,0,0,0,0,0,0]
[null,"Multa",0,0,0,0,0,0,0,0]
[null,"Pedágio",0,0,0,0,0,0,0,0]
[null,"Outras despesas",0,0,0,0,0,0,0,0]
[null,"TOTAL DE DESPESAS",0,0,0,0,0,0,0,0]
[null,"Resultado Bruto",0,0,0,0,0,0,0,0]

{"sheet":"Ajuste","index":2,"n_rows":52,"n_cols":11,"rows_kept":52,"cut":false,"hidden":true,"merged":[[40,9,41,9],[4,8,4,9],[5,1,6,1],[5,9,6,9],[0,6,4,7],[9,2,9,8],[10,2,10,8],[13,2,13,8],[14,2,14,8],[20,2,20,8],[21,2,21,8],[24,2,24,8],[25,2,25,8],[32,2,32,8],[33,2,33,8],[34,2,34,8],[35,2,35,8],[40,1,41,1]]}
[null,null,null,null,null,null,"Edite os dados abaixo e clique em salvar para substituir no Banco de Dados"]
[]
[]
[]
[null,null,null,null,null,null,null,null,{"$f":"'Função Excel'!$C$9","v":"Versão 2.1 - DEMO"}]
[null,"Ganhos, gastos e custos","Seg","Ter","Qua","Qui","Sex","Sáb","Dom","Total"]
[null,null,"2013-12-31",{"$f":"C7+1","v":"2014-01-01"},{"$f":"D7+1","v":"2014-01-02"},"2014-01-03","2014-01-04","2014-01-05","2014-01-06"]
[null,"Ganhos do dia",{"$f":"SUM(C9:C11)","v":0},{"$f":"SUM(D9:D11)","v":0},0,0,0,0,0,{"$f":"SUM(C8:I8)","v":0}]
[null,{"$f":"\"- \"&Configurações!$E$13","v":"- Uber"},null,null,null,null,null,null,null,{"$f":"SUM(C9:I9)","v":0},"Ganhos do dia - Uber"]
[null,{"$f":"\"- \"&Configurações!$E$14","v":"- App 2"},"Não disponível para versão DEMO",null,null,null,null,null,null,0,"Ganhos do dia - Cabify"]
[null,{"$f":"\"- \"&Configurações!$E$15","v":"- App 3"},"Não disponível para versão DEMO",null,null,null,null,null,null,0,"Ganhos do dia - 99 Pop"]
[null,"Bônus/Incentivo",{"$f":"SUM(C13:C15)","v":0},{"$f":"SUM(D13:D15)","v":0},0,0,0,0,0,{"$f":"SUM(C12:I12)","v":0}]
[null,{"$f":"\"- \"&Configurações!$E$13","v":"- Uber"},null,null,null,null,null,null,null,{"$f":"SUM(C13:I13)","v":0},"Bônus/Incentivo - Uber"]
[null,{"$f":"\"- \"&Configurações!$E$14","v":"- App 2"},"Não disponível para versão DEMO",null,null,null,null,null,null,0,"Bônus/Incentivo - Cabify"]
[null,{"$f":"\"- \"&Configurações!$E$15","v":"- App 3"},"Não disponível para versão DEMO",null,null,null,null,null,null,0,"Bônus/Incentivo - 99 Pop"]
[null,"Outros Incentivos",null,null,null,null,null,null,null,{"$f":"SUM(C16:I16)","v":0}]
[null,"TOTAL DE GANHOS",{"$f":"SUM(C12,C8,C16)","v":0},{"$f":"SUM(D12,D8,D16)","v":0},0,0,0,0,0,0]
[null,"Quilômetros rodados",null,null,null,null,null,null,null,{"$f":"SUM(C18:I18)","v":0}]
[null,"Tempo online",{"$f":"SUM(C20:C22)","v":0},0,0,0,0,0,{"$f":"SUM(I20:I22)","v":0},0]
[null,{"$f":"\"- \"&Configurações!$E$13","v":"- Uber"},null,null,null,null,null,null,null,0,"Tempo Online - Uber"]
[null,{"$f":"\"- \"&Configurações!$E$14","v":"- App 2"},"Não disponível para versão DEMO",null,null,null,null,null,null,0,"Tempo Online - Cabify"]
[null,{"$f":"\"- \"&Configurações!$E$15","v":"- App 3"},"Não disponível para versão DEMO",null,null,null,null,null,null,0,"Tempo Online - 99 Pop"]
[null,"Nº de viagens",{"$f":"SUM(C24:C26)","v":0},{"$f":"SUM(D24:D26)","v":0},0,0,0,0,0,0]
[null,{"$f":"\"- \"&Configurações!$E$13","v":"- Uber"},null,null,null,null,null,null,null,0,"Nº de Viagens - Uber"]
[null,{"$f":"\"- \"&Configurações!$E$14","v":"- App 2"},"Não disponível para versão DEMO",null,null,null,null,null,null,0,"Nº de Viagens - Cabify"]
[null,{"$f":"\"- \"&Configurações!$E$15","v":"- App 3"},"Não disponível para versão DEMO",null,null,null,null,null,null,0,"Nº de Viagens - 99 Pop"]
[null,"Custos com combustível",null,null,null,null,null,null,null,{"$f":"SUM(C27:I27)","v":0}]
[null,"Custos com água",null,null,null,null,null,null,null,0]
[null,"Custos com bala",null,null,null,null,null,null,null,0]
[null,"Outros custos",null,null,null,null,null,null,null,0]
[null,"TOTAL DE CUSTOS",{"$f":"SUM(C27:C30)","v":0},{"$f":"SUM(D27:D30)","v":0},0,0,0,0,0,0]
[null,"Gastos com alimentação",null,null,null,null,null,null,null,0]
[null,"Estacionamento","Não disponível para versão DEMO",null,null,null,null,null,null,{"$f":"SUM(C33:I33)","v":0}]
[null,"Lavagem","Não disponível para versão DEMO",null,null,null,null,null,null,{"$f":"SUM(C34:I34)","v":0}]
[null,"Multa","Não disponível para versão DEMO",null,null,null,null,null,null,{"$f":"SUM(C35:I35)","v":0}]
[null,"Pedágio","Não disponível para versão DEMO",null,null,null,null,null,null,{"$f":"SUM(C36:I36)","v":0}]
[null,"Outros gastos",null,null,null,null,null,null,null,0]
[null,"TOTAL DE GASTOS",{"$f":"SUM(C32:C37)","v":0},{"$f":"SUM(D32:D37)","v":0},0,0,0,0,0,0]
[null,"Resultado Bruto",{"$f":"C17-SUM(C31,C38)","v":0},{"$f":"D17-SUM(D31,D38)","v":0},0,0,0,0,0,0]
[]
[null,"Provisões","Seg","Ter","Qua","Qui","Sex","Sáb","Dom","Total"]
[null,null,{"$f":"C7","v":"2013-12-31"},{"$f":"D7","v":"2014-01-01"},"2014-01-02","2014-01-03","2014-01-04","2014-01-05","2014-01-06"]
[null,"Depreciação do Veículo",{"$f":"Configurações!$C$11*Configurações!$C$13/365*IF(Configurações!$C$7<>\"Carro próprio\",0,1)","v":6.2465753424657535},{"$f":"Configurações!$C$11*Configurações!$C$13/365*IF(Configurações!$C$7<>\"Carro próprio\",0,1)","v":6.2465753424657535},{"$f":"Configurações!$C$11*Configurações!$C$13/365*IF(Configurações!$C$7<>\"Carro próprio\",0,1)","v":6.2465753424657535},{"$f":"Configurações!$C$11*Configurações!$C$13/365*IF(Configurações!$C$7<>\"Carro próprio\",0,1)","v":6.2465753424657535},{"$f":"Configurações!$C$11*Configurações!$C$13/365*IF(Configurações!$C$7<>\"Carro próprio\",0,1)","v":6.2465753424657535},{"$f":"Configurações!$C$11*Configurações!$C$13/365*IF(Configurações!$C$7<>\"Carro próprio\",0,1)","v":6.2465753424657535},{"$f":"Configurações!$C$11*Configurações!$C$13/365*IF(Configurações!$C$7<>\"Carro próprio\",0,1)","v":6.2465753424657535},{"$f":"SUM(C43:I43)","v":43.726027397260275}]
[null,"Seguro Anual",{"$f":"Configurações!$C$12/365*IF(Configurações!$C$7<>\"Carro próprio\",0,1)","v":0},{"$f":"Configurações!$C$12/365*IF(Configurações!$C$7<>\"Carro próprio\",0,1)","v":0},{"$f":"Configurações!$C$12/365*IF(Configurações!$C$7<>\"Carro próprio\",0,1)","v":0},{"$f":"Configurações!$C$12/365*IF(Configurações!$C$7<>\"Carro próprio\",0,1)","v":0},{"$f":"Configurações!$C$12/365*IF(Configurações!$C$7<>\"Carro próprio\",0,1)","v":0},{"$f":"Configurações!$C$12/365*IF(Configurações!$C$7<>\"Carro próprio\",0,1)","v":0},{"$f":"Configurações!$C$12/365*IF(Configurações!$C$7<>\"Carro próprio\",0,1)","v":0},{"$f":"SUM(C44:I44)","v":0}]
[null,"Prestação do Veículo",{"$f":"Configurações!$C$14/30*IF(Configurações!$C$7<>\"Carro próprio\",0,1)","v":26.2},{"$f":"Configurações!$C$14/30*IF(Configurações!$C$7<>\"Carro próprio\",0,1)","v":26.2},{"$f":"Configurações!$C$14/30*IF(Configurações!$C$7<>\"Carro próprio\",0,1)","v":26.2},{"$f":"Configurações!$C$14/30*IF(Configurações!$C$7<>\"Carro próprio\",0,1)","v":26.2},{"$f":"Configurações!$C$14/30*IF(Configurações!$C$7<>\"Carro próprio\",0,1)","v":26.2},{"$f":"Configurações!$C$14/30*IF(Configurações!$C$7<>\"Carro próprio\",0,1)","v":26.2},{"$f":"Configurações!$C$14/30*IF(Configurações!$C$7<>\"Carro próprio\",0,1)","v":26.2},183.39999999999998]
[null,"Troca de pneu",{"$f":"IFERROR((C18/Configurações!$C$16*Configurações!$C$15)*4*IF(Configurações!$C$7<>\"Carro próprio\",0,1),0)","v":0},{"$f":"IFERROR((D18/Configurações!$C$16*Configurações!$C$15)*4*IF(Configurações!$C$7<>\"Carro próprio\",0,1),0)","v":0},{"$f":"IFERROR((E18/Configurações!$C$16*Configurações!$C$15)*4*IF(Configurações!$C$7<>\"Carro próprio\",0,1),0)","v":0},{"$f":"IFERROR((F18/Configurações!$C$16*Configurações!$C$15)*4*IF(Configurações!$C$7<>\"Carro próprio\",0,1),0)","v":0},{"$f":"IFERROR((G18/Configurações!$C$16*Configurações!$C$15)*4*IF(Configurações!$C$7<>\"Carro próprio\",0,1),0)","v":0},{"$f":"IFERROR((H18/Configurações!$C$16*Configurações!$C$15)*4*IF(Configurações!$C$7<>\"Carro próprio\",0,1),0)","v":0},{"$f":"IFERROR((I18/Configurações!$C$16*Configurações!$C$15)*4*IF(Configurações!$C$7<>\"Carro próprio\",0,1),0)","v":0},0]
[null,"Troca de óleo",{"$f":"IFERROR(C18/Configurações!$C$18*Configurações!$C$17*IF(Configurações!$C$7<>\"Carro próprio\",0,1),0)","v":0},{"$f":"IFERROR(D18/Configurações!$C$18*Configurações!$C$17*IF(Configurações!$C$7<>\"Carro próprio\",0,1),0)","v":0},{"$f":"IFERROR(E18/Configurações!$C$18*Configurações!$C$17*IF(Configurações!$C$7<>\"Carro próprio\",0,1),0)","v":0},{"$f":"IFERROR(F18/Configurações!$C$18*Configurações!$C$17*IF(Configurações!$C$7<>\"Carro próprio\",0,1),0)","v":0},{"$f":"IFERROR(G18/Configurações!$C$18*Configurações!$C$17*IF(Configurações!$C$7<>\"Carro próprio\",0,1),0)","v":0},{"$f":"IFERROR(H18/Configurações!$C$18*Configurações!$C$17*IF(Configurações!$C$7<>\"Carro próprio\",0,1),0)","v":0},{"$f":"IFERROR(I18/Configurações!$C$18*Configurações!$C$17*IF(Configurações!$C$7<>\"Carro próprio\",0,1),0)","v":0},0]
[null,"Outras despesas anuais",{"$f":"Configurações!$C$19/365*IF(Configurações!$C$7<>\"Carro próprio\",0,1)","v":3.2876712328767121},{"$f":"Configurações!$C$19/365*IF(Configurações!$C$7<>\"Carro próprio\",0,1)","v":3.2876712328767121},{"$f":"Configurações!$C$19/365*IF(Configurações!$C$7<>\"Carro próprio\",0,1)","v":3.2876712328767121},{"$f":"Configurações!$C$19/365*IF(Configurações!$C$7<>\"Carro próprio\",0,1)","v":3.2876712328767121},{"$f":"Configurações!$C$19/365*IF(Configurações!$C$7<>\"Carro próprio\",0,1)","v":3.2876712328767121},{"$f":"Configurações!$C$19/365*IF(Configurações!$C$7<>\"Carro próprio\",0,1)","v":3.2876712328767121},{"$f":"Configurações!$C$19/365*IF(Configurações!$C$7<>\"Carro próprio\",0,1)","v":3.2876712328767121},23.013698630136982]
[null,"Aluguel",{"$f":"IF(Configurações!$C$7=\"Carro próprio\",0,IF(Configurações!$C$7=\"Aluguel Diário\",IF(Auxiliar!$A$3=TRUE,Configurações!$C$8*IF('Semana Atual'!C$18=0,0,1),Configurações!$C$8),IF(Configurações!$C$7=\"Aluguel Semanal\",Configurações!$C$8/7,IF(Configurações!$C$7=\"Aluguel Mensal\",Configurações!$C$8/30,Configurações!$C$8*C$18))))","v":0},{"$f":"IF(Configurações!$C$7=\"Carro próprio\",0,IF(Configurações!$C$7=\"Aluguel Diário\",IF(Auxiliar!$A$3=TRUE,Configurações!$C$8*IF('Semana Atual'!D$18=0,0,1),Configurações!$C$8),IF(Configurações!$C$7=\"Aluguel Semanal\",Configurações!$C$8/7,IF(Configurações!$C$7=\"Aluguel Mensal\",Configurações!$C$8/30,Configurações!$C$8*D$18))))","v":0},{"$f":"IF(Configurações!$C$7=\"Carro próprio\",0,IF(Configurações!$C$7=\"Aluguel Diário\",IF(Auxiliar!$A$3=TRUE,Configurações!$C$8*IF('Semana Atual'!E$18=0,0,1),Configurações!$C$8),IF(Configurações!$C$7=\"Aluguel Semanal\",Configurações!$C$8/7,IF(Configurações!$C$7=\"Aluguel Mensal\",Configurações!$C$8/30,Configurações!$C$8*E$18))))","v":0},{"$f":"IF(Configurações!$C$7=\"Carro próprio\",0,IF(Configurações!$C$7=\"Aluguel Diário\",IF(Auxiliar!$A$3=TRUE,Configurações!$C$8*IF('Semana Atual'!F$18=0,0,1),Configurações!$C$8),IF(Configurações!$C$7=\"Aluguel Semanal\",Configurações!$C$8/7,IF(Configurações!$C$7=\"Aluguel Mensal\",Configurações!$C$8/30,Configurações!$C$8*F$18))))","v":0},{"$f":"IF(Configurações!$C$7=\"Carro próprio\",0,IF(Configurações!$C$7=\"Aluguel Diário\",IF(Auxiliar!$A$3=TRUE,Configurações!$C$8*IF('Semana Atual'!G$18=0,0,1),Configurações!$C$8),IF(Configurações!$C$7=\"Aluguel Semanal\",Configurações!$C$8/7,IF(Configurações!$C$7=\"Aluguel Mensal\",Configurações!$C$8/30,Configurações!$C$8*G$18))))","v":0},{"$f":"IF(Configurações!$C$7=\"Carro próprio\",0,IF(Configurações!$C$7=\"Aluguel Diário\",IF(Auxiliar!$A$3=TRUE,Configurações!$C$8*IF('Semana Atual'!H$18=0,0,1),Configurações!$C$8),IF(Configurações!$C$7=\"Aluguel Semanal\",Configurações!$C$8/7,IF(Configurações!$C$7=\"Aluguel Mensal\",Configurações!$C$8/30,Configurações!$C$8*H$18))))","v":0},{"$f":"IF(Configurações!$C$7=\"Carro próprio\",0,IF(Configurações!$C$7=\"Aluguel Diário\",IF(Auxiliar!$A$3=TRUE,Configurações!$C$8*IF('Semana Atual'!I$18=0,0,1),Configurações!$C$8),IF(Configurações!$C$7=\"Aluguel Semanal\",Configurações!$C$8/7,IF(Configurações!$C$7=\"Aluguel Mensal\",Configurações!$C$8/30,Configurações!$C$8*I$18))))","v":0},0]
[null,"Custo com provisões",{"$f":"SUM(C43:C49)","v":35.734246575342461},{"$f":"SUM(D43:D49)","v":35.734246575342461},35.734246575342461,35.734246575342461,35.734246575342461,35.734246575342461,35.734246575342461,250.13972602739724]
[]
[null,"Resultado Líquido",{"$f":"C39-C50","v":-35.734246575342461},{"$f":"D39-D50","v":-35.734246575342461},-35.734246575342461,-35.734246575342461,-35.734246575342461,-35.734246575342461,-35.734246575342461,-250.13972602739724]

{"sheet":"Gráficos","index":3,"n_rows":82,"n_cols":14,"rows_kept":82,"cut":false,"hidden":true,"merged":[[81,1,82,9],[5,8,7,9],[4,8,4,9],[6,6,7,6],[6,7,7,7],[60,1,61,9]]}
[]
[]
[]
[null,null,null,null,null,null,null,null,null,null,null,1,{"$f":"DATE(YEAR(TODAY()),MONTH(TODAY()),1)","v":"2015-01-31"},{"$f":"DATE(YEAR(TODAY()),MONTH(TODAY())+1,1)-1","v":"2015-02-27"}]
[null,null,null,null,null,null,null,null,{"$f":"'Função Excel'!$C$9","v":"Versão 2.1 - DEMO"},null,null,2,{"$f":"DATE(YEAR(TODAY()),MONTH(TODAY())-1,1)","v":"2014-12-31"},{"$f":"DATE(YEAR(TODAY()),MONTH(TODAY()),1)-1","v":"2015-01-30"}]
[null,null,null,null,null,null,"De","Até",{"$f":"IF(Auxiliar!$A$5=6,\"Digite o período de análise desejado\",\"\")","v":""},null,null,3,{"$f":"DATE(YEAR(TODAY()),1,1)","v":"2014-12-31"},{"$f":"DATE(YEAR(TODAY())+1,1,1)-1","v":"2015-12-30"}]
[null,"Período de Análise",null,null,null,null,"2014-10-31","2015-01-30",null,null,null,4,{"$f":"DATE(YEAR(TODAY()),MONTH(TODAY())-3,1)","v":"2014-10-31"},{"$f":"DATE(YEAR(TODAY()),MONTH(TODAY()),1)-1","v":"2015-01-30"}]
[null,null,null,null,null,null,null,null,null,null,null,5,{"$f":"MIN('Banco de Dados'!A:A)","v":"00:00:00"},{"$f":"TODAY()","v":"2015-02-09"}]
[]
[null,null,null,null,null,null,null,null,null,null,null,"Semana Passada",{"$f":"TODAY()-(5+WEEKDAY(TODAY()))","v":"2015-02-03"}]
[null,null,null,null,null,null,null,null,null,null,null,"Dias mês passado",{"$f":"N5-M5","v":30}]
[null,null,null,null,null,null,null,null,null,null,null,"Dias seleção",{"$f":"H7-G7","v":91}]
[null,null,null,null,null,null,null,null,null,null,null,"Dias 3 Meses",{"$f":"N7-M7","v":91}]
[null,null,null,null,null,null,null,null,null,null,null,"Máximo",{"$f":"ROUNDUP(MAX(Auxiliar!B42:F45),-(LEN(ROUND(MAX(Auxiliar!$B$42:$F$45),0))-1))","v":0}]
[]
[]
[]
[]
[]
[]
[]
[]
[]
[]
[]
[]
[]
[]
[]
[]
[]
[]
[]
[]
[]
[]
[]
[]
[]
[]
[]
[]
[]
[]
[]
[]
[]
[]
[]
[]
[]
[]
[]
[]
[]
[]
[]
[]
[]
[]
[null,"Comparativo por aplicativo"]
[]
[]
[]
[]
[]
[]
[]
[]
[]
[]
[]
[]
[]
[]
[]
[]
[]
[]
[]
[]
[null,"Comparativo médio por aplicativo"]

{"sheet":"Configurações","index":4,"n_rows":21,"n_cols":10,"rows_kept":21,"cut":false,"hidden":true,"merged":[[20,1,21,1],[16,4,16,8],[17,4,17,5],[18,4,18,5],[5,1,5,2],[4,9,4,10],[5,4,5,8],[11,4,11,8],[12,6,14,8],[12,4,12,5],[13,4,13,5],[14,4,14,5]]}
[]
[]
[]
[]
[null,null,null,null,null,null,null,null,null,{"$f":"'Função Excel'!$C$9","v":"Versão 2.1 - DEMO"}]
[null,"Veículo",null,null,"Configurações extras"]
[null,"Carro Próprio ou Alugado?","Carro próprio"]
[null,"Valor do aluguel",1500]
[null,"Consumo médio de combustível (km/Litro ou Km/m³)",13]
[null,"Preço médio do combustível (Litro ou m³)",4.3]
[null,"Valor do Veículo",19000]
[null,"Seguro Anual",0,null,"Lista de Aplicativos"]
[null,"Depreciação Anual",0.12,null,"Uber",null,"Altere ao lado o nome dos 3 aplicativos com os quais trabalha"]
[null,"Prestações do Veículo",786,null,"App 2"]
[null,"Custo do pneu (unidade)",249,null,"App 3"]
[null,"Quilometragem para troca de pneu",30000,null,"Todos aplicativos"]
[null,"Custo da troca de óleo",120,null,"Padrão de cores"]
[null,"Quilometragem para troca de óleo",10000]
[null,"Outras despesas anuais",1200]
[]
[null,"Não disponíveis para a versão DEMO"]

{"sheet":"Auxiliar","index":5,"n_rows":52,"n_cols":9,"rows_kept":52,"cut":false,"hidden":true,"merged":[[7,0,7,8],[31,0,31,8]]}
[false,"Padrão de cores Branco",null,null,"Nº","Usuário","Computador","Processador","Contas Livres"]
[false,"Controle de Combustível",null,null,"#1","Rodrigo","DESKTOP-FJUD3LJ","Intel64 Family 6 Model 69 Stepping 1, GenuineIntel",{"$f":"COUNTA(F1:F4)+1","v":3}]
[false,"Aluguel Diário",null,null,"#2",null,null,null,"Liberado?"]
[true,"Importar versão anterior",null,null,"#3",null,null,null,true]
[4,"Periodo dos Gráficos",null,null,"Este","Rodrigo","DESKTOP-FJUD3LJ","Intel64 Family 6 Model 69 Stepping 1, GenuineIntel"]
[true,"Relatório colorido"]
[{"$f":"TODAY()-(5+WEEKDAY(TODAY()))","v":"2015-02-03"},"Hoje"]
["BASE PARA GRÁFICOS NA ABA SEMANA ATUAL"]
[null,{"$f":"IFERROR(C9-7,C9)","v":"Sem registro"},{"$f":"IFERROR(D9-7,D9)","v":"Sem registro"},{"$f":"IFERROR(E9-7,E9)","v":"Sem registro"},{"$f":"IFERROR(F9-7,F9)","v":"Sem registro"},{"$f":"IFERROR(G9-7,G9)","v":"Sem registro"},{"$f":"IFERROR(H9-7,H9)","v":"Sem registro"},"Sem registro",{"$f":"IF(MAX('Banco de Dados'!$A:$A)>0,MAX('Banco de Dados'!$A:$A),\"Sem registro\")","v":"Sem registro"}]
["Receita (Média Histórica)",{"$f":"'Semana Atual'!C$224","v":0},{"$f":"'Semana Atual'!D$224","v":0},{"$f":"'Semana Atual'!E$224","v":0},{"$f":"'Semana Atual'!F$224","v":0},{"$f":"'Semana Atual'!G$224","v":0},{"$f":"'Semana Atual'!H$224","v":0},{"$f":"'Semana Atual'!I$224","v":0}]
[{"$f":"\"- \"&Configurações!$E$13","v":"- Uber"},{"$f":"'Semana Atual'!C216+'Semana Atual'!C220","v":0},{"$f":"'Semana Atual'!D216+'Semana Atual'!D220","v":0},{"$f":"'Semana Atual'!E216+'Semana Atual'!E220","v":0},{"$f":"'Semana Atual'!F216+'Semana Atual'!F220","v":0},{"$f":"'Semana Atual'!G216+'Semana Atual'!G220","v":0},{"$f":"'Semana Atual'!H216+'Semana Atual'!H220","v":0},{"$f":"'Semana Atual'!I216+'Semana Atual'!I220","v":0},{"$f":"SUM(B11:H11)","v":0}]
[{"$f":"\"- \"&Configurações!$E$14","v":"- App 2"},{"$f":"'Semana Atual'!C217+'Semana Atual'!C221","v":0},{"$f":"'Semana Atual'!D217+'Semana Atual'!D221","v":0},{"$f":"'Semana Atual'!E217+'Semana Atual'!E221","v":0},{"$f":"'Semana Atual'!F217+'Semana Atual'!F221","v":0},{"$f":"'Semana Atual'!G217+'Semana Atual'!G221","v":0},{"$f":"'Semana Atual'!H217+'Semana Atual'!H221","v":0},{"$f":"'Semana Atual'!I217+'Semana Atual'!I221","v":0},{"$f":"SUM(B12:H12)","v":0}]
[{"$f":"\"- \"&Configurações!$E$15","v":"- App 3"},{"$f":"'Semana Atual'!C218+'Semana Atual'!C222","v":0},{"$f":"'Semana Atual'!D218+'Semana Atual'!D222","v":0},{"$f":"'Semana Atual'!E218+'Semana Atual'!E222","v":0},{"$f":"'Semana Atual'!F218+'Semana Atual'!F222","v":0},{"$f":"'Semana Atual'!G218+'Semana Atual'!G222","v":0},{"$f":"'Semana Atual'!H218+'Semana Atual'!H222","v":0},{"$f":"'Semana Atual'!I218+'Semana Atual'!I222","v":0},{"$f":"SUM(B13:H13)","v":0}]
["Despesa (Média Histórica)",{"$f":"SUM('Semana Atual'!C238,'Semana Atual'!C245)","v":0},{"$f":"SUM('Semana Atual'!D238,'Semana Atual'!D245)","v":0},{"$f":"SUM('Semana Atual'!E238,'Semana Atual'!E245)","v":0},{"$f":"SUM('Semana Atual'!F238,'Semana Atual'!F245)","v":0},{"$f":"SUM('Semana Atual'!G238,'Semana Atual'!G245)","v":0},{"$f":"SUM('Semana Atual'!H238,'Semana Atual'!H245)","v":0},{"$f":"SUM('Semana Atual'!I238,'Semana Atual'!I245)","v":0}]
["Receita (Semana Atual)",{"$f":"'Semana Atual'!C$17","v":0},{"$f":"'Semana Atual'!D$17","v":0},{"$f":"'Semana Atual'!E$17","v":0},{"$f":"'Semana Atual'!F$17","v":0},{"$f":"'Semana Atual'!G$17","v":0},{"$f":"'Semana Atual'!H$17","v":0},{"$f":"'Semana Atual'!I$17","v":0}]
[{"$f":"\"- \"&Configurações!$E$13","v":"- Uber"},{"$f":"INDEX('Semana Atual'!C$8:C$11,MATCH($A16,'Semana Atual'!$B$8:$B$11,0))+INDEX('Semana Atual'!C$12:C$15,MATCH($A16,'Semana Atual'!$B$12:$B$15,0))","v":0},{"$f":"INDEX('Semana Atual'!D$8:D$11,MATCH($A16,'Semana Atual'!$B$8:$B$11,0))+INDEX('Semana Atual'!D$12:D$15,MATCH($A16,'Semana Atual'!$B$12:$B$15,0))","v":0},{"$f":"INDEX('Semana Atual'!E$8:E$11,MATCH($A16,'Semana Atual'!$B$8:$B$11,0))+INDEX('Semana Atual'!E$12:E$15,MATCH($A16,'Semana Atual'!$B$12:$B$15,0))","v":0},{"$f":"INDEX('Semana Atual'!F$8:F$11,MATCH($A16,'Semana Atual'!$B$8:$B$11,0))+INDEX('Semana Atual'!F$12:F$15,MATCH($A16,'Semana Atual'!$B$12:$B$15,0))","v":0},{"$f":"INDEX('Semana Atual'!G$8:G$11,MATCH($A16,'Semana Atual'!$B$8:$B$11,0))+INDEX('Semana Atual'!G$12:G$15,MATCH($A16,'Semana Atual'!$B$12:$B$15,0))","v":0},{"$f":"INDEX('Semana Atual'!H$8:H$11,MATCH($A16,'Semana Atual'!$B$8:$B$11,0))+INDEX('Semana Atual'!H$12:H$15,MATCH($A16,'Semana Atual'!$B$12:$B$15,0))","v":0},{"$f":"INDEX('Semana Atual'!I$8:I$11,MATCH($A16,'Semana Atual'!$B$8:$B$11,0))+INDEX('Semana Atual'!I$12:I$15,MATCH($A16,'Semana Atual'!$B$12:$B$15,0))","v":0},{"$f":"SUM(B16:H16)","v":0}]
[{"$f":"\"- \"&Configurações!$E$14","v":"- App 2"},{"$f":"INDEX('Semana Atual'!C$8:C$11,MATCH($A17,'Semana Atual'!$B$8:$B$11,0))+INDEX('Semana Atual'!C$12:C$15,MATCH($A17,'Semana Atual'!$B$12:$B$15,0))","v":{"$error":"#VALUE!"}},{"$f":"INDEX('Semana Atual'!D$8:D$11,MATCH($A17,'Semana Atual'!$B$8:$B$11,0))+INDEX('Semana Atual'!D$12:D$15,MATCH($A17,'Semana Atual'!$B$12:$B$15,0))","v":0},{"$f":"INDEX('Semana Atual'!E$8:E$11,MATCH($A17,'Semana Atual'!$B$8:$B$11,0))+INDEX('Semana Atual'!E$12:E$15,MATCH($A17,'Semana Atual'!$B$12:$B$15,0))","v":0},{"$f":"INDEX('Semana Atual'!F$8:F$11,MATCH($A17,'Semana Atual'!$B$8:$B$11,0))+INDEX('Semana Atual'!F$12:F$15,MATCH($A17,'Semana Atual'!$B$12:$B$15,0))","v":0},{"$f":"INDEX('Semana Atual'!G$8:G$11,MATCH($A17,'Semana Atual'!$B$8:$B$11,0))+INDEX('Semana Atual'!G$12:G$15,MATCH($A17,'Semana Atual'!$B$12:$B$15,0))","v":0},{"$f":"INDEX('Semana Atual'!H$8:H$11,MATCH($A17,'Semana Atual'!$B$8:$B$11,0))+INDEX('Semana Atual'!H$12:H$15,MATCH($A17,'Semana Atual'!$B$12:$B$15,0))","v":0},{"$f":"INDEX('Semana Atual'!I$8:I$11,MATCH($A17,'Semana Atual'!$B$8:$B$11,0))+INDEX('Semana Atual'!I$12:I$15,MATCH($A17,'Semana Atual'!$B$12:$B$15,0))","v":0},{"$f":"SUM(B17:H17)","v":{"$error":"#VALUE!"}}]
[{"$f":"\"- \"&Configurações!$E$15","v":"- App 3"},{"$f":"INDEX('Semana Atual'!C$8:C$11,MATCH($A18,'Semana Atual'!$B$8:$B$11,0))+INDEX('Semana Atual'!C$12:C$15,MATCH($A18,'Semana Atual'!$B$12:$B$15,0))","v":{"$error":"#VALUE!"}},{"$f":"INDEX('Semana Atual'!D$8:D$11,MATCH($A18,'Semana Atual'!$B$8:$B$11,0))+INDEX('Semana Atual'!D$12:D$15,MATCH($A18,'Semana Atual'!$B$12:$B$15,0))","v":0},{"$f":"INDEX('Semana Atual'!E$8:E$11,MATCH($A18,'Semana Atual'!$B$8:$B$11,0))+INDEX('Semana Atual'!E$12:E$15,MATCH($A18,'Semana Atual'!$B$12:$B$15,0))","v":0},{"$f":"INDEX('Semana Atual'!F$8:F$11,MATCH($A18,'Semana Atual'!$B$8:$B$11,0))+INDEX('Semana Atual'!F$12:F$15,MATCH($A18,'Semana Atual'!$B$12:$B$15,0))","v":0},{"$f":"INDEX('Semana Atual'!G$8:G$11,MATCH($A18,'Semana Atual'!$B$8:$B$11,0))+INDEX('Semana Atual'!G$12:G$15,MATCH($A18,'Semana Atual'!$B$12:$B$15,0))","v":0},{"$f":"INDEX('Semana Atual'!H$8:H$11,MATCH($A18,'Semana Atual'!$B$8:$B$11,0))+INDEX('Semana Atual'!H$12:H$15,MATCH($A18,'Semana Atual'!$B$12:$B$15,0))","v":0},{"$f":"INDEX('Semana Atual'!I$8:I$11,MATCH($A18,'Semana Atual'!$B$8:$B$11,0))+INDEX('Semana Atual'!I$12:I$15,MATCH($A18,'Semana Atual'!$B$12:$B$15,0))","v":0},{"$f":"SUM(B18:H18)","v":{"$error":"#VALUE!"}}]
["Gastos (Semana Atual)",{"$f":"SUM('Semana Atual'!C38,'Semana Atual'!C31)","v":0},{"$f":"SUM('Semana Atual'!D38,'Semana Atual'!D31)","v":0},{"$f":"SUM('Semana Atual'!E38,'Semana Atual'!E31)","v":0},{"$f":"SUM('Semana Atual'!F38,'Semana Atual'!F31)","v":0},{"$f":"SUM('Semana Atual'!G38,'Semana Atual'!G31)","v":0},{"$f":"SUM('Semana Atual'!H38,'Semana Atual'!H31)","v":0},{"$f":"SUM('Semana Atual'!I38,'Semana Atual'!I31)","v":0}]
["Receita (Semana Passada)",{"$f":"SUMIFS('Banco de Dados'!C:C,'Banco de Dados'!$A:$A,$A$7,'Banco de Dados'!$B:$B,'Semana Atual'!$B17)","v":0},{"$f":"SUMIFS('Banco de Dados'!D:D,'Banco de Dados'!$A:$A,$A$7,'Banco de Dados'!$B:$B,'Semana Atual'!$B17)","v":0},{"$f":"SUMIFS('Banco de Dados'!E:E,'Banco de Dados'!$A:$A,$A$7,'Banco de Dados'!$B:$B,'Semana Atual'!$B17)","v":0},{"$f":"SUMIFS('Banco de Dados'!F:F,'Banco de Dados'!$A:$A,$A$7,'Banco de Dados'!$B:$B,'Semana Atual'!$B17)","v":0},{"$f":"SUMIFS('Banco de Dados'!G:G,'Banco de Dados'!$A:$A,$A$7,'Banco de Dados'!$B:$B,'Semana Atual'!$B17)","v":0},{"$f":"SUMIFS('Banco de Dados'!H:H,'Banco de Dados'!$A:$A,$A$7,'Banco de Dados'!$B:$B,'Semana Atual'!$B17)","v":0},{"$f":"SUMIFS('Banco de Dados'!I:I,'Banco de Dados'!$A:$A,$A$7,'Banco de Dados'!$B:$B,'Semana Atual'!$B17)","v":0}]
[{"$f":"\"- \"&Configurações!$E$13","v":"- Uber"},{"$f":"SUMIFS('Banco de Dados'!C:C,'Banco de Dados'!$A:$A,$A$7,'Banco de Dados'!$K:$K,\"Ganhos do dia \"&$A21)+SUMIFS('Banco de Dados'!C:C,'Banco de Dados'!$A:$A,$A$7,'Banco de Dados'!$K:$K,\"Bônus/Incentivo \"&$A21)","v":0},{"$f":"SUMIFS('Banco de Dados'!D:D,'Banco de Dados'!$A:$A,$A$7,'Banco de Dados'!$K:$K,\"Ganhos do dia \"&$A21)+SUMIFS('Banco de Dados'!D:D,'Banco de Dados'!$A:$A,$A$7,'Banco de Dados'!$K:$K,\"Bônus/Incentivo \"&$A21)","v":0},{"$f":"SUMIFS('Banco de Dados'!E:E,'Banco de Dados'!$A:$A,$A$7,'Banco de Dados'!$K:$K,\"Ganhos do dia \"&$A21)+SUMIFS('Banco de Dados'!E:E,'Banco de Dados'!$A:$A,$A$7,'Banco de Dados'!$K:$K,\"Bônus/Incentivo \"&$A21)","v":0},{"$f":"SUMIFS('Banco de Dados'!F:F,'Banco de Dados'!$A:$A,$A$7,'Banco de Dados'!$K:$K,\"Ganhos do dia \"&$A21)+SUMIFS('Banco de Dados'!F:F,'Banco de Dados'!$A:$A,$A$7,'Banco de Dados'!$K:$K,\"Bônus/Incentivo \"&$A21)","v":0},{"$f":"SUMIFS('Banco de Dados'!G:G,'Banco de Dados'!$A:$A,$A$7,'Banco de Dados'!$K:$K,\"Ganhos do dia \"&$A21)+SUMIFS('Banco de Dados'!G:G,'Banco de Dados'!$A:$A,$A$7,'Banco de Dados'!$K:$K,\"Bônus/Incentivo \"&$A21)","v":0},{"$f":"SUMIFS('Banco de Dados'!H:H,'Banco de Dados'!$A:$A,$A$7,'Banco de Dados'!$K:$K,\"Ganhos do dia \"&$A21)+SUMIFS('Banco de Dados'!H:H,'Banco de Dados'!$A:$A,$A$7,'Banco de Dados'!$K:$K,\"Bônus/Incentivo \"&$A21)","v":0},{"$f":"SUMIFS('Banco de Dados'!I:I,'Banco de Dados'!$A:$A,$A$7,'Banco de Dados'!$K:$K,\"Ganhos do dia \"&$A21)+SUMIFS('Banco de Dados'!I:I,'Banco de Dados'!$A:$A,$A$7,'Banco de Dados'!$K:$K,\"Bônus/Incentivo \"&$A21)","v":0},{"$f":"SUM(B21:H21)","v":0}]
[{"$f":"\"- \"&Configurações!$E$14","v":"- App 2"},{"$f":"SUMIFS('Banco de Dados'!C:C,'Banco de Dados'!$A:$A,$A$7,'Banco de Dados'!$K:$K,\"Ganhos do dia \"&$A22)+SUMIFS('Banco de Dados'!C:C,'Banco de Dados'!$A:$A,$A$7,'Banco de Dados'!$K:$K,\"Bônus/Incentivo \"&$A22)","v":0},{"$f":"SUMIFS('Banco de Dados'!D:D,'Banco de Dados'!$A:$A,$A$7,'Banco de Dados'!$K:$K,\"Ganhos do dia \"&$A22)+SUMIFS('Banco de Dados'!D:D,'Banco de Dados'!$A:$A,$A$7,'Banco de Dados'!$K:$K,\"Bônus/Incentivo \"&$A22)","v":0},{"$f":"SUMIFS('Banco de Dados'!E:E,'Banco de Dados'!$A:$A,$A$7,'Banco de Dados'!$K:$K,\"Ganhos do dia \"&$A22)+SUMIFS('Banco de Dados'!E:E,'Banco de Dados'!$A:$A,$A$7,'Banco de Dados'!$K:$K,\"Bônus/Incentivo \"&$A22)","v":0},{"$f":"SUMIFS('Banco de Dados'!F:F,'Banco de Dados'!$A:$A,$A$7,'Banco de Dados'!$K:$K,\"Ganhos do dia \"&$A22)+SUMIFS('Banco de Dados'!F:F,'Banco de Dados'!$A:$A,$A$7,'Banco de Dados'!$K:$K,\"Bônus/Incentivo \"&$A22)","v":0},{"$f":"SUMIFS('Banco de Dados'!G:G,'Banco de Dados'!$A:$A,$A$7,'Banco de Dados'!$K:$K,\"Ganhos do dia \"&$A22)+SUMIFS('Banco de Dados'!G:G,'Banco de Dados'!$A:$A,$A$7,'Banco de Dados'!$K:$K,\"Bônus/Incentivo \"&$A22)","v":0},{"$f":"SUMIFS('Banco de Dados'!H:H,'Banco de Dados'!$A:$A,$A$7,'Banco de Dados'!$K:$K,\"Ganhos do dia \"&$A22)+SUMIFS('Banco de Dados'!H:H,'Banco de Dados'!$A:$A,$A$7,'Banco de Dados'!$K:$K,\"Bônus/Incentivo \"&$A22)","v":0},{"$f":"SUMIFS('Banco de Dados'!I:I,'Banco de Dados'!$A:$A,$A$7,'Banco de Dados'!$K:$K,\"Ganhos do dia \"&$A22)+SUMIFS('Banco de Dados'!I:I,'Banco de Dados'!$A:$A,$A$7,'Banco de Dados'!$K:$K,\"Bônus/Incentivo \"&$A22)","v":0},{"$f":"SUM(B22:H22)","v":0}]
[{"$f":"\"- \"&Configurações!$E$15","v":"- App 3"},{"$f":"SUMIFS('Banco de Dados'!C:C,'Banco de Dados'!$A:$A,$A$7,'Banco de Dados'!$K:$K,\"Ganhos do dia \"&$A23)+SUMIFS('Banco de Dados'!C:C,'Banco de Dados'!$A:$A,$A$7,'Banco de Dados'!$K:$K,\"Bônus/Incentivo \"&$A23)","v":0},{"$f":"SUMIFS('Banco de Dados'!D:D,'Banco de Dados'!$A:$A,$A$7,'Banco de Dados'!$K:$K,\"Ganhos do dia \"&$A23)+SUMIFS('Banco de Dados'!D:D,'Banco de Dados'!$A:$A,$A$7,'Banco de Dados'!$K:$K,\"Bônus/Incentivo \"&$A23)","v":0},{"$f":"SUMIFS('Banco de Dados'!E:E,'Banco de Dados'!$A:$A,$A$7,'Banco de Dados'!$K:$K,\"Ganhos do dia \"&$A23)+SUMIFS('Banco de Dados'!E:E,'Banco de Dados'!$A:$A,$A$7,'Banco de Dados'!$K:$K,\"Bônus/Incentivo \"&$A23)","v":0},{"$f":"SUMIFS('Banco de Dados'!F:F,'Banco de Dados'!$A:$A,$A$7,'Banco de Dados'!$K:$K,\"Ganhos do dia \"&$A23)+SUMIFS('Banco de Dados'!F:F,'Banco de Dados'!$A:$A,$A$7,'Banco de Dados'!$K:$K,\"Bônus/Incentivo \"&$A23)","v":0},{"$f":"SUMIFS('Banco de Dados'!G:G,'Banco de Dados'!$A:$A,$A$7,'Banco de Dados'!$K:$K,\"Ganhos do dia \"&$A23)+SUMIFS('Banco de Dados'!G:G,'Banco de Dados'!$A:$A,$A$7,'Banco de Dados'!$K:$K,\"Bônus/Incentivo \"&$A23)","v":0},{"$f":"SUMIFS('Banco de Dados'!H:H,'Banco de Dados'!$A:$A,$A$7,'Banco de Dados'!$K:$K,\"Ganhos do dia \"&$A23)+SUMIFS('Banco de Dados'!H:H,'Banco de Dados'!$A:$A,$A$7,'Banco de Dados'!$K:$K,\"Bônus/Incentivo \"&$A23)","v":0},{"$f":"SUMIFS('Banco de Dados'!I:I,'Banco de Dados'!$A:$A,$A$7,'Banco de Dados'!$K:$K,\"Ganhos do dia \"&$A23)+SUMIFS('Banco de Dados'!I:I,'Banco de Dados'!$A:$A,$A$7,'Banco de Dados'!$K:$K,\"Bônus/Incentivo \"&$A23)","v":0},{"$f":"SUM(B23:H23)","v":0}]
["Gastos (Semana Passada)",{"$f":"SUMIFS('Banco de Dados'!C:C,'Banco de Dados'!$A:$A,$A$7,'Banco de Dados'!$B:$B,'Semana Atual'!$B31)+SUMIFS('Banco de Dados'!C:C,'Banco de Dados'!$A:$A,$A$7,'Banco de Dados'!$B:$B,'Semana Atual'!$B38)","v":0},{"$f":"SUMIFS('Banco de Dados'!D:D,'Banco de Dados'!$A:$A,$A$7,'Banco de Dados'!$B:$B,'Semana Atual'!$B31)+SUMIFS('Banco de Dados'!D:D,'Banco de Dados'!$A:$A,$A$7,'Banco de Dados'!$B:$B,'Semana Atual'!$B38)","v":0},{"$f":"SUMIFS('Banco de Dados'!E:E,'Banco de Dados'!$A:$A,$A$7,'Banco de Dados'!$B:$B,'Semana Atual'!$B31)+SUMIFS('Banco de Dados'!E:E,'Banco de Dados'!$A:$A,$A$7,'Banco de Dados'!$B:$B,'Semana Atual'!$B38)","v":0},{"$f":"SUMIFS('Banco de Dados'!F:F,'Banco de Dados'!$A:$A,$A$7,'Banco de Dados'!$B:$B,'Semana Atual'!$B31)+SUMIFS('Banco de Dados'!F:F,'Banco de Dados'!$A:$A,$A$7,'Banco de Dados'!$B:$B,'Semana Atual'!$B38)","v":0},{"$f":"SUMIFS('Banco de Dados'!G:G,'Banco de Dados'!$A:$A,$A$7,'Banco de Dados'!$B:$B,'Semana Atual'!$B31)+SUMIFS('Banco de Dados'!G:G,'Banco de Dados'!$A:$A,$A$7,'Banco de Dados'!$B:$B,'Semana Atual'!$B38)","v":0},{"$f":"SUMIFS('Banco de Dados'!H:H,'Banco de Dados'!$A:$A,$A$7,'Banco de Dados'!$B:$B,'Semana Atual'!$B31)+SUMIFS('Banco de Dados'!H:H,'Banco de Dados'!$A:$A,$A$7,'Banco de Dados'!$B:$B,'Semana Atual'!$B38)","v":0},{"$f":"SUMIFS('Banco de Dados'!I:I,'Banco de Dados'!$A:$A,$A$7,'Banco de Dados'!$B:$B,'Semana Atual'!$B31)+SUMIFS('Banco de Dados'!I:I,'Banco de Dados'!$A:$A,$A$7,'Banco de Dados'!$B:$B,'Semana Atual'!$B38)","v":0}]
["Receita",{"$f":"SUMIFS('Banco de Dados'!$J:$J,'Banco de Dados'!$A:$A,B$9,'Banco de Dados'!$B:$B,'Semana Atual'!$B$17)","v":0},{"$f":"SUMIFS('Banco de Dados'!$J:$J,'Banco de Dados'!$A:$A,C$9,'Banco de Dados'!$B:$B,'Semana Atual'!$B$17)","v":0},{"$f":"SUMIFS('Banco de Dados'!$J:$J,'Banco de Dados'!$A:$A,D$9,'Banco de Dados'!$B:$B,'Semana Atual'!$B$17)","v":0},{"$f":"SUMIFS('Banco de Dados'!$J:$J,'Banco de Dados'!$A:$A,E$9,'Banco de Dados'!$B:$B,'Semana Atual'!$B$17)","v":0},{"$f":"SUMIFS('Banco de Dados'!$J:$J,'Banco de Dados'!$A:$A,F$9,'Banco de Dados'!$B:$B,'Semana Atual'!$B$17)","v":0},{"$f":"SUMIFS('Banco de Dados'!$J:$J,'Banco de Dados'!$A:$A,G$9,'Banco de Dados'!$B:$B,'Semana Atual'!$B$17)","v":0},{"$f":"SUMIFS('Banco de Dados'!$J:$J,'Banco de Dados'!$A:$A,H$9,'Banco de Dados'!$B:$B,'Semana Atual'!$B$17)","v":0},{"$f":"SUMIFS('Banco de Dados'!$J:$J,'Banco de Dados'!$A:$A,I$9,'Banco de Dados'!$B:$B,'Semana Atual'!$B$17)","v":0}]
[{"$f":"\"- \"&Configurações!$E$13","v":"- Uber"},{"$f":"SUMIFS('Banco de Dados'!$J:$J,'Banco de Dados'!$A:$A,B$9,'Banco de Dados'!$K:$K,\"Ganhos do dia \"&$A26)+SUMIFS('Banco de Dados'!$J:$J,'Banco de Dados'!$A:$A,B$9,'Banco de Dados'!$K:$K,\"Bônus/Incentivo \"&$A26)","v":0},{"$f":"SUMIFS('Banco de Dados'!$J:$J,'Banco de Dados'!$A:$A,C$9,'Banco de Dados'!$K:$K,\"Ganhos do dia \"&$A26)+SUMIFS('Banco de Dados'!$J:$J,'Banco de Dados'!$A:$A,C$9,'Banco de Dados'!$K:$K,\"Bônus/Incentivo \"&$A26)","v":0},{"$f":"SUMIFS('Banco de Dados'!$J:$J,'Banco de Dados'!$A:$A,D$9,'Banco de Dados'!$K:$K,\"Ganhos do dia \"&$A26)+SUMIFS('Banco de Dados'!$J:$J,'Banco de Dados'!$A:$A,D$9,'Banco de Dados'!$K:$K,\"Bônus/Incentivo \"&$A26)","v":0},{"$f":"SUMIFS('Banco de Dados'!$J:$J,'Banco de Dados'!$A:$A,E$9,'Banco de Dados'!$K:$K,\"Ganhos do dia \"&$A26)+SUMIFS('Banco de Dados'!$J:$J,'Banco de Dados'!$A:$A,E$9,'Banco de Dados'!$K:$K,\"Bônus/Incentivo \"&$A26)","v":0},{"$f":"SUMIFS('Banco de Dados'!$J:$J,'Banco de Dados'!$A:$A,F$9,'Banco de Dados'!$K:$K,\"Ganhos do dia \"&$A26)+SUMIFS('Banco de Dados'!$J:$J,'Banco de Dados'!$A:$A,F$9,'Banco de Dados'!$K:$K,\"Bônus/Incentivo \"&$A26)","v":0},{"$f":"SUMIFS('Banco de Dados'!$J:$J,'Banco de Dados'!$A:$A,G$9,'Banco de Dados'!$K:$K,\"Ganhos do dia \"&$A26)+SUMIFS('Banco de Dados'!$J:$J,'Banco de Dados'!$A:$A,G$9,'Banco de Dados'!$K:$K,\"Bônus/Incentivo \"&$A26)","v":0},{"$f":"SUMIFS('Banco de Dados'!$J:$J,'Banco de Dados'!$A:$A,H$9,'Banco de Dados'!$K:$K,\"Ganhos do dia \"&$A26)+SUMIFS('Banco de Dados'!$J:$J,'Banco de Dados'!$A:$A,H$9,'Banco de Dados'!$K:$K,\"Bônus/Incentivo \"&$A26)","v":0},{"$f":"SUMIFS('Banco de Dados'!$J:$J,'Banco de Dados'!$A:$A,I$9,'Banco de Dados'!$K:$K,\"Ganhos do dia \"&$A26)+SUMIFS('Banco de Dados'!$J:$J,'Banco de Dados'!$A:$A,I$9,'Banco de Dados'!$K:$K,\"Bônus/Incentivo \"&$A26)","v":0}]
[{"$f":"\"- \"&Configurações!$E$14","v":"- App 2"},{"$f":"SUMIFS('Banco de Dados'!$J:$J,'Banco de Dados'!$A:$A,B$9,'Banco de Dados'!$K:$K,\"Ganhos do dia \"&$A27)+SUMIFS('Banco de Dados'!$J:$J,'Banco de Dados'!$A:$A,B$9,'Banco de Dados'!$K:$K,\"Bônus/Incentivo \"&$A27)","v":0},{"$f":"SUMIFS('Banco de Dados'!$J:$J,'Banco de Dados'!$A:$A,C$9,'Banco de Dados'!$K:$K,\"Ganhos do dia \"&$A27)+SUMIFS('Banco de Dados'!$J:$J,'Banco de Dados'!$A:$A,C$9,'Banco de Dados'!$K:$K,\"Bônus/Incentivo \"&$A27)","v":0},{"$f":"SUMIFS('Banco de Dados'!$J:$J,'Banco de Dados'!$A:$A,D$9,'Banco de Dados'!$K:$K,\"Ganhos do dia \"&$A27)+SUMIFS('Banco de Dados'!$J:$J,'Banco de Dados'!$A:$A,D$9,'Banco de Dados'!$K:$K,\"Bônus/Incentivo \"&$A27)","v":0},{"$f":"SUMIFS('Banco de Dados'!$J:$J,'Banco de Dados'!$A:$A,E$9,'Banco de Dados'!$K:$K,\"Ganhos do dia \"&$A27)+SUMIFS('Banco de Dados'!$J:$J,'Banco de Dados'!$A:$A,E$9,'Banco de Dados'!$K:$K,\"Bônus/Incentivo \"&$A27)","v":0},{"$f":"SUMIFS('Banco de Dados'!$J:$J,'Banco de Dados'!$A:$A,F$9,'Banco de Dados'!$K:$K,\"Ganhos do dia \"&$A27)+SUMIFS('Banco de Dados'!$J:$J,'Banco de Dados'!$A:$A,F$9,'Banco de Dados'!$K:$K,\"Bônus/Incentivo \"&$A27)","v":0},{"$f":"SUMIFS('Banco de Dados'!$J:$J,'Banco de Dados'!$A:$A,G$9,'Banco de Dados'!$K:$K,\"Ganhos do dia \"&$A27)+SUMIFS('Banco de Dados'!$J:$J,'Banco de Dados'!$A:$A,G$9,'Banco de Dados'!$K:$K,\"Bônus/Incentivo \"&$A27)","v":0},{"$f":"SUMIFS('Banco de Dados'!$J:$J,'Banco de Dados'!$A:$A,H$9,'Banco de Dados'!$K:$K,\"Ganhos do dia \"&$A27)+SUMIFS('Banco de Dados'!$J:$J,'Banco de Dados'!$A:$A,H$9,'Banco de Dados'!$K:$K,\"Bônus/Incentivo \"&$A27)","v":0},{"$f":"SUMIFS('Banco de Dados'!$J:$J,'Banco de Dados'!$A:$A,I$9,'Banco de Dados'!$K:$K,\"Ganhos do dia \"&$A27)+SUMIFS('Banco de Dados'!$J:$J,'Banco de Dados'!$A:$A,I$9,'Banco de Dados'!$K:$K,\"Bônus/Incentivo \"&$A27)","v":0}]
[{"$f":"\"- \"&Configurações!$E$15","v":"- App 3"},{"$f":"SUMIFS('Banco de Dados'!$J:$J,'Banco de Dados'!$A:$A,B$9,'Banco de Dados'!$K:$K,\"Ganhos do dia \"&$A28)+SUMIFS('Banco de Dados'!$J:$J,'Banco de Dados'!$A:$A,B$9,'Banco de Dados'!$K:$K,\"Bônus/Incentivo \"&$A28)","v":0},{"$f":"SUMIFS('Banco de Dados'!$J:$J,'Banco de Dados'!$A:$A,C$9,'Banco de Dados'!$K:$K,\"Ganhos do dia \"&$A28)+SUMIFS('Banco de Dados'!$J:$J,'Banco de Dados'!$A:$A,C$9,'Banco de Dados'!$K:$K,\"Bônus/Incentivo \"&$A28)","v":0},{"$f":"SUMIFS('Banco de Dados'!$J:$J,'Banco de Dados'!$A:$A,D$9,'Banco de Dados'!$K:$K,\"Ganhos do dia \"&$A28)+SUMIFS('Banco de Dados'!$J:$J,'Banco de Dados'!$A:$A,D$9,'Banco de Dados'!$K:$K,\"Bônus/Incentivo \"&$A28)","v":0},{"$f":"SUMIFS('Banco de Dados'!$J:$J,'Banco de Dados'!$A:$A,E$9,'Banco de Dados'!$K:$K,\"Ganhos do dia \"&$A28)+SUMIFS('Banco de Dados'!$J:$J,'Banco de Dados'!$A:$A,E$9,'Banco de Dados'!$K:$K,\"Bônus/Incentivo \"&$A28)","v":0},{"$f":"SUMIFS('Banco de Dados'!$J:$J,'Banco de Dados'!$A:$A,F$9,'Banco de Dados'!$K:$K,\"Ganhos do dia \"&$A28)+SUMIFS('Banco de Dados'!$J:$J,'Banco de Dados'!$A:$A,F$9,'Banco de Dados'!$K:$K,\"Bônus/Incentivo \"&$A28)","v":0},{"$f":"SUMIFS('Banco de Dados'!$J:$J,'Banco de Dados'!$A:$A,G$9,'Banco de Dados'!$K:$K,\"Ganhos do dia \"&$A28)+SUMIFS('Banco de Dados'!$J:$J,'Banco de Dados'!$A:$A,G$9,'Banco de Dados'!$K:$K,\"Bônus/Incentivo \"&$A28)","v":0},{"$f":"SUMIFS('Banco de Dados'!$J:$J,'Banco de Dados'!$A:$A,H$9,'Banco de Dados'!$K:$K,\"Ganhos do dia \"&$A28)+SUMIFS('Banco de Dados'!$J:$J,'Banco de Dados'!$A:$A,H$9,'Banco de Dados'!$K:$K,\"Bônus/Incentivo \"&$A28)","v":0},{"$f":"SUMIFS('Banco de Dados'!$J:$J,'Banco de Dados'!$A:$A,I$9,'Banco de Dados'!$K:$K,\"Ganhos do dia \"&$A28)+SUMIFS('Banco de Dados'!$J:$J,'Banco de Dados'!$A:$A,I$9,'Banco de Dados'!$K:$K,\"Bônus/Incentivo \"&$A28)","v":0}]
["Gasto",{"$f":"SUMIFS('Banco de Dados'!$J:$J,'Banco de Dados'!$A:$A,B$9,'Banco de Dados'!$B:$B,'Semana Atual'!$B$31)+SUMIFS('Banco de Dados'!$J:$J,'Banco de Dados'!$A:$A,B$9,'Banco de Dados'!$B:$B,'Semana Atual'!$B$38)","v":0},{"$f":"SUMIFS('Banco de Dados'!$J:$J,'Banco de Dados'!$A:$A,C$9,'Banco de Dados'!$B:$B,'Semana Atual'!$B$31)+SUMIFS('Banco de Dados'!$J:$J,'Banco de Dados'!$A:$A,C$9,'Banco de Dados'!$B:$B,'Semana Atual'!$B$38)","v":0},{"$f":"SUMIFS('Banco de Dados'!$J:$J,'Banco de Dados'!$A:$A,D$9,'Banco de Dados'!$B:$B,'Semana Atual'!$B$31)+SUMIFS('Banco de Dados'!$J:$J,'Banco de Dados'!$A:$A,D$9,'Banco de Dados'!$B:$B,'Semana Atual'!$B$38)","v":0},{"$f":"SUMIFS('Banco de Dados'!$J:$J,'Banco de Dados'!$A:$A,E$9,'Banco de Dados'!$B:$B,'Semana Atual'!$B$31)+SUMIFS('Banco de Dados'!$J:$J,'Banco de Dados'!$A:$A,E$9,'Banco de Dados'!$B:$B,'Semana Atual'!$B$38)","v":0},{"$f":"SUMIFS('Banco de Dados'!$J:$J,'Banco de Dados'!$A:$A,F$9,'Banco de Dados'!$B:$B,'Semana Atual'!$B$31)+SUMIFS('Banco de Dados'!$J:$J,'Banco de Dados'!$A:$A,F$9,'Banco de Dados'!$B:$B,'Semana Atual'!$B$38)","v":0},{"$f":"SUMIFS('Banco de Dados'!$J:$J,'Banco de Dados'!$A:$A,G$9,'Banco de Dados'!$B:$B,'Semana Atual'!$B$31)+SUMIFS('Banco de Dados'!$J:$J,'Banco de Dados'!$A:$A,G$9,'Banco de Dados'!$B:$B,'Semana Atual'!$B$38)","v":0},{"$f":"SUMIFS('Banco de Dados'!$J:$J,'Banco de Dados'!$A:$A,H$9,'Banco de Dados'!$B:$B,'Semana Atual'!$B$31)+SUMIFS('Banco de Dados'!$J:$J,'Banco de Dados'!$A:$A,H$9,'Banco de Dados'!$B:$B,'Semana Atual'!$B$38)","v":0},{"$f":"SUMIFS('Banco de Dados'!$J:$J,'Banco de Dados'!$A:$A,I$9,'Banco de Dados'!$B:$B,'Semana Atual'!$B$31)+SUMIFS('Banco de Dados'!$J:$J,'Banco de Dados'!$A:$A,I$9,'Banco de Dados'!$B:$B,'Semana Atual'!$B$38)","v":0}]
["Gasto + Provisão",{"$f":"SUMIFS('Banco de Dados'!$J:$J,'Banco de Dados'!$A:$A,B$9,'Banco de Dados'!$B:$B,'Semana Atual'!$B$31)+SUMIFS('Banco de Dados'!$J:$J,'Banco de Dados'!$A:$A,B$9,'Banco de Dados'!$B:$B,'Semana Atual'!$B$38)+SUMIFS('Banco de Dados'!$J:$J,'Banco de Dados'!$A:$A,B$9,'Banco de Dados'!$B:$B,'Semana Atual'!$B$50)","v":0},{"$f":"SUMIFS('Banco de Dados'!$J:$J,'Banco de Dados'!$A:$A,C$9,'Banco de Dados'!$B:$B,'Semana Atual'!$B$31)+SUMIFS('Banco de Dados'!$J:$J,'Banco de Dados'!$A:$A,C$9,'Banco de Dados'!$B:$B,'Semana Atual'!$B$38)+SUMIFS('Banco de Dados'!$J:$J,'Banco de Dados'!$A:$A,C$9,'Banco de Dados'!$B:$B,'Semana Atual'!$B$50)","v":0},{"$f":"SUMIFS('Banco de Dados'!$J:$J,'Banco de Dados'!$A:$A,D$9,'Banco de Dados'!$B:$B,'Semana Atual'!$B$31)+SUMIFS('Banco de Dados'!$J:$J,'Banco de Dados'!$A:$A,D$9,'Banco de Dados'!$B:$B,'Semana Atual'!$B$38)+SUMIFS('Banco de Dados'!$J:$J,'Banco de Dados'!$A:$A,D$9,'Banco de Dados'!$B:$B,'Semana Atual'!$B$50)","v":0},{"$f":"SUMIFS('Banco de Dados'!$J:$J,'Banco de Dados'!$A:$A,E$9,'Banco de Dados'!$B:$B,'Semana Atual'!$B$31)+SUMIFS('Banco de Dados'!$J:$J,'Banco de Dados'!$A:$A,E$9,'Banco de Dados'!$B:$B,'Semana Atual'!$B$38)+SUMIFS('Banco de Dados'!$J:$J,'Banco de Dados'!$A:$A,E$9,'Banco de Dados'!$B:$B,'Semana Atual'!$B$50)","v":0},{"$f":"SUMIFS('Banco de Dados'!$J:$J,'Banco de Dados'!$A:$A,F$9,'Banco de Dados'!$B:$B,'Semana Atual'!$B$31)+SUMIFS('Banco de Dados'!$J:$J,'Banco de Dados'!$A:$A,F$9,'Banco de Dados'!$B:$B,'Semana Atual'!$B$38)+SUMIFS('Banco de Dados'!$J:$J,'Banco de Dados'!$A:$A,F$9,'Banco de Dados'!$B:$B,'Semana Atual'!$B$50)","v":0},{"$f":"SUMIFS('Banco de Dados'!$J:$J,'Banco de Dados'!$A:$A,G$9,'Banco de Dados'!$B:$B,'Semana Atual'!$B$31)+SUMIFS('Banco de Dados'!$J:$J,'Banco de Dados'!$A:$A,G$9,'Banco de Dados'!$B:$B,'Semana Atual'!$B$38)+SUMIFS('Banco de Dados'!$J:$J,'Banco de Dados'!$A:$A,G$9,'Banco de Dados'!$B:$B,'Semana Atual'!$B$50)","v":0},{"$f":"SUMIFS('Banco de Dados'!$J:$J,'Banco de Dados'!$A:$A,H$9,'Banco de Dados'!$B:$B,'Semana Atual'!$B$31)+SUMIFS('Banco de Dados'!$J:$J,'Banco de Dados'!$A:$A,H$9,'Banco de Dados'!$B:$B,'Semana Atual'!$B$38)+SUMIFS('Banco de Dados'!$J:$J,'Banco de Dados'!$A:$A,H$9,'Banco de Dados'!$B:$B,'Semana Atual'!$B$50)","v":0},{"$f":"SUMIFS('Banco de Dados'!$J:$J,'Banco de Dados'!$A:$A,I$9,'Banco de Dados'!$B:$B,'Semana Atual'!$B$31)+SUMIFS('Banco de Dados'!$J:$J,'Banco de Dados'!$A:$A,I$9,'Banco de Dados'!$B:$B,'Semana Atual'!$B$38)+SUMIFS('Banco de Dados'!$J:$J,'Banco de Dados'!$A:$A,I$9,'Banco de Dados'!$B:$B,'Semana Atual'!$B$50)","v":0}]
[]
["BASE PARA GRÁFICOS NA ABA GRÁFICOS"]
["Alimentação",{"$f":"SUMIFS('Banco de Dados'!$O:$O,'Banco de Dados'!B:B,\"Gastos com \"&$A33,'Banco de Dados'!$M:$M,\">=\"&Gráficos!$G$7,'Banco de Dados'!$N:$N,\"<=\"&Gráficos!$H$7)+SUMIFS('Banco de Dados'!$R:$R,'Banco de Dados'!B:B,\"Gastos com \"&$A33,'Banco de Dados'!$P:$P,\">=\"&Gráficos!$G$7,'Banco de Dados'!$Q:$Q,\"<=\"&Gráficos!$H$7)","v":0},"Combustível",{"$f":"SUMIFS('Banco de Dados'!$O:$O,'Banco de Dados'!B:B,\"Custos com \"&$C33,'Banco de Dados'!$M:$M,\">=\"&Gráficos!$G$7,'Banco de Dados'!$N:$N,\"<=\"&Gráficos!$H$7)+SUMIFS('Banco de Dados'!$R:$R,'Banco de Dados'!B:B,\"Custos com \"&$C33,'Banco de Dados'!$P:$P,\">=\"&Gráficos!$G$7,'Banco de Dados'!$Q:$Q,\"<=\"&Gráficos!$H$7)","v":0},"Ganhos do dia",{"$f":"SUMIFS('Banco de Dados'!$O:$O,'Banco de Dados'!B:B,$E33,'Banco de Dados'!$M:$M,\">=\"&Gráficos!$G$7,'Banco de Dados'!$N:$N,\"<=\"&Gráficos!$H$7)+SUMIFS('Banco de Dados'!$R:$R,'Banco de Dados'!B:B,$E33,'Banco de Dados'!$P:$P,\">=\"&Gráficos!$G$7,'Banco de Dados'!$Q:$Q,\"<=\"&Gráficos!$H$7)","v":0},"Depreciação",{"$f":"SUMIFS('Banco de Dados'!$O:$O,'Banco de Dados'!B:B,$G33&\" do veículo\",'Banco de Dados'!$M:$M,\">=\"&Gráficos!$G$7,'Banco de Dados'!$N:$N,\"<=\"&Gráficos!$H$7)+SUMIFS('Banco de Dados'!$R:$R,'Banco de Dados'!B:B,$G33&\" do veículo\",'Banco de Dados'!$P:$P,\">=\"&Gráficos!$G$7,'Banco de Dados'!$Q:$Q,\"<=\"&Gráficos!$H$7)","v":0}]
["Estacionamento",{"$f":"SUMIFS('Banco de Dados'!$O:$O,'Banco de Dados'!B:B,\"Gastos com \"&$A34,'Banco de Dados'!$M:$M,\">=\"&Gráficos!$G$7,'Banco de Dados'!$N:$N,\"<=\"&Gráficos!$H$7)+SUMIFS('Banco de Dados'!$R:$R,'Banco de Dados'!B:B,\"Gastos com \"&$A34,'Banco de Dados'!$P:$P,\">=\"&Gráficos!$G$7,'Banco de Dados'!$Q:$Q,\"<=\"&Gráficos!$H$7)","v":0},"Custos com água",{"$f":"SUMIFS('Banco de Dados'!$O:$O,'Banco de Dados'!B:B,\"Custos com \"&$C34,'Banco de Dados'!$M:$M,\">=\"&Gráficos!$G$7,'Banco de Dados'!$N:$N,\"<=\"&Gráficos!$H$7)+SUMIFS('Banco de Dados'!$R:$R,'Banco de Dados'!B:B,\"Custos com \"&$C34,'Banco de Dados'!$P:$P,\">=\"&Gráficos!$G$7,'Banco de Dados'!$Q:$Q,\"<=\"&Gráficos!$H$7)","v":0},"Bônus/Incentivo",{"$f":"SUMIFS('Banco de Dados'!$O:$O,'Banco de Dados'!B:B,$E34,'Banco de Dados'!$M:$M,\">=\"&Gráficos!$G$7,'Banco de Dados'!$N:$N,\"<=\"&Gráficos!$H$7)+SUMIFS('Banco de Dados'!$R:$R,'Banco de Dados'!B:B,$E34,'Banco de Dados'!$P:$P,\">=\"&Gráficos!$G$7,'Banco de Dados'!$Q:$Q,\"<=\"&Gráficos!$H$7)","v":0},"Seguro Anual",{"$f":"SUMIFS('Banco de Dados'!$O:$O,'Banco de Dados'!B:B,$G34,'Banco de Dados'!$M:$M,\">=\"&Gráficos!$G$7,'Banco de Dados'!$N:$N,\"<=\"&Gráficos!$H$7)+SUMIFS('Banco de Dados'!$R:$R,'Banco de Dados'!B:B,$G34,'Banco de Dados'!$P:$P,\">=\"&Gráficos!$G$7,'Banco de Dados'!$Q:$Q,\"<=\"&Gráficos!$H$7)","v":0}]
["Lavagem",{"$f":"SUMIFS('Banco de Dados'!$O:$O,'Banco de Dados'!B:B,\"Gastos com \"&$A35,'Banco de Dados'!$M:$M,\">=\"&Gráficos!$G$7,'Banco de Dados'!$N:$N,\"<=\"&Gráficos!$H$7)+SUMIFS('Banco de Dados'!$R:$R,'Banco de Dados'!B:B,\"Gastos com \"&$A35,'Banco de Dados'!$P:$P,\">=\"&Gráficos!$G$7,'Banco de Dados'!$Q:$Q,\"<=\"&Gráficos!$H$7)","v":0},"Custos com bala",{"$f":"SUMIFS('Banco de Dados'!$O:$O,'Banco de Dados'!B:B,\"Custos com \"&$C35,'Banco de Dados'!$M:$M,\">=\"&Gráficos!$G$7,'Banco de Dados'!$N:$N,\"<=\"&Gráficos!$H$7)+SUMIFS('Banco de Dados'!$R:$R,'Banco de Dados'!B:B,\"Custos com \"&$C35,'Banco de Dados'!$P:$P,\">=\"&Gráficos!$G$7,'Banco de Dados'!$Q:$Q,\"<=\"&Gráficos!$H$7)","v":0},"Outros Incentivos",{"$f":"SUMIFS('Banco de Dados'!$O:$O,'Banco de Dados'!B:B,$E35,'Banco de Dados'!$M:$M,\">=\"&Gráficos!$G$7,'Banco de Dados'!$N:$N,\"<=\"&Gráficos!$H$7)+SUMIFS('Banco de Dados'!$R:$R,'Banco de Dados'!B:B,$E35,'Banco de Dados'!$P:$P,\">=\"&Gráficos!$G$7,'Banco de Dados'!$Q:$Q,\"<=\"&Gráficos!$H$7)","v":0},"Prestação",{"$f":"SUMIFS('Banco de Dados'!$O:$O,'Banco de Dados'!B:B,$G35&\" do veículo\",'Banco de Dados'!$M:$M,\">=\"&Gráficos!$G$7,'Banco de Dados'!$N:$N,\"<=\"&Gráficos!$H$7)+SUMIFS('Banco de Dados'!$R:$R,'Banco de Dados'!B:B,$G35&\" do veículo\",'Banco de Dados'!$P:$P,\">=\"&Gráficos!$G$7,'Banco de Dados'!$Q:$Q,\"<=\"&Gráficos!$H$7)","v":0}]
["Multa",{"$f":"SUMIFS('Banco de Dados'!$O:$O,'Banco de Dados'!B:B,\"Gastos com \"&$A36,'Banco de Dados'!$M:$M,\">=\"&Gráficos!$G$7,'Banco de Dados'!$N:$N,\"<=\"&Gráficos!$H$7)+SUMIFS('Banco de Dados'!$R:$R,'Banco de Dados'!B:B,\"Gastos com \"&$A36,'Banco de Dados'!$P:$P,\">=\"&Gráficos!$G$7,'Banco de Dados'!$Q:$Q,\"<=\"&Gráficos!$H$7)","v":0},"Outros custos",{"$f":"SUMIFS('Banco de Dados'!$O:$O,'Banco de Dados'!B:B,\"Custos com \"&$C36,'Banco de Dados'!$M:$M,\">=\"&Gráficos!$G$7,'Banco de Dados'!$N:$N,\"<=\"&Gráficos!$H$7)+SUMIFS('Banco de Dados'!$R:$R,'Banco de Dados'!B:B,\"Custos com \"&$C36,'Banco de Dados'!$P:$P,\">=\"&Gráficos!$G$7,'Banco de Dados'!$Q:$Q,\"<=\"&Gráficos!$H$7)","v":0},"Ganhos",{"$f":"SUM(F33:F35)","v":0},"Troca de pneu",{"$f":"SUMIFS('Banco de Dados'!$O:$O,'Banco de Dados'!B:B,$G36,'Banco de Dados'!$M:$M,\">=\"&Gráficos!$G$7,'Banco de Dados'!$N:$N,\"<=\"&Gráficos!$H$7)+SUMIFS('Banco de Dados'!$R:$R,'Banco de Dados'!B:B,$G36,'Banco de Dados'!$P:$P,\">=\"&Gráficos!$G$7,'Banco de Dados'!$Q:$Q,\"<=\"&Gráficos!$H$7)","v":0}]
["Pedágio",{"$f":"SUMIFS('Banco de Dados'!$O:$O,'Banco de Dados'!B:B,\"Gastos com \"&$A37,'Banco de Dados'!$M:$M,\">=\"&Gráficos!$G$7,'Banco de Dados'!$N:$N,\"<=\"&Gráficos!$H$7)+SUMIFS('Banco de Dados'!$R:$R,'Banco de Dados'!B:B,\"Gastos com \"&$A37,'Banco de Dados'!$P:$P,\">=\"&Gráficos!$G$7,'Banco de Dados'!$Q:$Q,\"<=\"&Gráficos!$H$7)","v":0},"Custos",{"$f":"SUM(D33:D36)","v":0},null,null,"Troca de óleo",{"$f":"SUMIFS('Banco de Dados'!$O:$O,'Banco de Dados'!B:B,$G37,'Banco de Dados'!$M:$M,\">=\"&Gráficos!$G$7,'Banco de Dados'!$N:$N,\"<=\"&Gráficos!$H$7)+SUMIFS('Banco de Dados'!$R:$R,'Banco de Dados'!B:B,$G37,'Banco de Dados'!$P:$P,\">=\"&Gráficos!$G$7,'Banco de Dados'!$Q:$Q,\"<=\"&Gráficos!$H$7)","v":0}]
["Outros gastos",{"$f":"SUMIFS('Banco de Dados'!$O:$O,'Banco de Dados'!B:B,\"Gastos com \"&$A38,'Banco de Dados'!$M:$M,\">=\"&Gráficos!$G$7,'Banco de Dados'!$N:$N,\"<=\"&Gráficos!$H$7)+SUMIFS('Banco de Dados'!$R:$R,'Banco de Dados'!B:B,\"Gastos com \"&$A38,'Banco de Dados'!$P:$P,\">=\"&Gráficos!$G$7,'Banco de Dados'!$Q:$Q,\"<=\"&Gráficos!$H$7)","v":0},null,null,"Resultado Bruto",{"$f":"F36-D37-B39","v":0},"Outras",{"$f":"SUMIFS('Banco de Dados'!$O:$O,'Banco de Dados'!B:B,$G38&\" despesas anuais\",'Banco de Dados'!$M:$M,\">=\"&Gráficos!$G$7,'Banco de Dados'!$N:$N,\"<=\"&Gráficos!$H$7)+SUMIFS('Banco de Dados'!$R:$R,'Banco de Dados'!B:B,$G38&\" despesas anuais\",'Banco de Dados'!$P:$P,\">=\"&Gráficos!$G$7,'Banco de Dados'!$Q:$Q,\"<=\"&Gráficos!$H$7)","v":0}]
["Despesas",{"$f":"SUM(B33:B38)","v":0},null,null,"Resultado Líquido",{"$f":"F38-Auxiliar!H40","v":0},"Aluguel",{"$f":"SUMIFS('Banco de Dados'!$O:$O,'Banco de Dados'!B:B,$G39,'Banco de Dados'!$M:$M,\">=\"&Gráficos!$G$7,'Banco de Dados'!$N:$N,\"<=\"&Gráficos!$H$7)+SUMIFS('Banco de Dados'!$R:$R,'Banco de Dados'!B:B,$G39,'Banco de Dados'!$P:$P,\">=\"&Gráficos!$G$7,'Banco de Dados'!$Q:$Q,\"<=\"&Gráficos!$H$7)","v":0}]
[null,null,null,null,null,null,"Provisões",{"$f":"SUM(Auxiliar!H33:H39)","v":0}]
[null,"Ganhos","Gastos","Provisões","Resultado Bruto","Resultado Líquido"]
["Média do período selecionado",{"$f":"(SUMIFS('Banco de Dados'!$O:$O,'Banco de Dados'!$B:$B,\"TOTAL DE GANHOS\",'Banco de Dados'!$M:$M,\">=\"&Gráficos!$G$7,'Banco de Dados'!$N:$N,\"<=\"&Gráficos!$H$7)+SUMIFS('Banco de Dados'!$R:$R,'Banco de Dados'!$B:$B,\"TOTAL DE GANHOS\",'Banco de Dados'!$P:$P,\">=\"&Gráficos!$G$7,'Banco de Dados'!$Q:$Q,\"<=\"&Gráficos!$H$7))/Gráficos!$M$12","v":0},{"$f":"(SUMIFS('Banco de Dados'!$O:$O,'Banco de Dados'!$B:$B,\"TOTAL DE CUSTOS\",'Banco de Dados'!$M:$M,\">=\"&Gráficos!$G$7,'Banco de Dados'!$N:$N,\"<=\"&Gráficos!$H$7)+SUMIFS('Banco de Dados'!$R:$R,'Banco de Dados'!$B:$B,\"TOTAL DE CUSTOS\",'Banco de Dados'!$P:$P,\">=\"&Gráficos!$G$7,'Banco de Dados'!$Q:$Q,\"<=\"&Gráficos!$H$7)+SUMIFS('Banco de Dados'!$O:$O,'Banco de Dados'!$B:$B,\"TOTAL DE GASTOS\",'Banco de Dados'!$M:$M,\">=\"&Gráficos!$G$7,'Banco de Dados'!$N:$N,\"<=\"&Gráficos!$H$7)+SUMIFS('Banco de Dados'!$R:$R,'Banco de Dados'!$B:$B,\"TOTAL DE GASTOS\",'Banco de Dados'!$P:$P,\">=\"&Gráficos!$G$7,'Banco de Dados'!$Q:$Q,\"<=\"&Gráficos!$H$7))/Gráficos!$M$12","v":0},{"$f":"(SUMIFS('Banco de Dados'!$O:$O,'Banco de Dados'!$B:$B,\"Custo com provisões\",'Banco de Dados'!$M:$M,\">=\"&Gráficos!$G$7,'Banco de Dados'!$N:$N,\"<=\"&Gráficos!$H$7)+SUMIFS('Banco de Dados'!$R:$R,'Banco de Dados'!$B:$B,\"Custo com provisões\",'Banco de Dados'!$P:$P,\">=\"&Gráficos!$G$7,'Banco de Dados'!$Q:$Q,\"<=\"&Gráficos!$H$7))/Gráficos!$M$12","v":0},{"$f":"B42-C42","v":0},{"$f":"E42-D42","v":0},"Máximo",{"$f":"ROUNDUP(MAX(Auxiliar!B42:F45),-(LEN(ROUND(MAX($B$42:$F$45),0))-1))","v":0}]
["Média do último mês",{"$f":"(SUMIFS('Banco de Dados'!$O:$O,'Banco de Dados'!$B:$B,\"TOTAL DE GANHOS\",'Banco de Dados'!$M:$M,\">=\"&Gráficos!$M$5,'Banco de Dados'!$N:$N,\"<=\"&Gráficos!$N$5)+SUMIFS('Banco de Dados'!$R:$R,'Banco de Dados'!$B:$B,\"TOTAL DE GANHOS\",'Banco de Dados'!$P:$P,\">=\"&Gráficos!$M$5,'Banco de Dados'!$Q:$Q,\"<=\"&Gráficos!$N$5))/Gráficos!$M$11","v":0},{"$f":"(SUMIFS('Banco de Dados'!$O:$O,'Banco de Dados'!$B:$B,\"TOTAL DE CUSTOS\",'Banco de Dados'!$M:$M,\">=\"&Gráficos!$M$5,'Banco de Dados'!$N:$N,\"<=\"&Gráficos!$N$5)+SUMIFS('Banco de Dados'!$R:$R,'Banco de Dados'!$B:$B,\"TOTAL DE CUSTOS\",'Banco de Dados'!$P:$P,\">=\"&Gráficos!$M$5,'Banco de Dados'!$Q:$Q,\"<=\"&Gráficos!$N$5)+SUMIFS('Banco de Dados'!$O:$O,'Banco de Dados'!$B:$B,\"TOTAL DE GASTOS\",'Banco de Dados'!$M:$M,\">=\"&Gráficos!$M$5,'Banco de Dados'!$N:$N,\"<=\"&Gráficos!$N$5)+SUMIFS('Banco de Dados'!$R:$R,'Banco de Dados'!$B:$B,\"TOTAL DE GASTOS\",'Banco de Dados'!$P:$P,\">=\"&Gráficos!$M$5,'Banco de Dados'!$Q:$Q,\"<=\"&Gráficos!$N$5))/Gráficos!$M$11","v":0},{"$f":"(SUMIFS('Banco de Dados'!$O:$O,'Banco de Dados'!$B:$B,\"Custo com provisões\",'Banco de Dados'!$M:$M,\">=\"&Gráficos!$M$5,'Banco de Dados'!$N:$N,\"<=\"&Gráficos!$N$5)+SUMIFS('Banco de Dados'!$R:$R,'Banco de Dados'!$B:$B,\"Custo com provisões\",'Banco de Dados'!$P:$P,\">=\"&Gráficos!$M$5,'Banco de Dados'!$Q:$Q,\"<=\"&Gráficos!$N$5))/Gráficos!$M$11","v":0},{"$f":"B43-C43","v":0},{"$f":"E43-D43","v":0},"Mínimo",{"$f":"LEN(ROUND(MAX($B$42:$F$45),0))-1","v":0}]
["Média 3 últimos meses",{"$f":"(SUMIFS('Banco de Dados'!$O:$O,'Banco de Dados'!$B:$B,\"TOTAL DE GANHOS\",'Banco de Dados'!$M:$M,\">=\"&Gráficos!$M$7,'Banco de Dados'!$N:$N,\"<=\"&Gráficos!$N$7)+SUMIFS('Banco de Dados'!$R:$R,'Banco de Dados'!$B:$B,\"TOTAL DE GANHOS\",'Banco de Dados'!$P:$P,\">=\"&Gráficos!$M$7,'Banco de Dados'!$Q:$Q,\"<=\"&Gráficos!$N$7))/Gráficos!$M$13","v":0},{"$f":"(SUMIFS('Banco de Dados'!$O:$O,'Banco de Dados'!$B:$B,\"TOTAL DE CUSTOS\",'Banco de Dados'!$M:$M,\">=\"&Gráficos!$M$7,'Banco de Dados'!$N:$N,\"<=\"&Gráficos!$N$7)+SUMIFS('Banco de Dados'!$R:$R,'Banco de Dados'!$B:$B,\"TOTAL DE CUSTOS\",'Banco de Dados'!$P:$P,\">=\"&Gráficos!$M$7,'Banco de Dados'!$Q:$Q,\"<=\"&Gráficos!$N$7)+SUMIFS('Banco de Dados'!$O:$O,'Banco de Dados'!$B:$B,\"TOTAL DE GASTOS\",'Banco de Dados'!$M:$M,\">=\"&Gráficos!$M$7,'Banco de Dados'!$N:$N,\"<=\"&Gráficos!$N$7)+SUMIFS('Banco de Dados'!$R:$R,'Banco de Dados'!$B:$B,\"TOTAL DE GASTOS\",'Banco de Dados'!$P:$P,\">=\"&Gráficos!$M$7,'Banco de Dados'!$Q:$Q,\"<=\"&Gráficos!$N$7))/Gráficos!$M$13","v":0},{"$f":"(SUMIFS('Banco de Dados'!$O:$O,'Banco de Dados'!$B:$B,\"Custo com provisões\",'Banco de Dados'!$M:$M,\">=\"&Gráficos!$M$7,'Banco de Dados'!$N:$N,\"<=\"&Gráficos!$N$7)+SUMIFS('Banco de Dados'!$R:$R,'Banco de Dados'!$B:$B,\"Custo com provisões\",'Banco de Dados'!$P:$P,\">=\"&Gráficos!$M$7,'Banco de Dados'!$Q:$Q,\"<=\"&Gráficos!$N$7))/Gráficos!$M$13","v":0},{"$f":"B44-C44","v":0},{"$f":"E44-D44","v":0}]
["Média da semana passada",{"$f":"(SUMIFS('Banco de Dados'!$O:$O,'Banco de Dados'!$B:$B,\"TOTAL DE GANHOS\",'Banco de Dados'!$M:$M,\">=\"&Gráficos!$M$10,'Banco de Dados'!$N:$N,\"<=\"&Gráficos!$M$10+6)+SUMIFS('Banco de Dados'!$R:$R,'Banco de Dados'!$B:$B,\"TOTAL DE GANHOS\",'Banco de Dados'!$P:$P,\">=\"&Gráficos!$M$10,'Banco de Dados'!$Q:$Q,\"<=\"&Gráficos!$M$10+6))/7","v":0},{"$f":"(SUMIFS('Banco de Dados'!$O:$O,'Banco de Dados'!$B:$B,\"TOTAL DE CUSTOS\",'Banco de Dados'!$M:$M,\">=\"&Gráficos!$M$10,'Banco de Dados'!$N:$N,\"<=\"&Gráficos!$M$10+6)+SUMIFS('Banco de Dados'!$R:$R,'Banco de Dados'!$B:$B,\"TOTAL DE CUSTOS\",'Banco de Dados'!$P:$P,\">=\"&Gráficos!$M$10,'Banco de Dados'!$Q:$Q,\"<=\"&Gráficos!$M$10+6)+SUMIFS('Banco de Dados'!$O:$O,'Banco de Dados'!$B:$B,\"TOTAL DE GASTOS\",'Banco de Dados'!$M:$M,\">=\"&Gráficos!$M$10,'Banco de Dados'!$N:$N,\"<=\"&Gráficos!$M$10+6)+SUMIFS('Banco de Dados'!$R:$R,'Banco de Dados'!$B:$B,\"TOTAL DE GASTOS\",'Banco de Dados'!$P:$P,\">=\"&Gráficos!$M$10,'Banco de Dados'!$Q:$Q,\"<=\"&Gráficos!$M$10+6))/7","v":0},{"$f":"(SUMIFS('Banco de Dados'!$O:$O,'Banco de Dados'!$B:$B,\"Custo com provisões\",'Banco de Dados'!$M:$M,\">=\"&Gráficos!$M$10,'Banco de Dados'!$N:$N,\"<=\"&Gráficos!$M$10+6)+SUMIFS('Banco de Dados'!$R:$R,'Banco de Dados'!$B:$B,\"Custo com provisões\",'Banco de Dados'!$P:$P,\">=\"&Gráficos!$M$10,'Banco de Dados'!$Q:$Q,\"<=\"&Gráficos!$M$10+6))/7","v":0},{"$f":"B45-C45","v":0},{"$f":"E45-D45","v":0}]
[null,"Ganhos do Dia","Bônus/Incentivo","Ganhos Totais","Tempo Online","Nº de Viagens","Receita Total/Nº de Viagens","Receita Total/Tempo Online","Nº de Viagens/Tempo Online"]
[{"$f":"Configurações!E13","v":"Uber"},{"$f":"SUMIFS('Banco de Dados'!$O:$O,'Banco de Dados'!$K:$K,B$46&\" - \"&$A47,'Banco de Dados'!$M:$M,\">=\"&Gráficos!$G$7,'Banco de Dados'!$N:$N,\"<=\"&Gráficos!$H$7)+SUMIFS('Banco de Dados'!$R:$R,'Banco de Dados'!$K:$K,B$46&\" - \"&$A47,'Banco de Dados'!$P:$P,\">=\"&Gráficos!$G$7,'Banco de Dados'!$Q:$Q,\"<=\"&Gráficos!$H$7)","v":0},{"$f":"SUMIFS('Banco de Dados'!$O:$O,'Banco de Dados'!$K:$K,C$46&\" - \"&$A47,'Banco de Dados'!$M:$M,\">=\"&Gráficos!$G$7,'Banco de Dados'!$N:$N,\"<=\"&Gráficos!$H$7)+SUMIFS('Banco de Dados'!$R:$R,'Banco de Dados'!$K:$K,C$46&\" - \"&$A47,'Banco de Dados'!$P:$P,\">=\"&Gráficos!$G$7,'Banco de Dados'!$Q:$Q,\"<=\"&Gráficos!$H$7)","v":0},{"$f":"SUM(B47:C47)","v":0},{"$f":"SUMIFS('Banco de Dados'!$O:$O,'Banco de Dados'!$K:$K,E$46&\" - \"&$A47,'Banco de Dados'!$M:$M,\">=\"&Gráficos!$G$7,'Banco de Dados'!$N:$N,\"<=\"&Gráficos!$H$7)+SUMIFS('Banco de Dados'!$R:$R,'Banco de Dados'!$K:$K,E$46&\" - \"&$A47,'Banco de Dados'!$P:$P,\">=\"&Gráficos!$G$7,'Banco de Dados'!$Q:$Q,\"<=\"&Gráficos!$H$7)","v":0},{"$f":"SUMIFS('Banco de Dados'!$O:$O,'Banco de Dados'!$K:$K,F$46&\" - \"&$A47,'Banco de Dados'!$M:$M,\">=\"&Gráficos!$G$7,'Banco de Dados'!$N:$N,\"<=\"&Gráficos!$H$7)+SUMIFS('Banco de Dados'!$R:$R,'Banco de Dados'!$K:$K,F$46&\" - \"&$A47,'Banco de Dados'!$P:$P,\">=\"&Gráficos!$G$7,'Banco de Dados'!$Q:$Q,\"<=\"&Gráficos!$H$7)","v":0},{"$f":"IFERROR(D47/F47,0)","v":0},{"$f":"IFERROR(D47/(E47*24),0)","v":0},{"$f":"IFERROR(F47/(E47*24),0)","v":0}]
[{"$f":"Configurações!E14","v":"App 2"},{"$f":"SUMIFS('Banco de Dados'!$O:$O,'Banco de Dados'!$K:$K,B$46&\" - \"&$A48,'Banco de Dados'!$M:$M,\">=\"&Gráficos!$G$7,'Banco de Dados'!$N:$N,\"<=\"&Gráficos!$H$7)+SUMIFS('Banco de Dados'!$R:$R,'Banco de Dados'!$K:$K,B$46&\" - \"&$A48,'Banco de Dados'!$P:$P,\">=\"&Gráficos!$G$7,'Banco de Dados'!$Q:$Q,\"<=\"&Gráficos!$H$7)","v":0},{"$f":"SUMIFS('Banco de Dados'!$O:$O,'Banco de Dados'!$K:$K,C$46&\" - \"&$A48,'Banco de Dados'!$M:$M,\">=\"&Gráficos!$G$7,'Banco de Dados'!$N:$N,\"<=\"&Gráficos!$H$7)+SUMIFS('Banco de Dados'!$R:$R,'Banco de Dados'!$K:$K,C$46&\" - \"&$A48,'Banco de Dados'!$P:$P,\">=\"&Gráficos!$G$7,'Banco de Dados'!$Q:$Q,\"<=\"&Gráficos!$H$7)","v":0},0,{"$f":"SUMIFS('Banco de Dados'!$O:$O,'Banco de Dados'!$K:$K,E$46&\" - \"&$A48,'Banco de Dados'!$M:$M,\">=\"&Gráficos!$G$7,'Banco de Dados'!$N:$N,\"<=\"&Gráficos!$H$7)+SUMIFS('Banco de Dados'!$R:$R,'Banco de Dados'!$K:$K,E$46&\" - \"&$A48,'Banco de Dados'!$P:$P,\">=\"&Gráficos!$G$7,'Banco de Dados'!$Q:$Q,\"<=\"&Gráficos!$H$7)","v":0},{"$f":"SUMIFS('Banco de Dados'!$O:$O,'Banco de Dados'!$K:$K,F$46&\" - \"&$A48,'Banco de Dados'!$M:$M,\">=\"&Gráficos!$G$7,'Banco de Dados'!$N:$N,\"<=\"&Gráficos!$H$7)+SUMIFS('Banco de Dados'!$R:$R,'Banco de Dados'!$K:$K,F$46&\" - \"&$A48,'Banco de Dados'!$P:$P,\">=\"&Gráficos!$G$7,'Banco de Dados'!$Q:$Q,\"<=\"&Gráficos!$H$7)","v":0},{"$f":"IFERROR(D48/F48,0)","v":0},{"$f":"IFERROR(D48/(E48*24),0)","v":0},{"$f":"IFERROR(F48/(E48*24),0)","v":0}]
[{"$f":"Configurações!E15","v":"App 3"},{"$f":"SUMIFS('Banco de Dados'!$O:$O,'Banco de Dados'!$K:$K,B$46&\" - \"&$A49,'Banco de Dados'!$M:$M,\">=\"&Gráficos!$G$7,'Banco de Dados'!$N:$N,\"<=\"&Gráficos!$H$7)+SUMIFS('Banco de Dados'!$R:$R,'Banco de Dados'!$K:$K,B$46&\" - \"&$A49,'Banco de Dados'!$P:$P,\">=\"&Gráficos!$G$7,'Banco de Dados'!$Q:$Q,\"<=\"&Gráficos!$H$7)","v":0},{"$f":"SUMIFS('Banco de Dados'!$O:$O,'Banco de Dados'!$K:$K,C$46&\" - \"&$A49,'Banco de Dados'!$M:$M,\">=\"&Gráficos!$G$7,'Banco de Dados'!$N:$N,\"<=\"&Gráficos!$H$7)+SUMIFS('Banco de Dados'!$R:$R,'Banco de Dados'!$K:$K,C$46&\" - \"&$A49,'Banco de Dados'!$P:$P,\">=\"&Gráficos!$G$7,'Banco de Dados'!$Q:$Q,\"<=\"&Gráficos!$H$7)","v":0},0,{"$f":"SUMIFS('Banco de Dados'!$O:$O,'Banco de Dados'!$K:$K,E$46&\" - \"&$A49,'Banco de Dados'!$M:$M,\">=\"&Gráficos!$G$7,'Banco de Dados'!$N:$N,\"<=\"&Gráficos!$H$7)+SUMIFS('Banco de Dados'!$R:$R,'Banco de Dados'!$K:$K,E$46&\" - \"&$A49,'Banco de Dados'!$P:$P,\">=\"&Gráficos!$G$7,'Banco de Dados'!$Q:$Q,\"<=\"&Gráficos!$H$7)","v":0},{"$f":"SUMIFS('Banco de Dados'!$O:$O,'Banco de Dados'!$K:$K,F$46&\" - \"&$A49,'Banco de Dados'!$M:$M,\">=\"&Gráficos!$G$7,'Banco de Dados'!$N:$N,\"<=\"&Gráficos!$H$7)+SUMIFS('Banco de Dados'!$R:$R,'Banco de Dados'!$K:$K,F$46&\" - \"&$A49,'Banco de Dados'!$P:$P,\">=\"&Gráficos!$G$7,'Banco de Dados'!$Q:$Q,\"<=\"&Gráficos!$H$7)","v":0},0,0,0]
[{"$f":"A47","v":"Uber"},{"$f":"SUMIFS('Banco de Dados'!$O:$O,'Banco de Dados'!$K:$K,B$46&\" - \"&$A50,'Banco de Dados'!$M:$M,\">=\"&Gráficos!$G$7,'Banco de Dados'!$N:$N,\"<=\"&Gráficos!$H$7)+SUMIFS('Banco de Dados'!$R:$R,'Banco de Dados'!$K:$K,B$46&\" - \"&$A50,'Banco de Dados'!$P:$P,\">=\"&Gráficos!$G$7,'Banco de Dados'!$Q:$Q,\"<=\"&Gráficos!$H$7)","v":0},{"$f":"SUMIFS('Banco de Dados'!$O:$O,'Banco de Dados'!$K:$K,C$46&\" - \"&$A50,'Banco de Dados'!$M:$M,\">=\"&Gráficos!$G$7,'Banco de Dados'!$N:$N,\"<=\"&Gráficos!$H$7)+SUMIFS('Banco de Dados'!$R:$R,'Banco de Dados'!$K:$K,C$46&\" - \"&$A50,'Banco de Dados'!$P:$P,\">=\"&Gráficos!$G$7,'Banco de Dados'!$Q:$Q,\"<=\"&Gráficos!$H$7)","v":0},0,{"$f":"SUMIFS('Banco de Dados'!$O:$O,'Banco de Dados'!$K:$K,E$46&\" - \"&$A50,'Banco de Dados'!$M:$M,\">=\"&Gráficos!$G$7,'Banco de Dados'!$N:$N,\"<=\"&Gráficos!$H$7)+SUMIFS('Banco de Dados'!$R:$R,'Banco de Dados'!$K:$K,E$46&\" - \"&$A50,'Banco de Dados'!$P:$P,\">=\"&Gráficos!$G$7,'Banco de Dados'!$Q:$Q,\"<=\"&Gráficos!$H$7)","v":0},{"$f":"SUMIFS('Banco de Dados'!$O:$O,'Banco de Dados'!$K:$K,F$46&\" - \"&$A50,'Banco de Dados'!$M:$M,\">=\"&Gráficos!$G$7,'Banco de Dados'!$N:$N,\"<=\"&Gráficos!$H$7)+SUMIFS('Banco de Dados'!$R:$R,'Banco de Dados'!$K:$K,F$46&\" - \"&$A50,'Banco de Dados'!$P:$P,\">=\"&Gráficos!$G$7,'Banco de Dados'!$Q:$Q,\"<=\"&Gráficos!$H$7)","v":0},0,0,0]
[{"$f":"A48","v":"App 2"},{"$f":"SUMIFS('Banco de Dados'!$O:$O,'Banco de Dados'!$K:$K,B$46&\" - \"&$A51,'Banco de Dados'!$M:$M,\">=\"&Gráficos!$G$7,'Banco de Dados'!$N:$N,\"<=\"&Gráficos!$H$7)+SUMIFS('Banco de Dados'!$R:$R,'Banco de Dados'!$K:$K,B$46&\" - \"&$A51,'Banco de Dados'!$P:$P,\">=\"&Gráficos!$G$7,'Banco de Dados'!$Q:$Q,\"<=\"&Gráficos!$H$7)","v":0},{"$f":"SUMIFS('Banco de Dados'!$O:$O,'Banco de Dados'!$K:$K,C$46&\" - \"&$A51,'Banco de Dados'!$M:$M,\">=\"&Gráficos!$G$7,'Banco de Dados'!$N:$N,\"<=\"&Gráficos!$H$7)+SUMIFS('Banco de Dados'!$R:$R,'Banco de Dados'!$K:$K,C$46&\" - \"&$A51,'Banco de Dados'!$P:$P,\">=\"&Gráficos!$G$7,'Banco de Dados'!$Q:$Q,\"<=\"&Gráficos!$H$7)","v":0},0,{"$f":"SUMIFS('Banco de Dados'!$O:$O,'Banco de Dados'!$K:$K,E$46&\" - \"&$A51,'Banco de Dados'!$M:$M,\">=\"&Gráficos!$G$7,'Banco de Dados'!$N:$N,\"<=\"&Gráficos!$H$7)+SUMIFS('Banco de Dados'!$R:$R,'Banco de Dados'!$K:$K,E$46&\" - \"&$A51,'Banco de Dados'!$P:$P,\">=\"&Gráficos!$G$7,'Banco de Dados'!$Q:$Q,\"<=\"&Gráficos!$H$7)","v":0},{"$f":"SUMIFS('Banco de Dados'!$O:$O,'Banco de Dados'!$K:$K,F$46&\" - \"&$A51,'Banco de Dados'!$M:$M,\">=\"&Gráficos!$G$7,'Banco de Dados'!$N:$N,\"<=\"&Gráficos!$H$7)+SUMIFS('Banco de Dados'!$R:$R,'Banco de Dados'!$K:$K,F$46&\" - \"&$A51,'Banco de Dados'!$P:$P,\">=\"&Gráficos!$G$7,'Banco de Dados'!$Q:$Q,\"<=\"&Gráficos!$H$7)","v":0},0,0,0]
[{"$f":"A49","v":"App 3"},{"$f":"SUMIFS('Banco de Dados'!$O:$O,'Banco de Dados'!$K:$K,B$46&\" - \"&$A52,'Banco de Dados'!$M:$M,\">=\"&Gráficos!$G$7,'Banco de Dados'!$N:$N,\"<=\"&Gráficos!$H$7)+SUMIFS('Banco de Dados'!$R:$R,'Banco de Dados'!$K:$K,B$46&\" - \"&$A52,'Banco de Dados'!$P:$P,\">=\"&Gráficos!$G$7,'Banco de Dados'!$Q:$Q,\"<=\"&Gráficos!$H$7)","v":0},{"$f":"SUMIFS('Banco de Dados'!$O:$O,'Banco de Dados'!$K:$K,C$46&\" - \"&$A52,'Banco de Dados'!$M:$M,\">=\"&Gráficos!$G$7,'Banco de Dados'!$N:$N,\"<=\"&Gráficos!$H$7)+SUMIFS('Banco de Dados'!$R:$R,'Banco de Dados'!$K:$K,C$46&\" - \"&$A52,'Banco de Dados'!$P:$P,\">=\"&Gráficos!$G$7,'Banco de Dados'!$Q:$Q,\"<=\"&Gráficos!$H$7)","v":0},0,{"$f":"SUMIFS('Banco de Dados'!$O:$O,'Banco de Dados'!$K:$K,E$46&\" - \"&$A52,'Banco de Dados'!$M:$M,\">=\"&Gráficos!$G$7,'Banco de Dados'!$N:$N,\"<=\"&Gráficos!$H$7)+SUMIFS('Banco de Dados'!$R:$R,'Banco de Dados'!$K:$K,E$46&\" - \"&$A52,'Banco de Dados'!$P:$P,\">=\"&Gráficos!$G$7,'Banco de Dados'!$Q:$Q,\"<=\"&Gráficos!$H$7)","v":0},{"$f":"SUMIFS('Banco de Dados'!$O:$O,'Banco de Dados'!$K:$K,F$46&\" - \"&$A52,'Banco de Dados'!$M:$M,\">=\"&Gráficos!$G$7,'Banco de Dados'!$N:$N,\"<=\"&Gráficos!$H$7)+SUMIFS('Banco de Dados'!$R:$R,'Banco de Dados'!$K:$K,F$46&\" - \"&$A52,'Banco de Dados'!$P:$P,\">=\"&Gráficos!$G$7,'Banco de Dados'!$Q:$Q,\"<=\"&Gráficos!$H$7)","v":0},0,0,0]

{"sheet":"Log","index":6,"n_rows":66,"n_cols":4,"rows_kept":66,"cut":false,"hidden":true,"merged":[]}
["Data Hora","Usuário","Computador","Processador"]
["2015-02-09T12:32:11","Rodrigo","DESKTOP-FJUD3LJ","Intel64 Family 6 Model 69 Stepping 1, GenuineIntel"]
["2015-02-09T12:12:23","Rodrigo","DESKTOP-FJUD3LJ","Intel64 Family 6 Model 69 Stepping 1, GenuineIntel"]
["2015-02-09T12:08:01","Rodrigo","DESKTOP-FJUD3LJ","Intel64 Family 6 Model 69 Stepping 1, GenuineIntel"]
["2015-01-29T21:34:46","Rodrigo","DESKTOP-FJUD3LJ","Intel64 Family 6 Model 69 Stepping 1, GenuineIntel"]
["2015-01-29T21:30:25","Rodrigo","DESKTOP-FJUD3LJ","Intel64 Family 6 Model 69 Stepping 1, GenuineIntel"]
["2015-01-20T10:46:28","Rodrigo","DESKTOP-FJUD3LJ","Intel64 Family 6 Model 69 Stepping 1, GenuineIntel"]
["2015-01-15T18:47:49","Rodrigo","DESKTOP-FJUD3LJ","Intel64 Family 6 Model 69 Stepping 1, GenuineIntel"]
["2015-01-10T20:39:16","Rodrigo","DESKTOP-FJUD3LJ","Intel64 Family 6 Model 69 Stepping 1, GenuineIntel"]
["2014-12-27T16:41:56","Rodrigo","DESKTOP-FJUD3LJ","Intel64 Family 6 Model 69 Stepping 1, GenuineIntel"]
["2014-12-27T16:32:36","Rodrigo","DESKTOP-FJUD3LJ","Intel64 Family 6 Model 69 Stepping 1, GenuineIntel"]
["2014-12-26T14:49:35","Rodrigo","DESKTOP-FJUD3LJ","Intel64 Family 6 Model 69 Stepping 1, GenuineIntel"]
["2014-12-26T14:13:28","Rodrigo","DESKTOP-FJUD3LJ","Intel64 Family 6 Model 69 Stepping 1, GenuineIntel"]
["2014-12-18T14:27:32","Rodrigo","DESKTOP-FJUD3LJ","Intel64 Family 6 Model 69 Stepping 1, GenuineIntel"]
["2014-12-18T13:53:39","Rodrigo","DESKTOP-FJUD3LJ","Intel64 Family 6 Model 69 Stepping 1, GenuineIntel"]
["2014-12-18T13:49:52","Rodrigo","DESKTOP-FJUD3LJ","Intel64 Family 6 Model 69 Stepping 1, GenuineIntel"]
["2014-12-05T12:15:11","Rodrigo","DESKTOP-FJUD3LJ","Intel64 Family 6 Model 69 Stepping 1, GenuineIntel"]
["2014-12-05T11:38:43","Rodrigo","DESKTOP-FJUD3LJ","Intel64 Family 6 Model 69 Stepping 1, GenuineIntel"]
["2014-11-20T16:11:06","Rodrigo","DESKTOP-FJUD3LJ","Intel64 Family 6 Model 69 Stepping 1, GenuineIntel"]
["2014-11-20T16:06:05","Rodrigo","DESKTOP-FJUD3LJ","Intel64 Family 6 Model 69 Stepping 1, GenuineIntel"]
["2014-11-15T17:43:55","Rodrigo","DESKTOP-FJUD3LJ","Intel64 Family 6 Model 69 Stepping 1, GenuineIntel"]
["2014-11-15T17:39:49","Rodrigo","DESKTOP-FJUD3LJ","Intel64 Family 6 Model 69 Stepping 1, GenuineIntel"]
["2014-11-15T17:33:09","Rodrigo","DESKTOP-FJUD3LJ","Intel64 Family 6 Model 69 Stepping 1, GenuineIntel"]
["2014-11-15T17:31:27","Rodrigo","DESKTOP-FJUD3LJ","Intel64 Family 6 Model 69 Stepping 1, GenuineIntel"]
["2014-11-15T17:25:57","Rodrigo","DESKTOP-FJUD3LJ","Intel64 Family 6 Model 69 Stepping 1, GenuineIntel"]
["2014-11-15T17:23:39","Rodrigo","DESKTOP-FJUD3LJ","Intel64 Family 6 Model 69 Stepping 1, GenuineIntel"]
["2014-10-24T20:37:15","Rodrigo","DESKTOP-FJUD3LJ","Intel64 Family 6 Model 69 Stepping 1, GenuineIntel"]
["2014-10-18T16:45:37","Rodrigo","DESKTOP-FJUD3LJ","Intel64 Family 6 Model 69 Stepping 1, GenuineIntel"]
["2014-10-16T11:16:13","Rodrigo","DESKTOP-FJUD3LJ","Intel64 Family 6 Model 69 Stepping 1, GenuineIntel"]
["2014-09-23T15:41:36","Rodrigo","DESKTOP-FJUD3LJ","Intel64 Family 6 Model 69 Stepping 1, GenuineIntel"]
["2014-09-23T14:55:50","Rodrigo","DESKTOP-FJUD3LJ","Intel64 Family 6 Model 69 Stepping 1, GenuineIntel"]
["2014-09-23T02:13:03","Rodrigo","DESKTOP-FJUD3LJ","Intel64 Family 6 Model 69 Stepping 1, GenuineIntel"]
["2014-09-23T01:28:42","Rodrigo","DESKTOP-FJUD3LJ","Intel64 Family 6 Model 69 Stepping 1, GenuineIntel"]
["2014-09-22T18:22:04","Rodrigo","DESKTOP-FJUD3LJ","Intel64 Family 6 Model 69 Stepping 1, GenuineIntel"]
["2014-09-19T03:18:38","Rodrigo","DESKTOP-FJUD3LJ","Intel64 Family 6 Model 69 Stepping 1, GenuineIntel"]
["2014-09-19T03:15:05","Rodrigo","DESKTOP-FJUD3LJ","Intel64 Family 6 Model 69 Stepping 1, GenuineIntel"]
["2014-09-19T02:47:23","Rodrigo","DESKTOP-FJUD3LJ","Intel64 Family 6 Model 69 Stepping 1, GenuineIntel"]
["2014-09-18T21:27:20","Rodrigo","DESKTOP-FJUD3LJ","Intel64 Family 6 Model 69 Stepping 1, GenuineIntel"]
["2014-09-12T00:46:31","Rodrigo","DESKTOP-FJUD3LJ","Intel64 Family 6 Model 69 Stepping 1, GenuineIntel"]
["2014-09-10T22:23:24","Rodrigo","DESKTOP-FJUD3LJ","Intel64 Family 6 Model 69 Stepping 1, GenuineIntel"]
["2014-09-10T19:24:12","Rodrigo","DESKTOP-FJUD3LJ","Intel64 Family 6 Model 69 Stepping 1, GenuineIntel"]
["2014-09-10T19:01:26","Rodrigo","DESKTOP-FJUD3LJ","Intel64 Family 6 Model 69 Stepping 1, GenuineIntel"]
["2014-09-10T18:31:58","Rodrigo","DESKTOP-FJUD3LJ","Intel64 Family 6 Model 69 Stepping 1, GenuineIntel"]
["2014-09-10T18:26:23","Rodrigo","DESKTOP-FJUD3LJ","Intel64 Family 6 Model 69 Stepping 1, GenuineIntel"]
["2014-09-10T17:31:46","Rodrigo","DESKTOP-FJUD3LJ","Intel64 Family 6 Model 69 Stepping 1, GenuineIntel"]
["2014-09-10T17:01:35","Rodrigo","DESKTOP-FJUD3LJ","Intel64 Family 6 Model 69 Stepping 1, GenuineIntel"]
["2014-09-07T14:55:28","Rodrigo","DESKTOP-FJUD3LJ","Intel64 Family 6 Model 69 Stepping 1, GenuineIntel"]
["2014-09-06T01:23:40","Rodrigo","DESKTOP-FJUD3LJ","Intel64 Family 6 Model 69 Stepping 1, GenuineIntel"]
["2014-09-05T23:33:53","Rodrigo","DESKTOP-FJUD3LJ","Intel64 Family 6 Model 69 Stepping 1, GenuineIntel"]
["2014-09-05T18:34:32","Rodrigo","DESKTOP-FJUD3LJ","Intel64 Family 6 Model 69 Stepping 1, GenuineIntel"]
["2014-09-05T18:33:02","Rodrigo","DESKTOP-FJUD3LJ","Intel64 Family 6 Model 69 Stepping 1, GenuineIntel"]
["2014-09-05T18:26:59","Rodrigo","DESKTOP-FJUD3LJ","Intel64 Family 6 Model 69 Stepping 1, GenuineIntel"]
["2014-09-05T18:18:55","Rodrigo","DESKTOP-FJUD3LJ","Intel64 Family 6 Model 69 Stepping 1, GenuineIntel"]
["2014-09-05T18:17:56","Rodrigo","DESKTOP-FJUD3LJ","Intel64 Family 6 Model 69 Stepping 1, GenuineIntel"]
["2014-09-05T18:17:03","Rodrigo","DESKTOP-FJUD3LJ","Intel64 Family 6 Model 69 Stepping 1, GenuineIntel"]
["2014-09-05T18:16:32","Rodrigo","DESKTOP-FJUD3LJ","Intel64 Family 6 Model 69 Stepping 1, GenuineIntel"]
["2014-09-05T14:36:32","Rodrigo","DESKTOP-FJUD3LJ","Intel64 Family 6 Model 69 Stepping 1, GenuineIntel"]
["2014-09-05T14:35:31","Rodrigo","DESKTOP-FJUD3LJ","Intel64 Family 6 Model 69 Stepping 1, GenuineIntel"]
["2014-09-05T14:31:20","Rodrigo","DESKTOP-FJUD3LJ","Intel64 Family 6 Model 69 Stepping 1, GenuineIntel"]
["2014-09-04T15:09:06","Rodrigo","DESKTOP-FJUD3LJ","Intel64 Family 6 Model 69 Stepping 1, GenuineIntel"]
["2014-09-04T15:02:29","Rodrigo","DESKTOP-FJUD3LJ","Intel64 Family 6 Model 69 Stepping 1, GenuineIntel"]
["2014-09-04T14:51:17","Rodrigo","DESKTOP-FJUD3LJ","Intel64 Family 6 Model 69 Stepping 1, GenuineIntel"]
["2014-09-04T14:45:29","Rodrigo","DESKTOP-FJUD3LJ","Intel64 Family 6 Model 69 Stepping 1, GenuineIntel"]
["2014-09-04T14:44:51","Rodrigo","DESKTOP-FJUD3LJ","Intel64 Family 6 Model 69 Stepping 1, GenuineIntel"]
["2014-09-04T14:44:43","Rodrigo","DESKTOP-FJUD3LJ","Intel64 Family 6 Model 69 Stepping 1, GenuineIntel"]
["2014-09-04T14:41:30","Rodrigo","DESKTOP-FJUD3LJ","Intel64 Family 6 Model 69 Stepping 1, GenuineIntel"]

{"sheet":"Relatório","index":7,"n_rows":40,"n_cols":9,"rows_kept":40,"cut":false,"hidden":true,"merged":[[4,8,4,9],[5,1,6,8],[7,1,7,8],[22,1,23,8]]}
[]
[]
[]
[]
[null,null,null,null,null,null,null,null,{"$f":"'Função Excel'!$C$9","v":"Versão 2.1 - DEMO"}]
[null,"Relatório de Controle para Motoristas"]
[]
[null,{"$f":"\"Relatório emitido em: \"&RIGHT(\"0\"&DAY($B$39),2)&\"/\"&RIGHT(\"0\"&MONTH($B$39),2)&\"/\"&RIGHT(\"0\"&YEAR($B$39),4)","v":"Relatório emitido em: 10/02/2019"}]
[null,"Período de análise","Mês Até Agora","Último Mês","Último 3 Meses","Últimos 6 Meses","Últimos 12 Meses","Acumulado Ano","Todo Período"]
[null,{"$f":"\"- \"&Configurações!E13","v":"- Uber"},{"$f":"SUMIFS('Banco de Dados'!$O:$O,'Banco de Dados'!$K:$K,\"Ganhos do Dia \"&$B10,'Banco de Dados'!$M:$M,\">=\"&Relatório!C$39,'Banco de Dados'!$N:$N,\"<=\"&DATE(YEAR(Relatório!C$39),MONTH(Relatório!C$39)+1,1)-1)+SUMIFS('Banco de Dados'!$O:$O,'Banco de Dados'!$K:$K,\"Bônus/Incentivo \"&$B10,'Banco de Dados'!$M:$M,\">=\"&Relatório!C$39,'Banco de Dados'!$N:$N,\"<=\"&DATE(YEAR(Relatório!C$39),MONTH(Relatório!C$39)+1,1)-1)+SUMIFS('Banco de Dados'!$R:$R,'Banco de Dados'!$K:$K,\"Ganhos do Dia \"&$B10,'Banco de Dados'!$P:$P,\">=\"&Relatório!C$39,'Banco de Dados'!$Q:$Q,\"<=\"&DATE(YEAR(Relatório!C$39),MONTH(Relatório!C$39)+1,1)-1)+SUMIFS('Banco de Dados'!$R:$R,'Banco de Dados'!$K:$K,\"Bônus/Incentivo \"&$B10,'Banco de Dados'!$P:$P,\">=\"&Relatório!C$39,'Banco de Dados'!$Q:$Q,\"<=\"&DATE(YEAR(Relatório!C$39),MONTH(Relatório!C$39)+1,1)-1)","v":0},{"$f":"SUMIFS('Banco de Dados'!$O:$O,'Banco de Dados'!$K:$K,\"Ganhos do Dia \"&$B10,'Banco de Dados'!$M:$M,\">=\"&Relatório!D$39,'Banco de Dados'!$N:$N,\"<=\"&DATE(YEAR(Relatório!D$39),MONTH(Relatório!D$39)+1,1)-1)+SUMIFS('Banco de Dados'!$O:$O,'Banco de Dados'!$K:$K,\"Bônus/Incentivo \"&$B10,'Banco de Dados'!$M:$M,\">=\"&Relatório!D$39,'Banco de Dados'!$N:$N,\"<=\"&DATE(YEAR(Relatório!D$39),MONTH(Relatório!D$39)+1,1)-1)+SUMIFS('Banco de Dados'!$R:$R,'Banco de Dados'!$K:$K,\"Ganhos do Dia \"&$B10,'Banco de Dados'!$P:$P,\">=\"&Relatório!D$39,'Banco de Dados'!$Q:$Q,\"<=\"&DATE(YEAR(Relatório!D$39),MONTH(Relatório!D$39)+1,1)-1)+SUMIFS('Banco de Dados'!$R:$R,'Banco de Dados'!$K:$K,\"Bônus/Incentivo \"&$B10,'Banco de Dados'!$P:$P,\">=\"&Relatório!D$39,'Banco de Dados'!$Q:$Q,\"<=\"&DATE(YEAR(Relatório!D$39),MONTH(Relatório!D$39)+1,1)-1)","v":0},{"$f":"SUMIFS('Banco de Dados'!$O:$O,'Banco de Dados'!$K:$K,\"Ganhos do Dia \"&$B10,'Banco de Dados'!$M:$M,\">=\"&Relatório!E$39,'Banco de Dados'!$N:$N,\"<=\"&DATE(YEAR(Relatório!$D$39),MONTH(Relatório!$D$39)+1,1)-1)+SUMIFS('Banco de Dados'!$O:$O,'Banco de Dados'!$K:$K,\"Bônus/Incentivo \"&$B10,'Banco de Dados'!$A:$A,\">=\"&Relatório!E$39,'Banco de Dados'!$A:$A,\"<=\"&DATE(YEAR(Relatório!$D$39),MONTH(Relatório!$D$39)+1,1)-1)+SUMIFS('Banco de Dados'!$R:$R,'Banco de Dados'!$K:$K,\"Ganhos do Dia \"&$B10,'Banco de Dados'!$P:$P,\">=\"&Relatório!E$39,'Banco de Dados'!$Q:$Q,\"<=\"&DATE(YEAR(Relatório!$D$39),MONTH(Relatório!$D$39)+1,1)-1)+SUMIFS('Banco de Dados'!$R:$R,'Banco de Dados'!$K:$K,\"Bônus/Incentivo \"&$B10,'Banco de Dados'!$A:$A,\">=\"&Relatório!E$39,'Banco de Dados'!$A:$A,\"<=\"&DATE(YEAR(Relatório!$D$39),MONTH(Relatório!$D$39)+1,1)-1)","v":0},{"$f":"SUMIFS('Banco de Dados'!$O:$O,'Banco de Dados'!$K:$K,\"Ganhos do Dia \"&$B10,'Banco de Dados'!$M:$M,\">=\"&Relatório!F$39,'Banco de Dados'!$N:$N,\"<=\"&DATE(YEAR(Relatório!$D$39),MONTH(Relatório!$D$39)+1,1)-1)+SUMIFS('Banco de Dados'!$O:$O,'Banco de Dados'!$K:$K,\"Bônus/Incentivo \"&$B10,'Banco de Dados'!$A:$A,\">=\"&Relatório!F$39,'Banco de Dados'!$A:$A,\"<=\"&DATE(YEAR(Relatório!$D$39),MONTH(Relatório!$D$39)+1,1)-1)+SUMIFS('Banco de Dados'!$R:$R,'Banco de Dados'!$K:$K,\"Ganhos do Dia \"&$B10,'Banco de Dados'!$P:$P,\">=\"&Relatório!F$39,'Banco de Dados'!$Q:$Q,\"<=\"&DATE(YEAR(Relatório!$D$39),MONTH(Relatório!$D$39)+1,1)-1)+SUMIFS('Banco de Dados'!$R:$R,'Banco de Dados'!$K:$K,\"Bônus/Incentivo \"&$B10,'Banco de Dados'!$A:$A,\">=\"&Relatório!F$39,'Banco de Dados'!$A:$A,\"<=\"&DATE(YEAR(Relatório!$D$39),MONTH(Relatório!$D$39)+1,1)-1)","v":0},{"$f":"SUMIFS('Banco de Dados'!$O:$O,'Banco de Dados'!$K:$K,\"Ganhos do Dia \"&$B10,'Banco de Dados'!$M:$M,\">=\"&Relatório!G$39,'Banco de Dados'!$N:$N,\"<=\"&DATE(YEAR(Relatório!$D$39),MONTH(Relatório!$D$39)+1,1)-1)+SUMIFS('Banco de Dados'!$O:$O,'Banco de Dados'!$K:$K,\"Bônus/Incentivo \"&$B10,'Banco de Dados'!$A:$A,\">=\"&Relatório!G$39,'Banco de Dados'!$A:$A,\"<=\"&DATE(YEAR(Relatório!$D$39),MONTH(Relatório!$D$39)+1,1)-1)+SUMIFS('Banco de Dados'!$R:$R,'Banco de Dados'!$K:$K,\"Ganhos do Dia \"&$B10,'Banco de Dados'!$P:$P,\">=\"&Relatório!G$39,'Banco de Dados'!$Q:$Q,\"<=\"&DATE(YEAR(Relatório!$D$39),MONTH(Relatório!$D$39)+1,1)-1)+SUMIFS('Banco de Dados'!$R:$R,'Banco de Dados'!$K:$K,\"Bônus/Incentivo \"&$B10,'Banco de Dados'!$A:$A,\">=\"&Relatório!G$39,'Banco de Dados'!$A:$A,\"<=\"&DATE(YEAR(Relatório!$D$39),MONTH(Relatório!$D$39)+1,1)-1)","v":0},{"$f":"SUMIFS('Banco de Dados'!$O:$O,'Banco de Dados'!$K:$K,\"Ganhos do Dia \"&$B10,'Banco de Dados'!$M:$M,\">=\"&Relatório!H$39,'Banco de Dados'!$N:$N,\"<=\"&DATE(YEAR(Relatório!$B$40),MONTH(Relatório!$B$40)+1,1)-1)+SUMIFS('Banco de Dados'!$O:$O,'Banco de Dados'!$K:$K,\"Bônus/Incentivo \"&$B10,'Banco de Dados'!$A:$A,\">=\"&Relatório!H$39,'Banco de Dados'!$A:$A,\"<=\"&DATE(YEAR(Relatório!$B$40),MONTH(Relatório!$B$40)+1,1)-1)+SUMIFS('Banco de Dados'!$R:$R,'Banco de Dados'!$K:$K,\"Ganhos do Dia \"&$B10,'Banco de Dados'!$P:$P,\">=\"&Relatório!H$39,'Banco de Dados'!$Q:$Q,\"<=\"&DATE(YEAR(Relatório!$B$40),MONTH(Relatório!$B$40)+1,1)-1)+SUMIFS('Banco de Dados'!$R:$R,'Banco de Dados'!$K:$K,\"Bônus/Incentivo \"&$B10,'Banco de Dados'!$A:$A,\">=\"&Relatório!H$39,'Banco de Dados'!$A:$A,\"<=\"&DATE(YEAR(Relatório!$B$40),MONTH(Relatório!$B$40)+1,1)-1)","v":0},{"$f":"SUMIFS('Banco de Dados'!J:J,'Banco de Dados'!K:K,\"Ganhos do Dia \"&$B10)+SUMIFS('Banco de Dados'!J:J,'Banco de Dados'!K:K,\"Bônus/Incentivo \"&$B10)","v":0}]
[null,{"$f":"\"- \"&Configurações!E14","v":"- App 2"},{"$f":"SUMIFS('Banco de Dados'!$O:$O,'Banco de Dados'!$K:$K,\"Ganhos do Dia \"&$B11,'Banco de Dados'!$M:$M,\">=\"&Relatório!C$39,'Banco de Dados'!$N:$N,\"<=\"&DATE(YEAR(Relatório!C$39),MONTH(Relatório!C$39)+1,1)-1)+SUMIFS('Banco de Dados'!$O:$O,'Banco de Dados'!$K:$K,\"Bônus/Incentivo \"&$B11,'Banco de Dados'!$M:$M,\">=\"&Relatório!C$39,'Banco de Dados'!$N:$N,\"<=\"&DATE(YEAR(Relatório!C$39),MONTH(Relatório!C$39)+1,1)-1)+SUMIFS('Banco de Dados'!$R:$R,'Banco de Dados'!$K:$K,\"Ganhos do Dia \"&$B11,'Banco de Dados'!$P:$P,\">=\"&Relatório!C$39,'Banco de Dados'!$Q:$Q,\"<=\"&DATE(YEAR(Relatório!C$39),MONTH(Relatório!C$39)+1,1)-1)+SUMIFS('Banco de Dados'!$R:$R,'Banco de Dados'!$K:$K,\"Bônus/Incentivo \"&$B11,'Banco de Dados'!$P:$P,\">=\"&Relatório!C$39,'Banco de Dados'!$Q:$Q,\"<=\"&DATE(YEAR(Relatório!C$39),MONTH(Relatório!C$39)+1,1)-1)","v":0},{"$f":"SUMIFS('Banco de Dados'!$O:$O,'Banco de Dados'!$K:$K,\"Ganhos do Dia \"&$B11,'Banco de Dados'!$M:$M,\">=\"&Relatório!D$39,'Banco de Dados'!$N:$N,\"<=\"&DATE(YEAR(Relatório!D$39),MONTH(Relatório!D$39)+1,1)-1)+SUMIFS('Banco de Dados'!$O:$O,'Banco de Dados'!$K:$K,\"Bônus/Incentivo \"&$B11,'Banco de Dados'!$M:$M,\">=\"&Relatório!D$39,'Banco de Dados'!$N:$N,\"<=\"&DATE(YEAR(Relatório!D$39),MONTH(Relatório!D$39)+1,1)-1)+SUMIFS('Banco de Dados'!$R:$R,'Banco de Dados'!$K:$K,\"Ganhos do Dia \"&$B11,'Banco de Dados'!$P:$P,\">=\"&Relatório!D$39,'Banco de Dados'!$Q:$Q,\"<=\"&DATE(YEAR(Relatório!D$39),MONTH(Relatório!D$39)+1,1)-1)+SUMIFS('Banco de Dados'!$R:$R,'Banco de Dados'!$K:$K,\"Bônus/Incentivo \"&$B11,'Banco de Dados'!$P:$P,\">=\"&Relatório!D$39,'Banco de Dados'!$Q:$Q,\"<=\"&DATE(YEAR(Relatório!D$39),MONTH(Relatório!D$39)+1,1)-1)","v":0},{"$f":"SUMIFS('Banco de Dados'!$O:$O,'Banco de Dados'!$K:$K,\"Ganhos do Dia \"&$B11,'Banco de Dados'!$M:$M,\">=\"&Relatório!E$39,'Banco de Dados'!$N:$N,\"<=\"&DATE(YEAR(Relatório!$D$39),MONTH(Relatório!$D$39)+1,1)-1)+SUMIFS('Banco de Dados'!$O:$O,'Banco de Dados'!$K:$K,\"Bônus/Incentivo \"&$B11,'Banco de Dados'!$A:$A,\">=\"&Relatório!E$39,'Banco de Dados'!$A:$A,\"<=\"&DATE(YEAR(Relatório!$D$39),MONTH(Relatório!$D$39)+1,1)-1)+SUMIFS('Banco de Dados'!$R:$R,'Banco de Dados'!$K:$K,\"Ganhos do Dia \"&$B11,'Banco de Dados'!$P:$P,\">=\"&Relatório!E$39,'Banco de Dados'!$Q:$Q,\"<=\"&DATE(YEAR(Relatório!$D$39),MONTH(Relatório!$D$39)+1,1)-1)+SUMIFS('Banco de Dados'!$R:$R,'Banco de Dados'!$K:$K,\"Bônus/Incentivo \"&$B11,'Banco de Dados'!$A:$A,\">=\"&Relatório!E$39,'Banco de Dados'!$A:$A,\"<=\"&DATE(YEAR(Relatório!$D$39),MONTH(Relatório!$D$39)+1,1)-1)","v":0},{"$f":"SUMIFS('Banco de Dados'!$O:$O,'Banco de Dados'!$K:$K,\"Ganhos do Dia \"&$B11,'Banco de Dados'!$M:$M,\">=\"&Relatório!F$39,'Banco de Dados'!$N:$N,\"<=\"&DATE(YEAR(Relatório!$D$39),MONTH(Relatório!$D$39)+1,1)-1)+SUMIFS('Banco de Dados'!$O:$O,'Banco de Dados'!$K:$K,\"Bônus/Incentivo \"&$B11,'Banco de Dados'!$A:$A,\">=\"&Relatório!F$39,'Banco de Dados'!$A:$A,\"<=\"&DATE(YEAR(Relatório!$D$39),MONTH(Relatório!$D$39)+1,1)-1)+SUMIFS('Banco de Dados'!$R:$R,'Banco de Dados'!$K:$K,\"Ganhos do Dia \"&$B11,'Banco de Dados'!$P:$P,\">=\"&Relatório!F$39,'Banco de Dados'!$Q:$Q,\"<=\"&DATE(YEAR(Relatório!$D$39),MONTH(Relatório!$D$39)+1,1)-1)+SUMIFS('Banco de Dados'!$R:$R,'Banco de Dados'!$K:$K,\"Bônus/Incentivo \"&$B11,'Banco de Dados'!$A:$A,\">=\"&Relatório!F$39,'Banco de Dados'!$A:$A,\"<=\"&DATE(YEAR(Relatório!$D$39),MONTH(Relatório!$D$39)+1,1)-1)","v":0},{"$f":"SUMIFS('Banco de Dados'!$O:$O,'Banco de Dados'!$K:$K,\"Ganhos do Dia \"&$B11,'Banco de Dados'!$M:$M,\">=\"&Relatório!G$39,'Banco de Dados'!$N:$N,\"<=\"&DATE(YEAR(Relatório!$D$39),MONTH(Relatório!$D$39)+1,1)-1)+SUMIFS('Banco de Dados'!$O:$O,'Banco de Dados'!$K:$K,\"Bônus/Incentivo \"&$B11,'Banco de Dados'!$A:$A,\">=\"&Relatório!G$39,'Banco de Dados'!$A:$A,\"<=\"&DATE(YEAR(Relatório!$D$39),MONTH(Relatório!$D$39)+1,1)-1)+SUMIFS('Banco de Dados'!$R:$R,'Banco de Dados'!$K:$K,\"Ganhos do Dia \"&$B11,'Banco de Dados'!$P:$P,\">=\"&Relatório!G$39,'Banco de Dados'!$Q:$Q,\"<=\"&DATE(YEAR(Relatório!$D$39),MONTH(Relatório!$D$39)+1,1)-1)+SUMIFS('Banco de Dados'!$R:$R,'Banco de Dados'!$K:$K,\"Bônus/Incentivo \"&$B11,'Banco de Dados'!$A:$A,\">=\"&Relatório!G$39,'Banco de Dados'!$A:$A,\"<=\"&DATE(YEAR(Relatório!$D$39),MONTH(Relatório!$D$39)+1,1)-1)","v":0},{"$f":"SUMIFS('Banco de Dados'!$O:$O,'Banco de Dados'!$K:$K,\"Ganhos do Dia \"&$B11,'Banco de Dados'!$M:$M,\">=\"&Relatório!H$39,'Banco de Dados'!$N:$N,\"<=\"&DATE(YEAR(Relatório!$B$40),MONTH(Relatório!$B$40)+1,1)-1)+SUMIFS('Banco de Dados'!$O:$O,'Banco de Dados'!$K:$K,\"Bônus/Incentivo \"&$B11,'Banco de Dados'!$A:$A,\">=\"&Relatório!H$39,'Banco de Dados'!$A:$A,\"<=\"&DATE(YEAR(Relatório!$B$40),MONTH(Relatório!$B$40)+1,1)-1)+SUMIFS('Banco de Dados'!$R:$R,'Banco de Dados'!$K:$K,\"Ganhos do Dia \"&$B11,'Banco de Dados'!$P:$P,\">=\"&Relatório!H$39,'Banco de Dados'!$Q:$Q,\"<=\"&DATE(YEAR(Relatório!$B$40),MONTH(Relatório!$B$40)+1,1)-1)+SUMIFS('Banco de Dados'!$R:$R,'Banco de Dados'!$K:$K,\"Bônus/Incentivo \"&$B11,'Banco de Dados'!$A:$A,\">=\"&Relatório!H$39,'Banco de Dados'!$A:$A,\"<=\"&DATE(YEAR(Relatório!$B$40),MONTH(Relatório!$B$40)+1,1)-1)","v":0},{"$f":"SUMIFS('Banco de Dados'!J:J,'Banco de Dados'!K:K,\"Ganhos do Dia \"&$B11)+SUMIFS('Banco de Dados'!J:J,'Banco de Dados'!K:K,\"Bônus/Incentivo \"&$B11)","v":0}]
[null,{"$f":"\"- \"&Configurações!E15","v":"- App 3"},{"$f":"SUMIFS('Banco de Dados'!$O:$O,'Banco de Dados'!$K:$K,\"Ganhos do Dia \"&$B12,'Banco de Dados'!$M:$M,\">=\"&Relatório!C$39,'Banco de Dados'!$N:$N,\"<=\"&DATE(YEAR(Relatório!C$39),MONTH(Relatório!C$39)+1,1)-1)+SUMIFS('Banco de Dados'!$O:$O,'Banco de Dados'!$K:$K,\"Bônus/Incentivo \"&$B12,'Banco de Dados'!$M:$M,\">=\"&Relatório!C$39,'Banco de Dados'!$N:$N,\"<=\"&DATE(YEAR(Relatório!C$39),MONTH(Relatório!C$39)+1,1)-1)+SUMIFS('Banco de Dados'!$R:$R,'Banco de Dados'!$K:$K,\"Ganhos do Dia \"&$B12,'Banco de Dados'!$P:$P,\">=\"&Relatório!C$39,'Banco de Dados'!$Q:$Q,\"<=\"&DATE(YEAR(Relatório!C$39),MONTH(Relatório!C$39)+1,1)-1)+SUMIFS('Banco de Dados'!$R:$R,'Banco de Dados'!$K:$K,\"Bônus/Incentivo \"&$B12,'Banco de Dados'!$P:$P,\">=\"&Relatório!C$39,'Banco de Dados'!$Q:$Q,\"<=\"&DATE(YEAR(Relatório!C$39),MONTH(Relatório!C$39)+1,1)-1)","v":0},{"$f":"SUMIFS('Banco de Dados'!$O:$O,'Banco de Dados'!$K:$K,\"Ganhos do Dia \"&$B12,'Banco de Dados'!$M:$M,\">=\"&Relatório!D$39,'Banco de Dados'!$N:$N,\"<=\"&DATE(YEAR(Relatório!D$39),MONTH(Relatório!D$39)+1,1)-1)+SUMIFS('Banco de Dados'!$O:$O,'Banco de Dados'!$K:$K,\"Bônus/Incentivo \"&$B12,'Banco de Dados'!$M:$M,\">=\"&Relatório!D$39,'Banco de Dados'!$N:$N,\"<=\"&DATE(YEAR(Relatório!D$39),MONTH(Relatório!D$39)+1,1)-1)+SUMIFS('Banco de Dados'!$R:$R,'Banco de Dados'!$K:$K,\"Ganhos do Dia \"&$B12,'Banco de Dados'!$P:$P,\">=\"&Relatório!D$39,'Banco de Dados'!$Q:$Q,\"<=\"&DATE(YEAR(Relatório!D$39),MONTH(Relatório!D$39)+1,1)-1)+SUMIFS('Banco de Dados'!$R:$R,'Banco de Dados'!$K:$K,\"Bônus/Incentivo \"&$B12,'Banco de Dados'!$P:$P,\">=\"&Relatório!D$39,'Banco de Dados'!$Q:$Q,\"<=\"&DATE(YEAR(Relatório!D$39),MONTH(Relatório!D$39)+1,1)-1)","v":0},{"$f":"SUMIFS('Banco de Dados'!$O:$O,'Banco de Dados'!$K:$K,\"Ganhos do Dia \"&$B12,'Banco de Dados'!$M:$M,\">=\"&Relatório!E$39,'Banco de Dados'!$N:$N,\"<=\"&DATE(YEAR(Relatório!$D$39),MONTH(Relatório!$D$39)+1,1)-1)+SUMIFS('Banco de Dados'!$O:$O,'Banco de Dados'!$K:$K,\"Bônus/Incentivo \"&$B12,'Banco de Dados'!$A:$A,\">=\"&Relatório!E$39,'Banco de Dados'!$A:$A,\"<=\"&DATE(YEAR(Relatório!$D$39),MONTH(Relatório!$D$39)+1,1)-1)+SUMIFS('Banco de Dados'!$R:$R,'Banco de Dados'!$K:$K,\"Ganhos do Dia \"&$B12,'Banco de Dados'!$P:$P,\">=\"&Relatório!E$39,'Banco de Dados'!$Q:$Q,\"<=\"&DATE(YEAR(Relatório!$D$39),MONTH(Relatório!$D$39)+1,1)-1)+SUMIFS('Banco de Dados'!$R:$R,'Banco de Dados'!$K:$K,\"Bônus/Incentivo \"&$B12,'Banco de Dados'!$A:$A,\">=\"&Relatório!E$39,'Banco de Dados'!$A:$A,\"<=\"&DATE(YEAR(Relatório!$D$39),MONTH(Relatório!$D$39)+1,1)-1)","v":0},{"$f":"SUMIFS('Banco de Dados'!$O:$O,'Banco de Dados'!$K:$K,\"Ganhos do Dia \"&$B12,'Banco de Dados'!$M:$M,\">=\"&Relatório!F$39,'Banco de Dados'!$N:$N,\"<=\"&DATE(YEAR(Relatório!$D$39),MONTH(Relatório!$D$39)+1,1)-1)+SUMIFS('Banco de Dados'!$O:$O,'Banco de Dados'!$K:$K,\"Bônus/Incentivo \"&$B12,'Banco de Dados'!$A:$A,\">=\"&Relatório!F$39,'Banco de Dados'!$A:$A,\"<=\"&DATE(YEAR(Relatório!$D$39),MONTH(Relatório!$D$39)+1,1)-1)+SUMIFS('Banco de Dados'!$R:$R,'Banco de Dados'!$K:$K,\"Ganhos do Dia \"&$B12,'Banco de Dados'!$P:$P,\">=\"&Relatório!F$39,'Banco de Dados'!$Q:$Q,\"<=\"&DATE(YEAR(Relatório!$D$39),MONTH(Relatório!$D$39)+1,1)-1)+SUMIFS('Banco de Dados'!$R:$R,'Banco de Dados'!$K:$K,\"Bônus/Incentivo \"&$B12,'Banco de Dados'!$A:$A,\">=\"&Relatório!F$39,'Banco de Dados'!$A:$A,\"<=\"&DATE(YEAR(Relatório!$D$39),MONTH(Relatório!$D$39)+1,1)-1)","v":0},{"$f":"SUMIFS('Banco de Dados'!$O:$O,'Banco de Dados'!$K:$K,\"Ganhos do Dia \"&$B12,'Banco de Dados'!$M:$M,\">=\"&Relatório!G$39,'Banco de Dados'!$N:$N,\"<=\"&DATE(YEAR(Relatório!$D$39),MONTH(Relatório!$D$39)+1,1)-1)+SUMIFS('Banco de Dados'!$O:$O,'Banco de Dados'!$K:$K,\"Bônus/Incentivo \"&$B12,'Banco de Dados'!$A:$A,\">=\"&Relatório!G$39,'Banco de Dados'!$A:$A,\"<=\"&DATE(YEAR(Relatório!$D$39),MONTH(Relatório!$D$39)+1,1)-1)+SUMIFS('Banco de Dados'!$R:$R,'Banco de Dados'!$K:$K,\"Ganhos do Dia \"&$B12,'Banco de Dados'!$P:$P,\">=\"&Relatório!G$39,'Banco de Dados'!$Q:$Q,\"<=\"&DATE(YEAR(Relatório!$D$39),MONTH(Relatório!$D$39)+1,1)-1)+SUMIFS('Banco de Dados'!$R:$R,'Banco de Dados'!$K:$K,\"Bônus/Incentivo \"&$B12,'Banco de Dados'!$A:$A,\">=\"&Relatório!G$39,'Banco de Dados'!$A:$A,\"<=\"&DATE(YEAR(Relatório!$D$39),MONTH(Relatório!$D$39)+1,1)-1)","v":0},{"$f":"SUMIFS('Banco de Dados'!$O:$O,'Banco de Dados'!$K:$K,\"Ganhos do Dia \"&$B12,'Banco de Dados'!$M:$M,\">=\"&Relatório!H$39,'Banco de Dados'!$N:$N,\"<=\"&DATE(YEAR(Relatório!$B$40),MONTH(Relatório!$B$40)+1,1)-1)+SUMIFS('Banco de Dados'!$O:$O,'Banco de Dados'!$K:$K,\"Bônus/Incentivo \"&$B12,'Banco de Dados'!$A:$A,\">=\"&Relatório!H$39,'Banco de Dados'!$A:$A,\"<=\"&DATE(YEAR(Relatório!$B$40),MONTH(Relatório!$B$40)+1,1)-1)+SUMIFS('Banco de Dados'!$R:$R,'Banco de Dados'!$K:$K,\"Ganhos do Dia \"&$B12,'Banco de Dados'!$P:$P,\">=\"&Relatório!H$39,'Banco de Dados'!$Q:$Q,\"<=\"&DATE(YEAR(Relatório!$B$40),MONTH(Relatório!$B$40)+1,1)-1)+SUMIFS('Banco de Dados'!$R:$R,'Banco de Dados'!$K:$K,\"Bônus/Incentivo \"&$B12,'Banco de Dados'!$A:$A,\">=\"&Relatório!H$39,'Banco de Dados'!$A:$A,\"<=\"&DATE(YEAR(Relatório!$B$40),MONTH(Relatório!$B$40)+1,1)-1)","v":0},{"$f":"SUMIFS('Banco de Dados'!J:J,'Banco de Dados'!K:K,\"Ganhos do Dia \"&$B12)+SUMIFS('Banco de Dados'!J:J,'Banco de Dados'!K:K,\"Bônus/Incentivo \"&$B12)","v":0}]
[null,"Outros Incentivos",{"$f":"SUMIFS('Banco de Dados'!$O:$O,'Banco de Dados'!$B:$B,$B13,'Banco de Dados'!$M:$M,\">=\"&Relatório!C$39,'Banco de Dados'!$N:$N,\"<=\"&DATE(YEAR(Relatório!C$39),MONTH(Relatório!C$39)+1,1)-1)+SUMIFS('Banco de Dados'!$R:$R,'Banco de Dados'!$B:$B,$B13,'Banco de Dados'!$P:$P,\">=\"&Relatório!C$39,'Banco de Dados'!$Q:$Q,\"<=\"&DATE(YEAR(Relatório!C$39),MONTH(Relatório!C$39)+1,1)-1)","v":0},{"$f":"SUMIFS('Banco de Dados'!$O:$O,'Banco de Dados'!$B:$B,$B13,'Banco de Dados'!$M:$M,\">=\"&Relatório!D$39,'Banco de Dados'!$N:$N,\"<=\"&DATE(YEAR(Relatório!D$39),MONTH(Relatório!D$39)+1,1)-1)+SUMIFS('Banco de Dados'!$R:$R,'Banco de Dados'!$B:$B,$B13,'Banco de Dados'!$P:$P,\">=\"&Relatório!D$39,'Banco de Dados'!$Q:$Q,\"<=\"&DATE(YEAR(Relatório!D$39),MONTH(Relatório!D$39)+1,1)-1)","v":0},{"$f":"SUMIFS('Banco de Dados'!$O:$O,'Banco de Dados'!$B:$B,$B13,'Banco de Dados'!$M:$M,\">=\"&Relatório!E$39,'Banco de Dados'!$N:$N,\"<=\"&DATE(YEAR(Relatório!$D$39),MONTH(Relatório!$D$39)+1,1)-1)+SUMIFS('Banco de Dados'!$R:$R,'Banco de Dados'!$B:$B,$B13,'Banco de Dados'!$P:$P,\">=\"&Relatório!E$39,'Banco de Dados'!$Q:$Q,\"<=\"&DATE(YEAR(Relatório!$D$39),MONTH(Relatório!$D$39)+1,1)-1)","v":0},{"$f":"SUMIFS('Banco de Dados'!$O:$O,'Banco de Dados'!$B:$B,$B13,'Banco de Dados'!$M:$M,\">=\"&Relatório!F$39,'Banco de Dados'!$N:$N,\"<=\"&DATE(YEAR(Relatório!$D$39),MONTH(Relatório!$D$39)+1,1)-1)+SUMIFS('Banco de Dados'!$R:$R,'Banco de Dados'!$B:$B,$B13,'Banco de Dados'!$P:$P,\">=\"&Relatório!F$39,'Banco de Dados'!$Q:$Q,\"<=\"&DATE(YEAR(Relatório!$D$39),MONTH(Relatório!$D$39)+1,1)-1)","v":0},{"$f":"SUMIFS('Banco de Dados'!$O:$O,'Banco de Dados'!$B:$B,$B13,'Banco de Dados'!$M:$M,\">=\"&Relatório!G$39,'Banco de Dados'!$N:$N,\"<=\"&DATE(YEAR(Relatório!$D$39),MONTH(Relatório!$D$39)+1,1)-1)+SUMIFS('Banco de Dados'!$R:$R,'Banco de Dados'!$B:$B,$B13,'Banco de Dados'!$P:$P,\">=\"&Relatório!G$39,'Banco de Dados'!$Q:$Q,\"<=\"&DATE(YEAR(Relatório!$D$39),MONTH(Relatório!$D$39)+1,1)-1)","v":0},{"$f":"SUMIFS('Banco de Dados'!$O:$O,'Banco de Dados'!$B:$B,$B13,'Banco de Dados'!$M:$M,\">=\"&Relatório!H$39,'Banco de Dados'!$N:$N,\"<=\"&DATE(YEAR(Relatório!$B$40),MONTH(Relatório!$B$40)+1,1)-1)+SUMIFS('Banco de Dados'!$R:$R,'Banco de Dados'!$B:$B,$B13,'Banco de Dados'!$P:$P,\">=\"&Relatório!H$39,'Banco de Dados'!$Q:$Q,\"<=\"&DATE(YEAR(Relatório!$B$40),MONTH(Relatório!$B$40)+1,1)-1)","v":0},{"$f":"SUMIFS('Banco de Dados'!J:J,'Banco de Dados'!B:B,$B13)","v":0}]
[null,"Total de Ganhos",{"$f":"SUM(C10:C13)","v":0},{"$f":"SUM(D10:D13)","v":0},0,0,0,0,0]
[]
[null,"Total de Custos",{"$f":"SUMIFS('Banco de Dados'!$O:$O,'Banco de Dados'!$B:$B,$B16,'Banco de Dados'!$M:$M,\">=\"&Relatório!C$39,'Banco de Dados'!$N:$N,\"<=\"&DATE(YEAR(Relatório!C$39),MONTH(Relatório!C$39)+1,1)-1)+SUMIFS('Banco de Dados'!$R:$R,'Banco de Dados'!$B:$B,$B16,'Banco de Dados'!$P:$P,\">=\"&Relatório!C$39,'Banco de Dados'!$Q:$Q,\"<=\"&DATE(YEAR(Relatório!C$39),MONTH(Relatório!C$39)+1,1)-1)","v":0},{"$f":"SUMIFS('Banco de Dados'!$O:$O,'Banco de Dados'!$B:$B,$B16,'Banco de Dados'!$M:$M,\">=\"&Relatório!D$39,'Banco de Dados'!$N:$N,\"<=\"&DATE(YEAR(Relatório!D$39),MONTH(Relatório!D$39)+1,1)-1)+SUMIFS('Banco de Dados'!$R:$R,'Banco de Dados'!$B:$B,$B16,'Banco de Dados'!$P:$P,\">=\"&Relatório!D$39,'Banco de Dados'!$Q:$Q,\"<=\"&DATE(YEAR(Relatório!D$39),MONTH(Relatório!D$39)+1,1)-1)","v":0},{"$f":"SUMIFS('Banco de Dados'!$O:$O,'Banco de Dados'!$B:$B,$B16,'Banco de Dados'!$M:$M,\">=\"&Relatório!E$39,'Banco de Dados'!$N:$N,\"<=\"&DATE(YEAR(Relatório!$D$39),MONTH(Relatório!$D$39)+1,1)-1)+SUMIFS('Banco de Dados'!$R:$R,'Banco de Dados'!$B:$B,$B16,'Banco de Dados'!$P:$P,\">=\"&Relatório!E$39,'Banco de Dados'!$Q:$Q,\"<=\"&DATE(YEAR(Relatório!$D$39),MONTH(Relatório!$D$39)+1,1)-1)","v":0},{"$f":"SUMIFS('Banco de Dados'!$O:$O,'Banco de Dados'!$B:$B,$B16,'Banco de Dados'!$M:$M,\">=\"&Relatório!F$39,'Banco de Dados'!$N:$N,\"<=\"&DATE(YEAR(Relatório!$D$39),MONTH(Relatório!$D$39)+1,1)-1)+SUMIFS('Banco de Dados'!$R:$R,'Banco de Dados'!$B:$B,$B16,'Banco de Dados'!$P:$P,\">=\"&Relatório!F$39,'Banco de Dados'!$Q:$Q,\"<=\"&DATE(YEAR(Relatório!$D$39),MONTH(Relatório!$D$39)+1,1)-1)","v":0},{"$f":"SUMIFS('Banco de Dados'!$O:$O,'Banco de Dados'!$B:$B,$B16,'Banco de Dados'!$M:$M,\">=\"&Relatório!G$39,'Banco de Dados'!$N:$N,\"<=\"&DATE(YEAR(Relatório!$D$39),MONTH(Relatório!$D$39)+1,1)-1)+SUMIFS('Banco de Dados'!$R:$R,'Banco de Dados'!$B:$B,$B16,'Banco de Dados'!$P:$P,\">=\"&Relatório!G$39,'Banco de Dados'!$Q:$Q,\"<=\"&DATE(YEAR(Relatório!$D$39),MONTH(Relatório!$D$39)+1,1)-1)","v":0},{"$f":"SUMIFS('Banco de Dados'!$O:$O,'Banco de Dados'!$B:$B,$B16,'Banco de Dados'!$M:$M,\">=\"&Relatório!H$39,'Banco de Dados'!$N:$N,\"<=\"&DATE(YEAR(Relatório!$B$40),MONTH(Relatório!$B$40)+1,1)-1)+SUMIFS('Banco de Dados'!$R:$R,'Banco de Dados'!$B:$B,$B16,'Banco de Dados'!$P:$P,\">=\"&Relatório!H$39,'Banco de Dados'!$Q:$Q,\"<=\"&DATE(YEAR(Relatório!$B$40),MONTH(Relatório!$B$40)+1,1)-1)","v":0},{"$f":"SUMIFS('Banco de Dados'!J:J,'Banco de Dados'!B:B,$B16)","v":0}]
[null,"Total de Despesas",{"$f":"SUMIFS('Banco de Dados'!$O:$O,'Banco de Dados'!$B:$B,$B17,'Banco de Dados'!$M:$M,\">=\"&Relatório!C$39,'Banco de Dados'!$N:$N,\"<=\"&DATE(YEAR(Relatório!C$39),MONTH(Relatório!C$39)+1,1)-1)+SUMIFS('Banco de Dados'!$R:$R,'Banco de Dados'!$B:$B,$B17,'Banco de Dados'!$P:$P,\">=\"&Relatório!C$39,'Banco de Dados'!$Q:$Q,\"<=\"&DATE(YEAR(Relatório!C$39),MONTH(Relatório!C$39)+1,1)-1)","v":0},{"$f":"SUMIFS('Banco de Dados'!$O:$O,'Banco de Dados'!$B:$B,$B17,'Banco de Dados'!$M:$M,\">=\"&Relatório!D$39,'Banco de Dados'!$N:$N,\"<=\"&DATE(YEAR(Relatório!D$39),MONTH(Relatório!D$39)+1,1)-1)+SUMIFS('Banco de Dados'!$R:$R,'Banco de Dados'!$B:$B,$B17,'Banco de Dados'!$P:$P,\">=\"&Relatório!D$39,'Banco de Dados'!$Q:$Q,\"<=\"&DATE(YEAR(Relatório!D$39),MONTH(Relatório!D$39)+1,1)-1)","v":0},{"$f":"SUMIFS('Banco de Dados'!$O:$O,'Banco de Dados'!$B:$B,$B17,'Banco de Dados'!$M:$M,\">=\"&Relatório!E$39,'Banco de Dados'!$N:$N,\"<=\"&DATE(YEAR(Relatório!$D$39),MONTH(Relatório!$D$39)+1,1)-1)+SUMIFS('Banco de Dados'!$R:$R,'Banco de Dados'!$B:$B,$B17,'Banco de Dados'!$P:$P,\">=\"&Relatório!E$39,'Banco de Dados'!$Q:$Q,\"<=\"&DATE(YEAR(Relatório!$D$39),MONTH(Relatório!$D$39)+1,1)-1)","v":0},{"$f":"SUMIFS('Banco de Dados'!$O:$O,'Banco de Dados'!$B:$B,$B17,'Banco de Dados'!$M:$M,\">=\"&Relatório!F$39,'Banco de Dados'!$N:$N,\"<=\"&DATE(YEAR(Relatório!$D$39),MONTH(Relatório!$D$39)+1,1)-1)+SUMIFS('Banco de Dados'!$R:$R,'Banco de Dados'!$B:$B,$B17,'Banco de Dados'!$P:$P,\">=\"&Relatório!F$39,'Banco de Dados'!$Q:$Q,\"<=\"&DATE(YEAR(Relatório!$D$39),MONTH(Relatório!$D$39)+1,1)-1)","v":0},{"$f":"SUMIFS('Banco de Dados'!$O:$O,'Banco de Dados'!$B:$B,$B17,'Banco de Dados'!$M:$M,\">=\"&Relatório!G$39,'Banco de Dados'!$N:$N,\"<=\"&DATE(YEAR(Relatório!$D$39),MONTH(Relatório!$D$39)+1,1)-1)+SUMIFS('Banco de Dados'!$R:$R,'Banco de Dados'!$B:$B,$B17,'Banco de Dados'!$P:$P,\">=\"&Relatório!G$39,'Banco de Dados'!$Q:$Q,\"<=\"&DATE(YEAR(Relatório!$D$39),MONTH(Relatório!$D$39)+1,1)-1)","v":0},{"$f":"SUMIFS('Banco de Dados'!$O:$O,'Banco de Dados'!$B:$B,$B17,'Banco de Dados'!$M:$M,\">=\"&Relatório!H$39,'Banco de Dados'!$N:$N,\"<=\"&DATE(YEAR(Relatório!$B$40),MONTH(Relatório!$B$40)+1,1)-1)+SUMIFS('Banco de Dados'!$R:$R,'Banco de Dados'!$B:$B,$B17,'Banco de Dados'!$P:$P,\">=\"&Relatório!H$39,'Banco de Dados'!$Q:$Q,\"<=\"&DATE(YEAR(Relatório!$B$40),MONTH(Relatório!$B$40)+1,1)-1)","v":0},{"$f":"SUMIFS('Banco de Dados'!J:J,'Banco de Dados'!B:B,$B17)","v":0}]
[null,"Total de Gastos",{"$f":"SUM(C16:C17)","v":0},0,0,0,0,0,0]
[]
[null,"Resultado Bruto",{"$f":"C14-C18","v":0},0,0,0,0,0,0]
[null,"Custo com provisões",{"$f":"SUMIFS('Banco de Dados'!$O:$O,'Banco de Dados'!$B:$B,$B21,'Banco de Dados'!$M:$M,\">=\"&Relatório!C$39,'Banco de Dados'!$N:$N,\"<=\"&DATE(YEAR(Relatório!C$39),MONTH(Relatório!C$39)+1,1)-1)+SUMIFS('Banco de Dados'!$R:$R,'Banco de Dados'!$B:$B,$B21,'Banco de Dados'!$P:$P,\">=\"&Relatório!C$39,'Banco de Dados'!$Q:$Q,\"<=\"&DATE(YEAR(Relatório!C$39),MONTH(Relatório!C$39)+1,1)-1)","v":0},{"$f":"SUMIFS('Banco de Dados'!$O:$O,'Banco de Dados'!$B:$B,$B21,'Banco de Dados'!$M:$M,\">=\"&Relatório!D$39,'Banco de Dados'!$N:$N,\"<=\"&DATE(YEAR(Relatório!D$39),MONTH(Relatório!D$39)+1,1)-1)+SUMIFS('Banco de Dados'!$R:$R,'Banco de Dados'!$B:$B,$B21,'Banco de Dados'!$P:$P,\">=\"&Relatório!D$39,'Banco de Dados'!$Q:$Q,\"<=\"&DATE(YEAR(Relatório!D$39),MONTH(Relatório!D$39)+1,1)-1)","v":0},{"$f":"SUMIFS('Banco de Dados'!$O:$O,'Banco de Dados'!$B:$B,$B21,'Banco de Dados'!$M:$M,\">=\"&Relatório!E$39,'Banco de Dados'!$N:$N,\"<=\"&DATE(YEAR(Relatório!$D$39),MONTH(Relatório!$D$39)+1,1)-1)+SUMIFS('Banco de Dados'!$R:$R,'Banco de Dados'!$B:$B,$B21,'Banco de Dados'!$P:$P,\">=\"&Relatório!E$39,'Banco de Dados'!$Q:$Q,\"<=\"&DATE(YEAR(Relatório!$D$39),MONTH(Relatório!$D$39)+1,1)-1)","v":0},{"$f":"SUMIFS('Banco de Dados'!$O:$O,'Banco de Dados'!$B:$B,$B21,'Banco de Dados'!$M:$M,\">=\"&Relatório!F$39,'Banco de Dados'!$N:$N,\"<=\"&DATE(YEAR(Relatório!$D$39),MONTH(Relatório!$D$39)+1,1)-1)+SUMIFS('Banco de Dados'!$R:$R,'Banco de Dados'!$B:$B,$B21,'Banco de Dados'!$P:$P,\">=\"&Relatório!F$39,'Banco de Dados'!$Q:$Q,\"<=\"&DATE(YEAR(Relatório!$D$39),MONTH(Relatório!$D$39)+1,1)-1)","v":0},{"$f":"SUMIFS('Banco de Dados'!$O:$O,'Banco de Dados'!$B:$B,$B21,'Banco de Dados'!$M:$M,\">=\"&Relatório!G$39,'Banco de Dados'!$N:$N,\"<=\"&DATE(YEAR(Relatório!$D$39),MONTH(Relatório!$D$39)+1,1)-1)+SUMIFS('Banco de Dados'!$R:$R,'Banco de Dados'!$B:$B,$B21,'Banco de Dados'!$P:$P,\">=\"&Relatório!G$39,'Banco de Dados'!$Q:$Q,\"<=\"&DATE(YEAR(Relatório!$D$39),MONTH(Relatório!$D$39)+1,1)-1)","v":0},{"$f":"SUMIFS('Banco de Dados'!$O:$O,'Banco de Dados'!$B:$B,$B21,'Banco de Dados'!$M:$M,\">=\"&Relatório!H$39,'Banco de Dados'!$N:$N,\"<=\"&DATE(YEAR(Relatório!$B$40),MONTH(Relatório!$B$40)+1,1)-1)+SUMIFS('Banco de Dados'!$R:$R,'Banco de Dados'!$B:$B,$B21,'Banco de Dados'!$P:$P,\">=\"&Relatório!H$39,'Banco de Dados'!$Q:$Q,\"<=\"&DATE(YEAR(Relatório!$B$40),MONTH(Relatório!$B$40)+1,1)-1)","v":0},{"$f":"SUMIFS('Banco de Dados'!J:J,'Banco de Dados'!B:B,$B21)","v":0}]
[null,"Resultado Líquido",{"$f":"C20-C21","v":0},0,0,0,0,0,0]
[null,"Média diária comparativa"]
[]
[null,"Período de análise","Mês Até Agora","Último Mês","Último 3 Meses","Últimos 6 Meses","Últimos 12 Meses","Acumulado Ano","Todo Período"]
[null,"Resultado Bruto",{"$f":"C20/C$40","v":0},0,0,0,0,0,{"$error":"#DIV/0!"}]
[null,"Custo com provisões",0,0,0,0,0,0,{"$error":"#DIV/0!"}]
[null,"Resultado Líquido",0,0,0,0,0,0,{"$error":"#DIV/0!"}]
[]
[]
[]
[]
[]
[]
[]
[]
[]
[]
[null,{"$f":"TODAY()","v":"2015-02-09"},{"$f":"DATE(YEAR($B$39),MONTH($B$39),1)","v":"2015-01-31"},{"$f":"DATE(YEAR($B$39),MONTH($B$39)-1,1)","v":"2014-12-31"},{"$f":"DATE(YEAR($B$39),MONTH($B$39)-3,1)","v":"2014-10-31"},{"$f":"DATE(YEAR($B$39),MONTH($B$39)-6,1)","v":"2014-07-31"},{"$f":"DATE(YEAR($B$39),MONTH($B$39)-12,1)","v":"2014-01-31"},{"$f":"DATE(YEAR($B$39),1,1)","v":"2014-12-31"},{"$f":"\"Relatório \"&RIGHT(\"0\"&DAY($B$39),2)&\"-\"&RIGHT(\"0\"&MONTH($B$39),2)&\"-\"&RIGHT(\"0\"&YEAR($B$39),4)","v":"Relatório 10-02-2019"}]
[null,{"$f":"DATE(YEAR($B$39),MONTH($B$39)+1,1)-1","v":"2015-02-27"},{"$f":"B40-C39","v":27},{"$f":"$C$39-D39","v":31},{"$f":"$C$39-E39","v":92},{"$f":"$C$39-F39","v":184},{"$f":"$C$39-G39","v":365},{"$f":"$B$39-H39","v":40},{"$f":"MAX('Banco de Dados'!$Q:$Q)-MIN('Banco de Dados'!$M:$M)","v":0}]

{"sheet":"Banco de Dados","index":8,"n_rows":6,"n_cols":18,"rows_kept":6,"cut":false,"hidden":true,"merged":[[4,7,4,8]]}
["AAA","AAA","AAA"]
["AAA","AAA","AAA",null,null,null,null,null,null,{"$f":"MATCH(Ajuste!C7,'Banco de Dados'!A:A,0)","v":{"$error":"#N/A"}}]
["AAA","AAA","AAA",null,null,null,null,null,null,"2013-12-31"]
["AAA","AAA","AAA",null,null,null,null,null,null,{"$f":"MATCH(J3,A:A,0)","v":{"$error":"#N/A"}}]
["AAA","AAA","AAA",null,null,null,null,{"$f":"'Função Excel'!$C$9","v":"Versão 2.1 - DEMO"},null,{"$f":"MATCH('Semana Atual'!C7,'Banco de Dados'!A:A,0)","v":{"$error":"#N/A"}}]
["Semana do dia",{"$f":"COUNTIF(A:A,Auxiliar!$A$7)","v":0},"Seg","Ter","Qua","Qui","Sex","Sáb","Dom","Total",null,"Linha","De","Até","Total","De","Até","Total"]

{"sheet":"Função Excel","index":9,"n_rows":20,"n_cols":3,"rows_kept":20,"cut":false,"hidden":true,"merged":[[14,2,17,15]]}
[]
[]
[]
[]
[]
[]
[]
[null,null,"Planilha de Controle Uber, Cabify & 99 Pop"]
[null,null,"Versão 2.1 - DEMO"]
[]
[null,null,"O que é o Função Excel?"]
[null,null,"O Função Excel é um site de conteúdo gratuíto sobre a mais utilizada ferramenta de análise e controle de dados do mundo, o Microsoft Excel.\n"]
[]
[null,null,"O que o Função Excel tem a oferecer?"]
[null,null,"Além do conteúdo disponibilizado no site www.funcaoexcel.com.br e nas redes sociais, o Função Excel também elabora planilhas e sistemas em Excel sob encomenda para os mais variados fins. Entre alguns deles estão: controle de fluxo para empresas, controle de estoque, controle gerencial de tomada de decisão, sistema analítico para escritórios de contabilidade, ou qualquer outra ferramenta em Excel."]
[]
[]
[]
[null,null,"Como posso entrar em contato?"]
[null,null,"Você pode entrar em contato direto com o Função Excel através do e-mail funcaoexcel@gmail.com ou pelos links à esquerda."]